Body_Code,Body_Name,Service,GL Code,GL Code Desc,Posting Date,Doc Number,Doc Net Amount,Supplier Name
http://statistics.data.gov.uk/id/local-authority/38,Oxfordshire County Council,,1162,VAT - Input Adjustment,10/11/2015,3110027519,710.26,Blake Morgan LLP
http://statistics.data.gov.uk/id/local-authority/38,Oxfordshire County Council,,1162,VAT - Input Adjustment,13/11/2015,3110028827,596.8,DWF LLP
http://statistics.data.gov.uk/id/local-authority/38,Oxfordshire County Council,,1162,VAT - Input Adjustment,23/11/2015,3110032068,"9,443.60",OCC One Time Vendor
http://statistics.data.gov.uk/id/local-authority/38,Oxfordshire County Council,,1162,VAT - Input Adjustment,30/11/2015,3110033711,571.11,Ross & Roberts Ltd
http://statistics.data.gov.uk/id/local-authority/38,Oxfordshire County Council,,1165,VAT Errors and Adjustments,30/11/2015,3110033708,500,Darbys Solicitors LLP
http://statistics.data.gov.uk/id/local-authority/38,Oxfordshire County Council,,1165,VAT Errors and Adjustments,13/11/2015,3110028825,"1,990.00",Darbys Solicitors LLP
http://statistics.data.gov.uk/id/local-authority/38,Oxfordshire County Council,,1165,VAT Errors and Adjustments,23/11/2015,3110032070,"2,594.79",Dolce Ltd
http://statistics.data.gov.uk/id/local-authority/38,Oxfordshire County Council,,1165,VAT Errors and Adjustments,30/11/2015,3110033710,"4,284.00",OXFORD HEALTH NHS FOUNDATION TRUST
http://statistics.data.gov.uk/id/local-authority/38,Oxfordshire County Council,,1286,Pension Fund normal deductions - ees,09/11/2015,3110027208,"759,855.74",Oxfordshire CC Pension Fund
http://statistics.data.gov.uk/id/local-authority/38,Oxfordshire County Council,,1287,Pension Fund normal contributions - ers,09/11/2015,3110027209,"2,340,139.79",Oxfordshire CC Pension Fund
http://statistics.data.gov.uk/id/local-authority/38,Oxfordshire County Council,,1288,Contributions re added years - other,09/11/2015,3110027210,"9,764.80",Oxfordshire CC Pension Fund
http://statistics.data.gov.uk/id/local-authority/38,Oxfordshire County Council,,1320,Childcare Vouchers A/C,23/11/2015,3110032071,"84,117.91",KiddiVouchers
http://statistics.data.gov.uk/id/local-authority/38,Oxfordshire County Council,,1325,Attachment of Earnings,06/11/2015,3110027133,-670.96,HMCTS
http://statistics.data.gov.uk/id/local-authority/38,Oxfordshire County Council,,1325,Attachment of Earnings,13/11/2015,3110028834,948.33,Oxford City Council
http://statistics.data.gov.uk/id/local-authority/38,Oxfordshire County Council,,1325,Attachment of Earnings,05/11/2015,3110027207,"1,959.19",Oxford City Council
http://statistics.data.gov.uk/id/local-authority/38,Oxfordshire County Council,,1325,Attachment of Earnings,13/11/2015,3110028828,"1,167.42",SECRETARY OF STATE FOR SOCIAL
http://statistics.data.gov.uk/id/local-authority/38,Oxfordshire County Council,,1360,Sundry Creditors,30/11/2015,3110033704,601.93,CHARTIS INSURANCE UK LTD
http://statistics.data.gov.uk/id/local-authority/38,Oxfordshire County Council,CSB - COUNTY,1362,Creditors GR/IR -,13/11/2015,2200061589,"9,295.44",Abicare Services Ltd (Homecare)
http://statistics.data.gov.uk/id/local-authority/38,Oxfordshire County Council,Mainstream Res,1362,Creditors GR/IR -,01/11/2015,2200053817,"28,065.48",AUTISM WESSEX
http://statistics.data.gov.uk/id/local-authority/38,Oxfordshire County Council,MOTOR FLEET,1362,Creditors GR/IR -,26/11/2015,2200067224,"15,852.37",Carillion LGS Ltd
http://statistics.data.gov.uk/id/local-authority/38,Oxfordshire County Council,PROPERTY,1362,Creditors GR/IR -,20/11/2015,2200064638,"51,391.76",Carillion LGS Ltd
http://statistics.data.gov.uk/id/local-authority/38,Oxfordshire County Council,AGENCY RESID - DISAB,1362,Creditors GR/IR -,10/11/2015,2200059667,"3,377.10",FOSTERING TOGETHER LTD
http://statistics.data.gov.uk/id/local-authority/38,Oxfordshire County Council,AGENCY RESID - DISAB,1362,Creditors GR/IR -,10/11/2015,2200059673,"3,489.67",FOSTERING TOGETHER LTD
http://statistics.data.gov.uk/id/local-authority/38,Oxfordshire County Council,AGENCY RESID - DISAB,1362,Creditors GR/IR -,10/11/2015,2200059670,"5,065.80",FOSTERING TOGETHER LTD
http://statistics.data.gov.uk/id/local-authority/38,Oxfordshire County Council,AGENCY RESID - DISAB,1362,Creditors GR/IR -,10/11/2015,2200059671,"5,234.66",FOSTERING TOGETHER LTD
http://statistics.data.gov.uk/id/local-authority/38,Oxfordshire County Council,Independent Foster,1362,Creditors GR/IR -,06/11/2015,2200055808,"4,855.50",Foundation Fostering
http://statistics.data.gov.uk/id/local-authority/38,Oxfordshire County Council,Mainstream Res,1362,Creditors GR/IR -,01/11/2015,2200057026,"14,798.57",Hillcrest Care Services Ltd
http://statistics.data.gov.uk/id/local-authority/38,Oxfordshire County Council,Independent Foster,1362,Creditors GR/IR -,26/11/2015,2200067449,"3,197.10",Nexus Fostering Ltd
http://statistics.data.gov.uk/id/local-authority/38,Oxfordshire County Council,Mainstream Res,1362,Creditors GR/IR -,26/11/2015,2200067463,"3,220.50",Nexus Fostering Ltd
http://statistics.data.gov.uk/id/local-authority/38,Oxfordshire County Council,Mainstream Res,1362,Creditors GR/IR -,19/11/2015,2200064934,"6,000.00",Oracle Care Limited
http://statistics.data.gov.uk/id/local-authority/38,Oxfordshire County Council,,1422,GMBATU Union,30/11/2015,3110033700,831.1,GENERAL MUNICIPAL BOILERMAKERS
http://statistics.data.gov.uk/id/local-authority/38,Oxfordshire County Council,,1425,Unison Union deductions,30/11/2015,3110033703,"14,732.90",Oxfordshire Unison
http://statistics.data.gov.uk/id/local-authority/38,Oxfordshire County Council,,1426,FBU Union,30/11/2015,3110033697,"6,120.25",FIRE BRIGADE UNION
http://statistics.data.gov.uk/id/local-authority/38,Oxfordshire County Council,,1429,Charitable Donations,30/11/2015,3110033698,"3,399.90",THE FIRE FIGHTERS CHARITY
http://statistics.data.gov.uk/id/local-authority/38,Oxfordshire County Council,,1441,Uncleared Misc Income Receipts,05/11/2015,3110026663,560.64,OCC One Time Vendor
http://statistics.data.gov.uk/id/local-authority/38,Oxfordshire County Council,,1441,Uncleared Misc Income Receipts,19/11/2015,3110031585,565.51,OCC One Time Vendor
http://statistics.data.gov.uk/id/local-authority/38,Oxfordshire County Council,,1441,Uncleared Misc Income Receipts,20/11/2015,3110031975,664.44,OCC One Time Vendor
http://statistics.data.gov.uk/id/local-authority/38,Oxfordshire County Council,,1441,Uncleared Misc Income Receipts,26/11/2015,3110032763,838.24,OCC One Time Vendor
http://statistics.data.gov.uk/id/local-authority/38,Oxfordshire County Council,,1441,Uncleared Misc Income Receipts,12/11/2015,3110028727,861.25,OCC One Time Vendor
http://statistics.data.gov.uk/id/local-authority/38,Oxfordshire County Council,,1441,Uncleared Misc Income Receipts,05/11/2015,3110026666,926.96,OCC One Time Vendor
http://statistics.data.gov.uk/id/local-authority/38,Oxfordshire County Council,,1441,Uncleared Misc Income Receipts,04/11/2015,3110026441,"1,615.00",OCC One Time Vendor
http://statistics.data.gov.uk/id/local-authority/38,Oxfordshire County Council,,1441,Uncleared Misc Income Receipts,05/11/2015,3110026669,"2,694.60",OCC One Time Vendor
http://statistics.data.gov.uk/id/local-authority/38,Oxfordshire County Council,,1441,Uncleared Misc Income Receipts,26/11/2015,3110032764,"2,694.60",OCC One Time Vendor
http://statistics.data.gov.uk/id/local-authority/38,Oxfordshire County Council,,1441,Uncleared Misc Income Receipts,13/11/2015,3110028816,"2,793.60",OCC One Time Vendor
http://statistics.data.gov.uk/id/local-authority/38,Oxfordshire County Council,,1441,Uncleared Misc Income Receipts,05/11/2015,3110026662,"4,089.93",OCC One Time Vendor
http://statistics.data.gov.uk/id/local-authority/38,Oxfordshire County Council,,1441,Uncleared Misc Income Receipts,13/11/2015,3110028814,"5,207.01",OCC One Time Vendor
http://statistics.data.gov.uk/id/local-authority/38,Oxfordshire County Council,,1441,Uncleared Misc Income Receipts,05/11/2015,3110026661,"6,207.58",OCC One Time Vendor
http://statistics.data.gov.uk/id/local-authority/38,Oxfordshire County Council,,1441,Uncleared Misc Income Receipts,13/11/2015,3110028815,"7,904.43",OCC One Time Vendor
http://statistics.data.gov.uk/id/local-authority/38,Oxfordshire County Council,,1441,Uncleared Misc Income Receipts,19/11/2015,3110031583,"11,333.33",OCC One Time Vendor
http://statistics.data.gov.uk/id/local-authority/38,Oxfordshire County Council,LOCALITY TM CHERWELL,2040,Agency Staff,13/11/2015,2200062003,557.5,3D Recruit Ltd
http://statistics.data.gov.uk/id/local-authority/38,Oxfordshire County Council,DTOC Funding,2040,Agency Staff,13/11/2015,2200060835,"1,241.87",3D Recruit Ltd
http://statistics.data.gov.uk/id/local-authority/38,Oxfordshire County Council,LOCALITY TM CHERWELL,2040,Agency Staff,04/11/2015,2200061099,"1,273.75",3D Recruit Ltd
http://statistics.data.gov.uk/id/local-authority/38,Oxfordshire County Council,LOCALITY TM CHERWELL,2040,Agency Staff,20/11/2015,2200067163,"1,305.00",3D Recruit Ltd
http://statistics.data.gov.uk/id/local-authority/38,Oxfordshire County Council,LOCALITY TM CHERWELL,2040,Agency Staff,05/11/2015,2200061106,"1,317.65",3D Recruit Ltd
http://statistics.data.gov.uk/id/local-authority/38,Oxfordshire County Council,DIDCOT HUB,2040,Agency Staff,13/11/2015,2200060944,"1,355.96",3D Recruit Ltd
http://statistics.data.gov.uk/id/local-authority/38,Oxfordshire County Council,DIDCOT HUB,2040,Agency Staff,05/11/2015,2200060970,"1,357.76",3D Recruit Ltd
http://statistics.data.gov.uk/id/local-authority/38,Oxfordshire County Council,FAMILY SUPPORT N'TH2,2040,Agency Staff,01/11/2015,2200053420,"1,430.80",3D Recruit Ltd
http://statistics.data.gov.uk/id/local-authority/38,Oxfordshire County Council,FAMILY SUPPORT N'TH2,2040,Agency Staff,01/11/2015,2200053395,"1,448.30",3D Recruit Ltd
http://statistics.data.gov.uk/id/local-authority/38,Oxfordshire County Council,FAMILY SUPPORT N'TH2,2040,Agency Staff,05/11/2015,2200055853,"1,467.47",3D Recruit Ltd
http://statistics.data.gov.uk/id/local-authority/38,Oxfordshire County Council,FAMILY SUPPORT N'TH2,2040,Agency Staff,20/11/2015,2200066543,"1,477.87",3D Recruit Ltd
http://statistics.data.gov.uk/id/local-authority/38,Oxfordshire County Council,FAMILY SUPPORT N'TH2,2040,Agency Staff,04/11/2015,2200054860,"1,484.21",3D Recruit Ltd
http://statistics.data.gov.uk/id/local-authority/38,Oxfordshire County Council,FAMILY SUPPORT N'TH2,2040,Agency Staff,01/11/2015,2200053378,"1,554.59",3D Recruit Ltd
http://statistics.data.gov.uk/id/local-authority/38,Oxfordshire County Council,LOCALITY TM CHERWELL,2040,Agency Staff,20/11/2015,2200067177,"1,657.00",3D Recruit Ltd
http://statistics.data.gov.uk/id/local-authority/38,Oxfordshire County Council,LOCALITY TEAM - VALE,2040,Agency Staff,01/11/2015,2200057018,750,Access Independent Limited
http://statistics.data.gov.uk/id/local-authority/38,Oxfordshire County Council,LOCALITY TEAM - WEST,2040,Agency Staff,01/11/2015,2200062162,980,Access Independent Limited
http://statistics.data.gov.uk/id/local-authority/38,Oxfordshire County Council,LOCALITY TEAM - VALE,2040,Agency Staff,03/11/2015,2200053847,"1,280.00",Access Independent Limited
http://statistics.data.gov.uk/id/local-authority/38,Oxfordshire County Council,LOCALITY TEAM -SOUTH,2040,Agency Staff,12/11/2015,2200067600,"2,630.05",Ajana Ltd
http://statistics.data.gov.uk/id/local-authority/38,Oxfordshire County Council,LOCALITY TEAM -SOUTH,2040,Agency Staff,23/11/2015,2200067626,"2,658.40",Ajana Ltd
http://statistics.data.gov.uk/id/local-authority/38,Oxfordshire County Council,OBS,2040,Agency Staff,01/11/2015,2200051878,"10,400.00",Ashover Group Ltd
http://statistics.data.gov.uk/id/local-authority/38,Oxfordshire County Council,COMMUNICATIONS,2040,Agency Staff,13/11/2015,2200061533,591.6,Blue Skies Services Ltd
http://statistics.data.gov.uk/id/local-authority/38,Oxfordshire County Council,COMMUNICATIONS,2040,Agency Staff,10/11/2015,2200061535,605.65,Blue Skies Services Ltd
http://statistics.data.gov.uk/id/local-authority/38,Oxfordshire County Council,COMMUNICATIONS,2040,Agency Staff,09/11/2015,2200061538,626.4,Blue Skies Services Ltd
http://statistics.data.gov.uk/id/local-authority/38,Oxfordshire County Council,COMMUNICATIONS,2040,Agency Staff,20/11/2015,2200064174,638,Blue Skies Services Ltd
http://statistics.data.gov.uk/id/local-authority/38,Oxfordshire County Council,COMMUNICATIONS,2040,Agency Staff,01/11/2015,2200052096,649.6,Blue Skies Services Ltd
http://statistics.data.gov.uk/id/local-authority/38,Oxfordshire County Council,COMMUNICATIONS,2040,Agency Staff,04/11/2015,2200054723,696,Blue Skies Services Ltd
http://statistics.data.gov.uk/id/local-authority/38,Oxfordshire County Council,COMMUNICATIONS,2040,Agency Staff,03/11/2015,2200054048,719.2,Blue Skies Services Ltd
http://statistics.data.gov.uk/id/local-authority/38,Oxfordshire County Council,COMMUNICATIONS,2040,Agency Staff,03/11/2015,2200054044,"1,403.60",Blue Skies Services Ltd
http://statistics.data.gov.uk/id/local-authority/38,Oxfordshire County Council,FAM SUPP NORTH,2040,Agency Staff,01/11/2015,2200057897,723.8,Caritas Recruitment Ltd
http://statistics.data.gov.uk/id/local-authority/38,Oxfordshire County Council,FAM SUPP NORTH,2040,Agency Staff,01/11/2015,2200057911,740.25,Caritas Recruitment Ltd
http://statistics.data.gov.uk/id/local-authority/38,Oxfordshire County Council,FAM SUPP NORTH,2040,Agency Staff,01/11/2015,2200053382,748.25,Caritas Recruitment Ltd
http://statistics.data.gov.uk/id/local-authority/38,Oxfordshire County Council,FAM SUPP NORTH,2040,Agency Staff,01/11/2015,2200053399,821.25,Caritas Recruitment Ltd
http://statistics.data.gov.uk/id/local-authority/38,Oxfordshire County Council,FAM SUPP NORTH,2040,Agency Staff,01/11/2015,2200057914,970.55,Caritas Recruitment Ltd
http://statistics.data.gov.uk/id/local-authority/38,Oxfordshire County Council,THRIVING FAMILY NRTH,2040,Agency Staff,01/11/2015,2200053111,980.5,Caritas Recruitment Ltd
http://statistics.data.gov.uk/id/local-authority/38,Oxfordshire County Council,ABINGDON HUB,2040,Agency Staff,01/11/2015,2200052034,987,Caritas Recruitment Ltd
http://statistics.data.gov.uk/id/local-authority/38,Oxfordshire County Council,ABINGDON HUB,2040,Agency Staff,19/11/2015,2200066476,987,Caritas Recruitment Ltd
http://statistics.data.gov.uk/id/local-authority/38,Oxfordshire County Council,LOCALITY TEAM - CITY,2040,Agency Staff,11/11/2015,2200058104,"1,031.03",Caritas Recruitment Ltd
http://statistics.data.gov.uk/id/local-authority/38,Oxfordshire County Council,DIDCOT HUB,2040,Agency Staff,01/11/2015,2200051943,"1,037.40",Caritas Recruitment Ltd
http://statistics.data.gov.uk/id/local-authority/38,Oxfordshire County Council,DIDCOT HUB,2040,Agency Staff,01/11/2015,2200051942,"1,055.60",Caritas Recruitment Ltd
http://statistics.data.gov.uk/id/local-authority/38,Oxfordshire County Council,FAM SUPP NORTH,2040,Agency Staff,01/11/2015,2200053383,"1,092.00",Caritas Recruitment Ltd
http://statistics.data.gov.uk/id/local-authority/38,Oxfordshire County Council,FAM SUPP NORTH,2040,Agency Staff,01/11/2015,2200057519,"1,092.00",Caritas Recruitment Ltd
http://statistics.data.gov.uk/id/local-authority/38,Oxfordshire County Council,DIDCOT HUB,2040,Agency Staff,24/11/2015,2200066401,"1,092.00",Caritas Recruitment Ltd
http://statistics.data.gov.uk/id/local-authority/38,Oxfordshire County Council,FAM SUPP NORTH,2040,Agency Staff,01/11/2015,2200053379,"1,095.00",Caritas Recruitment Ltd
http://statistics.data.gov.uk/id/local-authority/38,Oxfordshire County Council,FAM SUPP NORTH,2040,Agency Staff,01/11/2015,2200053391,"1,095.00",Caritas Recruitment Ltd
http://statistics.data.gov.uk/id/local-authority/38,Oxfordshire County Council,FAM SUPP NORTH,2040,Agency Staff,01/11/2015,2200053392,"1,095.00",Caritas Recruitment Ltd
http://statistics.data.gov.uk/id/local-authority/38,Oxfordshire County Council,FAM SUPP NORTH,2040,Agency Staff,01/11/2015,2200053393,"1,095.00",Caritas Recruitment Ltd
http://statistics.data.gov.uk/id/local-authority/38,Oxfordshire County Council,FAM SUPP NORTH,2040,Agency Staff,01/11/2015,2200053404,"1,095.00",Caritas Recruitment Ltd
http://statistics.data.gov.uk/id/local-authority/38,Oxfordshire County Council,LOCALITY TEAM - CITY,2040,Agency Staff,03/11/2015,2200058129,"1,100.93",Caritas Recruitment Ltd
http://statistics.data.gov.uk/id/local-authority/38,Oxfordshire County Council,LOCALITY TEAM - CITY,2040,Agency Staff,01/11/2015,2200052004,"1,118.40",Caritas Recruitment Ltd
http://statistics.data.gov.uk/id/local-authority/38,Oxfordshire County Council,DIDCOT HUB,2040,Agency Staff,03/11/2015,2200066457,"1,201.20",Caritas Recruitment Ltd
http://statistics.data.gov.uk/id/local-authority/38,Oxfordshire County Council,ABINGDON HUB,2040,Agency Staff,01/11/2015,2200052031,"1,217.30",Caritas Recruitment Ltd
http://statistics.data.gov.uk/id/local-authority/38,Oxfordshire County Council,FAM SUPP NORTH,2040,Agency Staff,01/11/2015,2200057903,"1,217.30",Caritas Recruitment Ltd
http://statistics.data.gov.uk/id/local-authority/38,Oxfordshire County Council,FAM SUPP NORTH,2040,Agency Staff,01/11/2015,2200057909,"1,217.30",Caritas Recruitment Ltd
http://statistics.data.gov.uk/id/local-authority/38,Oxfordshire County Council,FAMILY SUPPORT S'TH2,2040,Agency Staff,03/11/2015,2200056686,"1,217.30",Caritas Recruitment Ltd
http://statistics.data.gov.uk/id/local-authority/38,Oxfordshire County Council,ABINGDON HUB,2040,Agency Staff,03/11/2015,2200056973,"1,217.30",Caritas Recruitment Ltd
http://statistics.data.gov.uk/id/local-authority/38,Oxfordshire County Council,ABINGDON HUB,2040,Agency Staff,11/11/2015,2200059723,"1,217.30",Caritas Recruitment Ltd
http://statistics.data.gov.uk/id/local-authority/38,Oxfordshire County Council,ABINGDON HUB,2040,Agency Staff,24/11/2015,2200065767,"1,217.30",Caritas Recruitment Ltd
http://statistics.data.gov.uk/id/local-authority/38,Oxfordshire County Council,FAMILY SUPPORT S'TH2,2040,Agency Staff,24/11/2015,2200066393,"1,217.30",Caritas Recruitment Ltd
http://statistics.data.gov.uk/id/local-authority/38,Oxfordshire County Council,FAMILY SUPPORT S'TH2,2040,Agency Staff,24/11/2015,2200066395,"1,217.30",Caritas Recruitment Ltd
http://statistics.data.gov.uk/id/local-authority/38,Oxfordshire County Council,FAM SUPP NORTH,2040,Agency Staff,30/11/2015,2200069035,"1,217.30",Caritas Recruitment Ltd
http://statistics.data.gov.uk/id/local-authority/38,Oxfordshire County Council,DIDCOT HUB,2040,Agency Staff,10/11/2015,2200057076,"1,225.00",Caritas Recruitment Ltd
http://statistics.data.gov.uk/id/local-authority/38,Oxfordshire County Council,EMERGENCY DUTY TEAM,2040,Agency Staff,24/11/2015,2200065615,"1,226.25",Caritas Recruitment Ltd
http://statistics.data.gov.uk/id/local-authority/38,Oxfordshire County Council,LOCALITY TEAM - CITY,2040,Agency Staff,24/11/2015,2200066235,"1,258.20",Caritas Recruitment Ltd
http://statistics.data.gov.uk/id/local-authority/38,Oxfordshire County Council,DIDCOT HUB,2040,Agency Staff,03/11/2015,2200053329,"1,295.00",Caritas Recruitment Ltd
http://statistics.data.gov.uk/id/local-authority/38,Oxfordshire County Council,LOCALITY TEAM - CITY,2040,Agency Staff,19/11/2015,2200066590,"1,310.63",Caritas Recruitment Ltd
http://statistics.data.gov.uk/id/local-authority/38,Oxfordshire County Council,LITTLEMORE HUB,2040,Agency Staff,19/11/2015,2200066527,"1,332.00",Caritas Recruitment Ltd
http://statistics.data.gov.uk/id/local-authority/38,Oxfordshire County Council,LITTLEMORE HUB,2040,Agency Staff,24/11/2015,2200066049,"1,332.00",Caritas Recruitment Ltd
http://statistics.data.gov.uk/id/local-authority/38,Oxfordshire County Council,DIDCOT HUB,2040,Agency Staff,19/11/2015,2200064317,"1,346.80",Caritas Recruitment Ltd
http://statistics.data.gov.uk/id/local-authority/38,Oxfordshire County Council,FAM SUPP SOUTH,2040,Agency Staff,04/11/2015,2200056546,"1,347.00",Caritas Recruitment Ltd
http://statistics.data.gov.uk/id/local-authority/38,Oxfordshire County Council,THRIVING FAMILY NRTH,2040,Agency Staff,01/11/2015,2200052075,"1,369.00",Caritas Recruitment Ltd
http://statistics.data.gov.uk/id/local-authority/38,Oxfordshire County Council,THRIVING FAMILY NRTH,2040,Agency Staff,01/11/2015,2200052076,"1,369.00",Caritas Recruitment Ltd
http://statistics.data.gov.uk/id/local-authority/38,Oxfordshire County Council,DIDCOT HUB,2040,Agency Staff,01/11/2015,2200051939,"1,385.50",Caritas Recruitment Ltd
http://statistics.data.gov.uk/id/local-authority/38,Oxfordshire County Council,EMERGENCY DUTY TEAM,2040,Agency Staff,24/11/2015,2200064634,"1,569.60",Caritas Recruitment Ltd
http://statistics.data.gov.uk/id/local-authority/38,Oxfordshire County Council,EMERGENCY DUTY TEAM,2040,Agency Staff,01/11/2015,2200061891,"1,800.00",Caritas Recruitment Ltd
http://statistics.data.gov.uk/id/local-authority/38,Oxfordshire County Council,FAM SUPP NORTH,2040,Agency Staff,01/11/2015,2200064028,"3,421.60",Caritas Recruitment Ltd
http://statistics.data.gov.uk/id/local-authority/38,Oxfordshire County Council,LEGAL SERVICES,2040,Agency Staff,24/11/2015,2200064472,"-5,368.28",Champion Employment Ltd
http://statistics.data.gov.uk/id/local-authority/38,Oxfordshire County Council,LEGAL SERVICES,2040,Agency Staff,24/11/2015,2200064452,"-3,251.06",Champion Employment Ltd
http://statistics.data.gov.uk/id/local-authority/38,Oxfordshire County Council,BLUE BADGE,2040,Agency Staff,10/11/2015,2200058714,502.1,Champion Employment Ltd
http://statistics.data.gov.uk/id/local-authority/38,Oxfordshire County Council,PROCUREMENT,2040,Agency Staff,10/11/2015,2200057849,535,Champion Employment Ltd
http://statistics.data.gov.uk/id/local-authority/38,Oxfordshire County Council,FM STH & EAST STAFF,2040,Agency Staff,01/11/2015,2200053659,630.5,Champion Employment Ltd
http://statistics.data.gov.uk/id/local-authority/38,Oxfordshire County Council,CYPF ADMIN,2040,Agency Staff,10/11/2015,2200057583,632.21,Champion Employment Ltd
http://statistics.data.gov.uk/id/local-authority/38,Oxfordshire County Council,FM STH & EAST STAFF,2040,Agency Staff,01/11/2015,2200053655,656.67,Champion Employment Ltd
http://statistics.data.gov.uk/id/local-authority/38,Oxfordshire County Council,FM STH & EAST STAFF,2040,Agency Staff,01/11/2015,2200055184,671.23,Champion Employment Ltd
http://statistics.data.gov.uk/id/local-authority/38,Oxfordshire County Council,FLEET OPERATIONS,2040,Agency Staff,10/11/2015,2200056847,674.38,Champion Employment Ltd
http://statistics.data.gov.uk/id/local-authority/38,Oxfordshire County Council,MASH PROJECT,2040,Agency Staff,10/11/2015,2200067594,680.4,Champion Employment Ltd
http://statistics.data.gov.uk/id/local-authority/38,Oxfordshire County Council,FM STH & EAST STAFF,2040,Agency Staff,10/11/2015,2200064056,731.64,Champion Employment Ltd
http://statistics.data.gov.uk/id/local-authority/38,Oxfordshire County Council,BROADBAND PROJECT,2040,Agency Staff,10/11/2015,2200064094,781.54,Champion Employment Ltd
http://statistics.data.gov.uk/id/local-authority/38,Oxfordshire County Council,CSC MAIN TEAM,2040,Agency Staff,01/11/2015,2200062849,817.45,Champion Employment Ltd
http://statistics.data.gov.uk/id/local-authority/38,Oxfordshire County Council,FLEET OPERATIONS,2040,Agency Staff,10/11/2015,2200057543,842.4,Champion Employment Ltd
http://statistics.data.gov.uk/id/local-authority/38,Oxfordshire County Council,GREEN BOOK SALARIES,2040,Agency Staff,23/11/2015,2200062991,919.08,Champion Employment Ltd
http://statistics.data.gov.uk/id/local-authority/38,Oxfordshire County Council,AUDIT SERVICES,2040,Agency Staff,10/11/2015,2200064082,920.21,Champion Employment Ltd
http://statistics.data.gov.uk/id/local-authority/38,Oxfordshire County Council,Financial Assessment,2040,Agency Staff,01/11/2015,2200062134,955.42,Champion Employment Ltd
http://statistics.data.gov.uk/id/local-authority/38,Oxfordshire County Council,CYPF ADMIN,2040,Agency Staff,10/11/2015,2200057578,991.97,Champion Employment Ltd
http://statistics.data.gov.uk/id/local-authority/38,Oxfordshire County Council,STRATEGY,2040,Agency Staff,12/11/2015,2200063463,"1,029.34",Champion Employment Ltd
http://statistics.data.gov.uk/id/local-authority/38,Oxfordshire County Council,FLEET OPERATIONS,2040,Agency Staff,10/11/2015,2200056931,"1,049.75",Champion Employment Ltd
http://statistics.data.gov.uk/id/local-authority/38,Oxfordshire County Council,SCHOOLS ICT SUPPORT,2040,Agency Staff,24/11/2015,2200065453,"1,060.92",Champion Employment Ltd
http://statistics.data.gov.uk/id/local-authority/38,Oxfordshire County Council,FM STH & EAST STAFF,2040,Agency Staff,10/11/2015,2200057479,"1,219.68",Champion Employment Ltd
http://statistics.data.gov.uk/id/local-authority/38,Oxfordshire County Council,FLEET OPERATIONS,2040,Agency Staff,10/11/2015,2200056915,"1,270.00",Champion Employment Ltd
http://statistics.data.gov.uk/id/local-authority/38,Oxfordshire County Council,FLEET OPERATIONS,2040,Agency Staff,10/11/2015,2200057541,"1,313.56",Champion Employment Ltd
http://statistics.data.gov.uk/id/local-authority/38,Oxfordshire County Council,BRIDGES STAFF,2040,Agency Staff,10/11/2015,2200056818,"1,350.00",Champion Employment Ltd
http://statistics.data.gov.uk/id/local-authority/38,Oxfordshire County Council,ACCOUNTS PAYABLE,2040,Agency Staff,24/11/2015,2200065452,"1,353.06",Champion Employment Ltd
http://statistics.data.gov.uk/id/local-authority/38,Oxfordshire County Council,DISCLOSURE & BARRING,2040,Agency Staff,04/11/2015,2200053768,"1,410.11",Champion Employment Ltd
http://statistics.data.gov.uk/id/local-authority/38,Oxfordshire County Council,FM STH & EAST STAFF,2040,Agency Staff,10/11/2015,2200064059,"1,420.66",Champion Employment Ltd
http://statistics.data.gov.uk/id/local-authority/38,Oxfordshire County Council,FM CENTRAL STAFF,2040,Agency Staff,10/11/2015,2200056868,"1,464.54",Champion Employment Ltd
http://statistics.data.gov.uk/id/local-authority/38,Oxfordshire County Council,STRATEGY INVESTMENT,2040,Agency Staff,10/11/2015,2200064078,"1,479.84",Champion Employment Ltd
http://statistics.data.gov.uk/id/local-authority/38,Oxfordshire County Council,RECRUITMENT+MEDICALS,2040,Agency Staff,10/11/2015,2200059591,"1,488.22",Champion Employment Ltd
http://statistics.data.gov.uk/id/local-authority/38,Oxfordshire County Council,CYPF ADMIN,2040,Agency Staff,01/11/2015,2200053829,"1,519.46",Champion Employment Ltd
http://statistics.data.gov.uk/id/local-authority/38,Oxfordshire County Council,CYPF ADMIN,2040,Agency Staff,26/11/2015,2200067005,"1,523.87",Champion Employment Ltd
http://statistics.data.gov.uk/id/local-authority/38,Oxfordshire County Council,OBS,2040,Agency Staff,10/11/2015,2200066529,"1,560.00",Champion Employment Ltd
http://statistics.data.gov.uk/id/local-authority/38,Oxfordshire County Council,STRATEGY,2040,Agency Staff,12/11/2015,2200063482,"1,599.88",Champion Employment Ltd
http://statistics.data.gov.uk/id/local-authority/38,Oxfordshire County Council,FLEET OPERATIONS,2040,Agency Staff,10/11/2015,2200056827,"1,629.45",Champion Employment Ltd
http://statistics.data.gov.uk/id/local-authority/38,Oxfordshire County Council,SOC&HEALTH CARE TEAM,2040,Agency Staff,01/11/2015,2200063882,"1,634.43",Champion Employment Ltd
http://statistics.data.gov.uk/id/local-authority/38,Oxfordshire County Council,CYPF ADMIN,2040,Agency Staff,06/11/2015,2200067614,"1,686.93",Champion Employment Ltd
http://statistics.data.gov.uk/id/local-authority/38,Oxfordshire County Council,FLEET OPERATIONS,2040,Agency Staff,10/11/2015,2200056843,"1,690.42",Champion Employment Ltd
http://statistics.data.gov.uk/id/local-authority/38,Oxfordshire County Council,CORPORATE FINANCE,2040,Agency Staff,10/11/2015,2200064066,"1,699.18",Champion Employment Ltd
http://statistics.data.gov.uk/id/local-authority/38,Oxfordshire County Council,TRADING STANDARDS,2040,Agency Staff,26/11/2015,2200067303,"1,736.00",Champion Employment Ltd
http://statistics.data.gov.uk/id/local-authority/38,Oxfordshire County Council,FM STH & EAST STAFF,2040,Agency Staff,10/11/2015,2200057474,"1,815.59",Champion Employment Ltd
http://statistics.data.gov.uk/id/local-authority/38,Oxfordshire County Council,BUSINESS SYSTEMS,2040,Agency Staff,10/11/2015,2200064062,"1,885.00",Champion Employment Ltd
http://statistics.data.gov.uk/id/local-authority/38,Oxfordshire County Council,CYPF ADMIN,2040,Agency Staff,10/11/2015,2200057580,"1,892.87",Champion Employment Ltd
http://statistics.data.gov.uk/id/local-authority/38,Oxfordshire County Council,LEGAL SERVICES,2040,Agency Staff,01/11/2015,2200055579,"1,904.38",Champion Employment Ltd
http://statistics.data.gov.uk/id/local-authority/38,Oxfordshire County Council,LEGAL SERVICES,2040,Agency Staff,01/11/2015,2200055389,"1,916.96",Champion Employment Ltd
http://statistics.data.gov.uk/id/local-authority/38,Oxfordshire County Council,LEGAL SERVICES,2040,Agency Staff,01/11/2015,2200055428,"1,916.96",Champion Employment Ltd
http://statistics.data.gov.uk/id/local-authority/38,Oxfordshire County Council,HSPO COSTS,2040,Agency Staff,10/11/2015,2200069717,"1,923.49",Champion Employment Ltd
http://statistics.data.gov.uk/id/local-authority/38,Oxfordshire County Council,INFORMATION & COMMS,2040,Agency Staff,12/11/2015,2200063421,"1,954.36",Champion Employment Ltd
http://statistics.data.gov.uk/id/local-authority/38,Oxfordshire County Council,Financial Assessment,2040,Agency Staff,06/11/2015,2200055195,"1,959.61",Champion Employment Ltd
http://statistics.data.gov.uk/id/local-authority/38,Oxfordshire County Council,COMMENTS&INFORMATION,2040,Agency Staff,10/11/2015,2200061079,"1,981.34",Champion Employment Ltd
http://statistics.data.gov.uk/id/local-authority/38,Oxfordshire County Council,FLEET OPERATIONS,2040,Agency Staff,10/11/2015,2200056841,"1,995.36",Champion Employment Ltd
http://statistics.data.gov.uk/id/local-authority/38,Oxfordshire County Council,RECRUITMENT+MEDICALS,2040,Agency Staff,10/11/2015,2200059600,"1,996.98",Champion Employment Ltd
http://statistics.data.gov.uk/id/local-authority/38,Oxfordshire County Council,Corp Proc Service,2040,Agency Staff,10/11/2015,2200057829,"2,007.93",Champion Employment Ltd
http://statistics.data.gov.uk/id/local-authority/38,Oxfordshire County Council,LEP,2040,Agency Staff,10/11/2015,2200057940,"2,075.99",Champion Employment Ltd
http://statistics.data.gov.uk/id/local-authority/38,Oxfordshire County Council,CSC SUPP & SERVICES,2040,Agency Staff,10/11/2015,2200060566,"2,078.40",Champion Employment Ltd
http://statistics.data.gov.uk/id/local-authority/38,Oxfordshire County Council,FM STH & EAST STAFF,2040,Agency Staff,10/11/2015,2200057835,"2,082.92",Champion Employment Ltd
http://statistics.data.gov.uk/id/local-authority/38,Oxfordshire County Council,FLEET OPERATIONS,2040,Agency Staff,10/11/2015,2200056829,"2,089.19",Champion Employment Ltd
http://statistics.data.gov.uk/id/local-authority/38,Oxfordshire County Council,POLICY & IMPROVEMENT,2040,Agency Staff,10/11/2015,2200057881,"2,107.54",Champion Employment Ltd
http://statistics.data.gov.uk/id/local-authority/38,Oxfordshire County Council,PENSION FUND,2040,Agency Staff,10/11/2015,2200060800,"2,136.68",Champion Employment Ltd
http://statistics.data.gov.uk/id/local-authority/38,Oxfordshire County Council,FLEET OPERATIONS,2040,Agency Staff,10/11/2015,2200056925,"2,281.05",Champion Employment Ltd
http://statistics.data.gov.uk/id/local-authority/38,Oxfordshire County Council,LEP,2040,Agency Staff,10/11/2015,2200057938,"2,289.84",Champion Employment Ltd
http://statistics.data.gov.uk/id/local-authority/38,Oxfordshire County Council,FLEET OPERATIONS,2040,Agency Staff,10/11/2015,2200056846,"2,314.35",Champion Employment Ltd
http://statistics.data.gov.uk/id/local-authority/38,Oxfordshire County Council,FLEET OPERATIONS,2040,Agency Staff,10/11/2015,2200056935,"2,314.35",Champion Employment Ltd
http://statistics.data.gov.uk/id/local-authority/38,Oxfordshire County Council,HSPO COSTS,2040,Agency Staff,10/11/2015,2200057852,"2,322.70",Champion Employment Ltd
http://statistics.data.gov.uk/id/local-authority/38,Oxfordshire County Council,FLEET OPERATIONS,2040,Agency Staff,10/11/2015,2200056831,"2,364.30",Champion Employment Ltd
http://statistics.data.gov.uk/id/local-authority/38,Oxfordshire County Council,INFORMATION & COMMS,2040,Agency Staff,12/11/2015,2200063455,"2,368.46",Champion Employment Ltd
http://statistics.data.gov.uk/id/local-authority/38,Oxfordshire County Council,FLEET OPERATIONS,2040,Agency Staff,10/11/2015,2200056849,"2,444.19",Champion Employment Ltd
http://statistics.data.gov.uk/id/local-authority/38,Oxfordshire County Council,CYPF ADMIN,2040,Agency Staff,05/11/2015,2200054559,"2,446.88",Champion Employment Ltd
http://statistics.data.gov.uk/id/local-authority/38,Oxfordshire County Council,STRATEGY,2040,Agency Staff,12/11/2015,2200063469,"2,470.42",Champion Employment Ltd
http://statistics.data.gov.uk/id/local-authority/38,Oxfordshire County Council,FM CENTRAL STAFF,2040,Agency Staff,10/11/2015,2200056789,"2,482.00",Champion Employment Ltd
http://statistics.data.gov.uk/id/local-authority/38,Oxfordshire County Council,STRATEGY INVESTMENT,2040,Agency Staff,10/11/2015,2200057864,"2,500.00",Champion Employment Ltd
http://statistics.data.gov.uk/id/local-authority/38,Oxfordshire County Council,LEGAL SERVICES,2040,Agency Staff,10/11/2015,2200062380,"2,532.74",Champion Employment Ltd
http://statistics.data.gov.uk/id/local-authority/38,Oxfordshire County Council,RESOURCE EFFICIENCY,2040,Agency Staff,10/11/2015,2200057726,"2,567.04",Champion Employment Ltd
http://statistics.data.gov.uk/id/local-authority/38,Oxfordshire County Council,STRATEGY,2040,Agency Staff,12/11/2015,2200063478,"2,588.89",Champion Employment Ltd
http://statistics.data.gov.uk/id/local-authority/38,Oxfordshire County Council,CSC SUPP & SERVICES,2040,Agency Staff,19/11/2015,2200068024,"2,603.60",Champion Employment Ltd
http://statistics.data.gov.uk/id/local-authority/38,Oxfordshire County Council,SERVICE SUPPORT MGR,2040,Agency Staff,10/11/2015,2200058843,"2,606.87",Champion Employment Ltd
http://statistics.data.gov.uk/id/local-authority/38,Oxfordshire County Council,FM STH & EAST STAFF,2040,Agency Staff,01/11/2015,2200053656,"2,765.81",Champion Employment Ltd
http://statistics.data.gov.uk/id/local-authority/38,Oxfordshire County Council,CORPORATE FINANCE,2040,Agency Staff,10/11/2015,2200062464,"2,951.03",Champion Employment Ltd
http://statistics.data.gov.uk/id/local-authority/38,Oxfordshire County Council,BROADBAND PROJECT,2040,Agency Staff,10/11/2015,2200056874,"2,958.00",Champion Employment Ltd
http://statistics.data.gov.uk/id/local-authority/38,Oxfordshire County Council,CSC SUPP & SERVICES,2040,Agency Staff,10/11/2015,2200066442,"2,964.30",Champion Employment Ltd
http://statistics.data.gov.uk/id/local-authority/38,Oxfordshire County Council,Corp Proc Service,2040,Agency Staff,10/11/2015,2200057832,"2,987.91",Champion Employment Ltd
http://statistics.data.gov.uk/id/local-authority/38,Oxfordshire County Council,STRATEGY,2040,Agency Staff,12/11/2015,2200063487,"3,037.61",Champion Employment Ltd
http://statistics.data.gov.uk/id/local-authority/38,Oxfordshire County Council,BROADBAND PROJECT,2040,Agency Staff,10/11/2015,2200058134,"3,045.00",Champion Employment Ltd
http://statistics.data.gov.uk/id/local-authority/38,Oxfordshire County Council,BRIDGES STAFF,2040,Agency Staff,01/11/2015,2200055181,"3,054.88",Champion Employment Ltd
http://statistics.data.gov.uk/id/local-authority/38,Oxfordshire County Council,FM STH & EAST STAFF,2040,Agency Staff,01/11/2015,2200057600,"3,082.24",Champion Employment Ltd
http://statistics.data.gov.uk/id/local-authority/38,Oxfordshire County Council,STRATEGY,2040,Agency Staff,12/11/2015,2200063419,"3,221.76",Champion Employment Ltd
http://statistics.data.gov.uk/id/local-authority/38,Oxfordshire County Council,MCS,2040,Agency Staff,01/11/2015,2200062848,"3,250.00",Champion Employment Ltd
http://statistics.data.gov.uk/id/local-authority/38,Oxfordshire County Council,LEGAL SERVICES,2040,Agency Staff,24/11/2015,2200064462,"3,251.06",Champion Employment Ltd
http://statistics.data.gov.uk/id/local-authority/38,Oxfordshire County Council,SAPCOMPETENCYCENTRE,2040,Agency Staff,10/11/2015,2200057875,"3,256.00",Champion Employment Ltd
http://statistics.data.gov.uk/id/local-authority/38,Oxfordshire County Council,OBS,2040,Agency Staff,10/11/2015,2200066530,"3,280.00",Champion Employment Ltd
http://statistics.data.gov.uk/id/local-authority/38,Oxfordshire County Council,BRIDGES STAFF,2040,Agency Staff,01/11/2015,2200057750,"3,372.94",Champion Employment Ltd
http://statistics.data.gov.uk/id/local-authority/38,Oxfordshire County Council,COMMERCIAL MANAGEMEN,2040,Agency Staff,01/11/2015,2200055392,"3,643.06",Champion Employment Ltd
http://statistics.data.gov.uk/id/local-authority/38,Oxfordshire County Council,PROCUREMENT,2040,Agency Staff,01/11/2015,2200062840,"3,837.00",Champion Employment Ltd
http://statistics.data.gov.uk/id/local-authority/38,Oxfordshire County Council,LEGAL SERVICES,2040,Agency Staff,10/11/2015,2200062363,"3,884.08",Champion Employment Ltd
http://statistics.data.gov.uk/id/local-authority/38,Oxfordshire County Council,S38 INSPECT & OTHER,2040,Agency Staff,10/11/2015,2200060553,"3,997.67",Champion Employment Ltd
http://statistics.data.gov.uk/id/local-authority/38,Oxfordshire County Council,INT CUST SERVS PROG,2040,Agency Staff,10/11/2015,2200064067,"4,309.20",Champion Employment Ltd
http://statistics.data.gov.uk/id/local-authority/38,Oxfordshire County Council,P&S STAFF,2040,Agency Staff,06/11/2015,2200059322,"5,175.00",Champion Employment Ltd
http://statistics.data.gov.uk/id/local-authority/38,Oxfordshire County Council,OBS,2040,Agency Staff,10/11/2015,2200066531,"5,330.00",Champion Employment Ltd
http://statistics.data.gov.uk/id/local-authority/38,Oxfordshire County Council,LEGAL SERVICES,2040,Agency Staff,01/11/2015,2200055103,"5,368.28",Champion Employment Ltd
http://statistics.data.gov.uk/id/local-authority/38,Oxfordshire County Council,LEGAL SERVICES,2040,Agency Staff,24/11/2015,2200064477,"5,368.28",Champion Employment Ltd
http://statistics.data.gov.uk/id/local-authority/38,Oxfordshire County Council,ICT OPERATIONS & MAI,2040,Agency Staff,10/11/2015,2200056749,"5,580.00",Champion Employment Ltd
http://statistics.data.gov.uk/id/local-authority/38,Oxfordshire County Council,SAPCOMPETENCYCENTRE,2040,Agency Staff,26/11/2015,2200067188,"6,186.40",Champion Employment Ltd
http://statistics.data.gov.uk/id/local-authority/38,Oxfordshire County Council,S38 INSPECT & OTHER,2040,Agency Staff,10/11/2015,2200060556,"7,031.40",Champion Employment Ltd
http://statistics.data.gov.uk/id/local-authority/38,Oxfordshire County Council,CORPORATE FINANCE,2040,Agency Staff,03/11/2015,2200056663,"7,040.00",Champion Employment Ltd
http://statistics.data.gov.uk/id/local-authority/38,Oxfordshire County Council,BRIDGES STAFF,2040,Agency Staff,10/11/2015,2200062485,"7,241.71",Champion Employment Ltd
http://statistics.data.gov.uk/id/local-authority/38,Oxfordshire County Council,BUSINESS SYSTEMS,2040,Agency Staff,10/11/2015,2200064068,"7,635.50",Champion Employment Ltd
http://statistics.data.gov.uk/id/local-authority/38,Oxfordshire County Council,BRIDGES STAFF,2040,Agency Staff,01/11/2015,2200062395,"7,902.15",Champion Employment Ltd
http://statistics.data.gov.uk/id/local-authority/38,Oxfordshire County Council,ICT OPERATIONS & MAI,2040,Agency Staff,10/11/2015,2200057878,"8,611.50",Champion Employment Ltd
http://statistics.data.gov.uk/id/local-authority/38,Oxfordshire County Council,SM QUALITY ASSURANCE,2040,Agency Staff,10/11/2015,2200059720,"8,736.24",Champion Employment Ltd
http://statistics.data.gov.uk/id/local-authority/38,Oxfordshire County Council,MASH PROJECT,2040,Agency Staff,10/11/2015,2200056888,"9,700.00",Champion Employment Ltd
http://statistics.data.gov.uk/id/local-authority/38,Oxfordshire County Council,OXFORD CITY,2040,Agency Staff,10/11/2015,2200064064,"9,894.60",Champion Employment Ltd
http://statistics.data.gov.uk/id/local-authority/38,Oxfordshire County Council,DEPUTY DIRECTOR &MAN,2040,Agency Staff,10/11/2015,2200056886,"11,820.30",Champion Employment Ltd
http://statistics.data.gov.uk/id/local-authority/38,Oxfordshire County Council,PROCUREMENT,2040,Agency Staff,03/11/2015,2200056271,"14,469.84",Champion Employment Ltd
http://statistics.data.gov.uk/id/local-authority/38,Oxfordshire County Council,MAJOR PROGRAMMES,2040,Agency Staff,13/11/2015,2200062236,"18,389.70",Champion Employment Ltd
http://statistics.data.gov.uk/id/local-authority/38,Oxfordshire County Council,HOME SUPPORT,2040,Agency Staff,01/11/2015,2200053842,"1,222.02",Civicare Oxford Ltd
http://statistics.data.gov.uk/id/local-authority/38,Oxfordshire County Council,LD ILF,2040,Agency Staff,01/11/2015,2200051876,"1,195.10",Completely Care Ltd
http://statistics.data.gov.uk/id/local-authority/38,Oxfordshire County Council,LEARN DISAB TEAM STH,2040,Agency Staff,01/11/2015,2200052244,"1,195.10",Completely Care Ltd
http://statistics.data.gov.uk/id/local-authority/38,Oxfordshire County Council,LD ILF,2040,Agency Staff,02/11/2015,2200052714,"1,195.10",Completely Care Ltd
http://statistics.data.gov.uk/id/local-authority/38,Oxfordshire County Council,LD ILF,2040,Agency Staff,09/11/2015,2200055960,"1,195.10",Completely Care Ltd
http://statistics.data.gov.uk/id/local-authority/38,Oxfordshire County Council,LEARN DISAB TEAM STH,2040,Agency Staff,09/11/2015,2200056082,"1,195.10",Completely Care Ltd
http://statistics.data.gov.uk/id/local-authority/38,Oxfordshire County Council,LD ILF,2040,Agency Staff,23/11/2015,2200067802,"1,195.10",Completely Care Ltd
http://statistics.data.gov.uk/id/local-authority/38,Oxfordshire County Council,LEARN DISAB TEAM STH,2040,Agency Staff,01/11/2015,2200051877,"1,231.66",Completely Care Ltd
http://statistics.data.gov.uk/id/local-authority/38,Oxfordshire County Council,NCS,2040,Agency Staff,09/11/2015,2200055923,974.7,Dedication & Inspiration Ltd
http://statistics.data.gov.uk/id/local-authority/38,Oxfordshire County Council,ASSESSMENT TEAM NORT,2040,Agency Staff,10/11/2015,2200058882,517.5,Eden Brown Recruitment Ltd
http://statistics.data.gov.uk/id/local-authority/38,Oxfordshire County Council,MASH PROJECT,2040,Agency Staff,01/11/2015,2200063556,731.25,Eden Brown Recruitment Ltd
http://statistics.data.gov.uk/id/local-authority/38,Oxfordshire County Council,EMERGENCY DUTY TEAM,2040,Agency Staff,01/11/2015,2200069792,761.21,Eden Brown Recruitment Ltd
http://statistics.data.gov.uk/id/local-authority/38,Oxfordshire County Council,EMERGENCY DUTY TEAM,2040,Agency Staff,01/11/2015,2200054675,781.2,Eden Brown Recruitment Ltd
http://statistics.data.gov.uk/id/local-authority/38,Oxfordshire County Council,MASH PROJECT,2040,Agency Staff,26/11/2015,2200067155,"1,031.25",Eden Brown Recruitment Ltd
http://statistics.data.gov.uk/id/local-authority/38,Oxfordshire County Council,EMERGENCY DUTY TEAM,2040,Agency Staff,01/11/2015,2200054670,"1,054.50",Eden Brown Recruitment Ltd
http://statistics.data.gov.uk/id/local-authority/38,Oxfordshire County Council,EMERGENCY DUTY TEAM,2040,Agency Staff,01/11/2015,2200054673,"1,054.50",Eden Brown Recruitment Ltd
http://statistics.data.gov.uk/id/local-authority/38,Oxfordshire County Council,FAMILY SUPPORT S'TH2,2040,Agency Staff,03/11/2015,2200052817,"1,170.90",Eden Brown Recruitment Ltd
http://statistics.data.gov.uk/id/local-authority/38,Oxfordshire County Council,FAMILY SUPPORT S'TH2,2040,Agency Staff,10/11/2015,2200059574,"1,170.90",Eden Brown Recruitment Ltd
http://statistics.data.gov.uk/id/local-authority/38,Oxfordshire County Council,MASH PROJECT,2040,Agency Staff,01/11/2015,2200063535,"1,237.50",Eden Brown Recruitment Ltd
http://statistics.data.gov.uk/id/local-authority/38,Oxfordshire County Council,ASSESSMENT TEAM NORT,2040,Agency Staff,10/11/2015,2200059017,"1,276.50",Eden Brown Recruitment Ltd
http://statistics.data.gov.uk/id/local-authority/38,Oxfordshire County Council,FAMILY SUPPORT S'TH2,2040,Agency Staff,03/11/2015,2200052816,"1,325.85",Eden Brown Recruitment Ltd
http://statistics.data.gov.uk/id/local-authority/38,Oxfordshire County Council,ASSESSMENT TEAM NORT,2040,Agency Staff,10/11/2015,2200059015,"1,338.10",Eden Brown Recruitment Ltd
http://statistics.data.gov.uk/id/local-authority/38,Oxfordshire County Council,FAMILY SUPPORT S'TH2,2040,Agency Staff,10/11/2015,2200057536,"1,387.50",Eden Brown Recruitment Ltd
http://statistics.data.gov.uk/id/local-authority/38,Oxfordshire County Council,FAMILY SUPPORT S'TH2,2040,Agency Staff,10/11/2015,2200059588,"1,387.50",Eden Brown Recruitment Ltd
http://statistics.data.gov.uk/id/local-authority/38,Oxfordshire County Council,FAMILY SUPPORT S'TH2,2040,Agency Staff,10/11/2015,2200059599,"1,387.50",Eden Brown Recruitment Ltd
http://statistics.data.gov.uk/id/local-authority/38,Oxfordshire County Council,FAMILY SUPPORT S'TH2,2040,Agency Staff,10/11/2015,2200059596,"1,399.20",Eden Brown Recruitment Ltd
http://statistics.data.gov.uk/id/local-authority/38,Oxfordshire County Council,FAMILY SUPPORT S'TH2,2040,Agency Staff,18/11/2015,2200066403,"1,399.20",Eden Brown Recruitment Ltd
http://statistics.data.gov.uk/id/local-authority/38,Oxfordshire County Council,FAMILY SUPPORT S'TH2,2040,Agency Staff,03/11/2015,2200056687,"1,421.10",Eden Brown Recruitment Ltd
http://statistics.data.gov.uk/id/local-authority/38,Oxfordshire County Council,LOOKED AFTER NORTH,2040,Agency Staff,01/11/2015,2200053418,"1,422.85",Eden Brown Recruitment Ltd
http://statistics.data.gov.uk/id/local-authority/38,Oxfordshire County Council,FAMILY SUPPORT S'TH2,2040,Agency Staff,17/11/2015,2200061561,"1,445.55",Eden Brown Recruitment Ltd
http://statistics.data.gov.uk/id/local-authority/38,Oxfordshire County Council,FAMILY SUPPORT S'TH2,2040,Agency Staff,27/11/2015,2200067422,"1,476.28",Eden Brown Recruitment Ltd
http://statistics.data.gov.uk/id/local-authority/38,Oxfordshire County Council,FAMILY SUPPORT S'TH2,2040,Agency Staff,10/11/2015,2200057535,"1,538.64",Eden Brown Recruitment Ltd
http://statistics.data.gov.uk/id/local-authority/38,Oxfordshire County Council,FAMILY SUPPORT S'TH2,2040,Agency Staff,10/11/2015,2200057538,"1,682.10",Eden Brown Recruitment Ltd
http://statistics.data.gov.uk/id/local-authority/38,Oxfordshire County Council,EMERGENCY DUTY TEAM,2040,Agency Staff,01/11/2015,2200054671,"2,181.60",Eden Brown Recruitment Ltd
http://statistics.data.gov.uk/id/local-authority/38,Oxfordshire County Council,DEPUTY DIRECTOR &MAN,2040,Agency Staff,27/11/2015,2200069091,"10,720.00",GatenbySanderson Ltd
http://statistics.data.gov.uk/id/local-authority/38,Oxfordshire County Council,MANAGEMENT,2040,Agency Staff,18/11/2015,2200062944,"10,890.00",GatenbySanderson Ltd
http://statistics.data.gov.uk/id/local-authority/38,Oxfordshire County Council,DEPUTY DIRECTOR &MAN,2040,Agency Staff,03/11/2015,2200053120,"11,390.00",GatenbySanderson Ltd
http://statistics.data.gov.uk/id/local-authority/38,Oxfordshire County Council,COMMUNICATIONS,2040,Agency Staff,05/11/2015,2200055164,709.95,Hays Specialist Recruitment Ltd
http://statistics.data.gov.uk/id/local-authority/38,Oxfordshire County Council,COMMUNICATIONS,2040,Agency Staff,05/11/2015,2200055165,894.08,Hays Specialist Recruitment Ltd
http://statistics.data.gov.uk/id/local-authority/38,Oxfordshire County Council,COMMUNICATIONS,2040,Agency Staff,05/11/2015,2200055172,963.94,Hays Specialist Recruitment Ltd
http://statistics.data.gov.uk/id/local-authority/38,Oxfordshire County Council,COMMUNICATIONS,2040,Agency Staff,05/11/2015,2200055170,"1,031.00",Hays Specialist Recruitment Ltd
http://statistics.data.gov.uk/id/local-authority/38,Oxfordshire County Council,COMMUNICATIONS,2040,Agency Staff,05/11/2015,2200055166,"1,125.98",Hays Specialist Recruitment Ltd
http://statistics.data.gov.uk/id/local-authority/38,Oxfordshire County Council,COMMUNICATIONS,2040,Agency Staff,05/11/2015,2200055169,"1,137.16",Hays Specialist Recruitment Ltd
http://statistics.data.gov.uk/id/local-authority/38,Oxfordshire County Council,COMMUNICATIONS,2040,Agency Staff,05/11/2015,2200055175,"1,145.54",Hays Specialist Recruitment Ltd
http://statistics.data.gov.uk/id/local-authority/38,Oxfordshire County Council,COMMUNICATIONS,2040,Agency Staff,05/11/2015,2200055157,"1,166.50",Hays Specialist Recruitment Ltd
http://statistics.data.gov.uk/id/local-authority/38,Oxfordshire County Council,COMMUNICATIONS,2040,Agency Staff,05/11/2015,2200055162,"1,201.43",Hays Specialist Recruitment Ltd
http://statistics.data.gov.uk/id/local-authority/38,Oxfordshire County Council,EAST OXFORD HUB,2040,Agency Staff,01/11/2015,2200051906,540,HCL Social Care Ltd
http://statistics.data.gov.uk/id/local-authority/38,Oxfordshire County Council,LOOKED AFTER NORTH,2040,Agency Staff,25/11/2015,2200066538,822.5,HCL Social Care Ltd
http://statistics.data.gov.uk/id/local-authority/38,Oxfordshire County Council,CENTRAL HOSP TEAM,2040,Agency Staff,18/11/2015,2200061205,858,HCL Social Care Ltd
http://statistics.data.gov.uk/id/local-authority/38,Oxfordshire County Council,FAMILY SUPPORT N'TH2,2040,Agency Staff,17/11/2015,2200062175,"1,008.00",HCL Social Care Ltd
http://statistics.data.gov.uk/id/local-authority/38,Oxfordshire County Council,LOOKED AFTER NORTH,2040,Agency Staff,16/11/2015,2200059768,"1,032.50",HCL Social Care Ltd
http://statistics.data.gov.uk/id/local-authority/38,Oxfordshire County Council,EAST OXFORD HUB,2040,Agency Staff,01/11/2015,2200051892,"1,080.00",HCL Social Care Ltd
http://statistics.data.gov.uk/id/local-authority/38,Oxfordshire County Council,EAST OXFORD HUB,2040,Agency Staff,01/11/2015,2200051897,"1,080.00",HCL Social Care Ltd
http://statistics.data.gov.uk/id/local-authority/38,Oxfordshire County Council,EAST OXFORD HUB,2040,Agency Staff,01/11/2015,2200051904,"1,080.00",HCL Social Care Ltd
http://statistics.data.gov.uk/id/local-authority/38,Oxfordshire County Council,FAMILY SUPPORT N'TH2,2040,Agency Staff,17/11/2015,2200062179,"1,080.00",HCL Social Care Ltd
http://statistics.data.gov.uk/id/local-authority/38,Oxfordshire County Council,LEARN DISAB TEAM CTY,2040,Agency Staff,03/11/2015,2200053309,"1,152.00",HCL Social Care Ltd
http://statistics.data.gov.uk/id/local-authority/38,Oxfordshire County Council,LEARN DISAB TEAM CTY,2040,Agency Staff,16/11/2015,2200060129,"1,152.00",HCL Social Care Ltd
http://statistics.data.gov.uk/id/local-authority/38,Oxfordshire County Council,LOOKED AFTER NORTH,2040,Agency Staff,24/11/2015,2200065630,"1,225.00",HCL Social Care Ltd
http://statistics.data.gov.uk/id/local-authority/38,Oxfordshire County Council,CENTRAL HOSP TEAM,2040,Agency Staff,30/11/2015,2200067899,"1,237.50",HCL Social Care Ltd
http://statistics.data.gov.uk/id/local-authority/38,Oxfordshire County Council,ASSESS TEAM SOUTH,2040,Agency Staff,01/11/2015,2200063887,"1,260.00",HCL Social Care Ltd
http://statistics.data.gov.uk/id/local-authority/38,Oxfordshire County Council,LOOKED AFTER NORTH,2040,Agency Staff,01/11/2015,2200053411,"1,295.00",HCL Social Care Ltd
http://statistics.data.gov.uk/id/local-authority/38,Oxfordshire County Council,LOOKED AFTER NORTH,2040,Agency Staff,10/11/2015,2200057315,"1,295.00",HCL Social Care Ltd
http://statistics.data.gov.uk/id/local-authority/38,Oxfordshire County Council,CENTRAL HOSP TEAM,2040,Agency Staff,04/11/2015,2200059623,"1,303.50",HCL Social Care Ltd
http://statistics.data.gov.uk/id/local-authority/38,Oxfordshire County Council,LOOKED AFTER NORTH,2040,Agency Staff,03/11/2015,2200053376,"1,312.50",HCL Social Care Ltd
http://statistics.data.gov.uk/id/local-authority/38,Oxfordshire County Council,EAST OXFORD HUB,2040,Agency Staff,01/11/2015,2200051893,"1,332.00",HCL Social Care Ltd
http://statistics.data.gov.uk/id/local-authority/38,Oxfordshire County Council,EAST OXFORD HUB,2040,Agency Staff,01/11/2015,2200051894,"1,332.00",HCL Social Care Ltd
http://statistics.data.gov.uk/id/local-authority/38,Oxfordshire County Council,EAST OXFORD HUB,2040,Agency Staff,01/11/2015,2200051895,"1,332.00",HCL Social Care Ltd
http://statistics.data.gov.uk/id/local-authority/38,Oxfordshire County Council,EAST OXFORD HUB,2040,Agency Staff,01/11/2015,2200051899,"1,332.00",HCL Social Care Ltd
http://statistics.data.gov.uk/id/local-authority/38,Oxfordshire County Council,EAST OXFORD HUB,2040,Agency Staff,01/11/2015,2200051900,"1,332.00",HCL Social Care Ltd
http://statistics.data.gov.uk/id/local-authority/38,Oxfordshire County Council,EAST OXFORD HUB,2040,Agency Staff,01/11/2015,2200051901,"1,332.00",HCL Social Care Ltd
http://statistics.data.gov.uk/id/local-authority/38,Oxfordshire County Council,EAST OXFORD HUB,2040,Agency Staff,01/11/2015,2200051903,"1,332.00",HCL Social Care Ltd
http://statistics.data.gov.uk/id/local-authority/38,Oxfordshire County Council,EAST OXFORD HUB,2040,Agency Staff,01/11/2015,2200051922,"1,332.00",HCL Social Care Ltd
http://statistics.data.gov.uk/id/local-authority/38,Oxfordshire County Council,EAST OXFORD HUB,2040,Agency Staff,03/11/2015,2200059149,"1,332.00",HCL Social Care Ltd
http://statistics.data.gov.uk/id/local-authority/38,Oxfordshire County Council,FAM SUPP NORTH,2040,Agency Staff,04/11/2015,2200053374,"1,332.00",HCL Social Care Ltd
http://statistics.data.gov.uk/id/local-authority/38,Oxfordshire County Council,FAM SUPP NORTH,2040,Agency Staff,11/11/2015,2200058817,"1,332.00",HCL Social Care Ltd
http://statistics.data.gov.uk/id/local-authority/38,Oxfordshire County Council,FAM SUPP NORTH,2040,Agency Staff,11/11/2015,2200058831,"1,332.00",HCL Social Care Ltd
http://statistics.data.gov.uk/id/local-authority/38,Oxfordshire County Council,EAST OXFORD HUB,2040,Agency Staff,11/11/2015,2200059142,"1,332.00",HCL Social Care Ltd
http://statistics.data.gov.uk/id/local-authority/38,Oxfordshire County Council,EAST OXFORD HUB,2040,Agency Staff,16/11/2015,2200067852,"1,332.00",HCL Social Care Ltd
http://statistics.data.gov.uk/id/local-authority/38,Oxfordshire County Council,FAM SUPP NORTH,2040,Agency Staff,17/11/2015,2200062177,"1,332.00",HCL Social Care Ltd
http://statistics.data.gov.uk/id/local-authority/38,Oxfordshire County Council,FAM SUPP NORTH,2040,Agency Staff,24/11/2015,2200065629,"1,332.00",HCL Social Care Ltd
http://statistics.data.gov.uk/id/local-authority/38,Oxfordshire County Council,EAST OXFORD HUB,2040,Agency Staff,24/11/2015,2200067850,"1,332.00",HCL Social Care Ltd
http://statistics.data.gov.uk/id/local-authority/38,Oxfordshire County Council,FAMILY SUPPORT N'TH2,2040,Agency Staff,26/11/2015,2200067292,"1,332.00",HCL Social Care Ltd
http://statistics.data.gov.uk/id/local-authority/38,Oxfordshire County Council,CENTRAL HOSP TEAM,2040,Agency Staff,03/11/2015,2200054591,"1,369.50",HCL Social Care Ltd
http://statistics.data.gov.uk/id/local-authority/38,Oxfordshire County Council,CENTRAL HOSP TEAM,2040,Agency Staff,18/11/2015,2200061206,"1,369.50",HCL Social Care Ltd
http://statistics.data.gov.uk/id/local-authority/38,Oxfordshire County Council,CENTRAL HOSP TEAM,2040,Agency Staff,04/11/2015,2200053555,"1,386.00",HCL Social Care Ltd
http://statistics.data.gov.uk/id/local-authority/38,Oxfordshire County Council,FAM SUPP SOUTH,2040,Agency Staff,03/11/2015,2200053103,"1,580.36",HCL Social Care Ltd
http://statistics.data.gov.uk/id/local-authority/38,Oxfordshire County Council,FAM SUPP SOUTH,2040,Agency Staff,03/11/2015,2200053102,"1,609.50",HCL Social Care Ltd
http://statistics.data.gov.uk/id/local-authority/38,Oxfordshire County Council,FAM SUPP SOUTH,2040,Agency Staff,04/11/2015,2200053450,"1,609.50",HCL Social Care Ltd
http://statistics.data.gov.uk/id/local-authority/38,Oxfordshire County Council,FAM SUPP SOUTH,2040,Agency Staff,04/11/2015,2200053452,"1,609.50",HCL Social Care Ltd
http://statistics.data.gov.uk/id/local-authority/38,Oxfordshire County Council,FAM SUPP SOUTH,2040,Agency Staff,04/11/2015,2200053454,"1,609.50",HCL Social Care Ltd
http://statistics.data.gov.uk/id/local-authority/38,Oxfordshire County Council,FAM SUPP SOUTH,2040,Agency Staff,20/11/2015,2200066396,"1,609.50",HCL Social Care Ltd
http://statistics.data.gov.uk/id/local-authority/38,Oxfordshire County Council,COMMENTS&INFORMATION,2040,Agency Staff,17/11/2015,2200061752,"1,012.80",Isobel Morrow
http://statistics.data.gov.uk/id/local-authority/38,Oxfordshire County Council,COMMENTS&INFORMATION,2040,Agency Staff,17/11/2015,2200061733,"1,041.00",Isobel Morrow
http://statistics.data.gov.uk/id/local-authority/38,Oxfordshire County Council,NCS,2040,Agency Staff,10/11/2015,2200059093,732.64,Jasmine Gilhooly
http://statistics.data.gov.uk/id/local-authority/38,Oxfordshire County Council,ROUNDABOUT DAYCARE,2040,Agency Staff,24/11/2015,2200065863,525,Kanga Group
http://statistics.data.gov.uk/id/local-authority/38,Oxfordshire County Council,ASSESSMENT TEAM NORT,2040,Agency Staff,01/11/2015,2200053384,510,Liquid Personnel Ltd
http://statistics.data.gov.uk/id/local-authority/38,Oxfordshire County Council,SOUTH HOSPITAL TEAM,2040,Agency Staff,23/11/2015,2200064098,696,Liquid Personnel Ltd
http://statistics.data.gov.uk/id/local-authority/38,Oxfordshire County Council,EMERGENCY DUTY TEAM,2040,Agency Staff,05/11/2015,2200054662,702.25,Liquid Personnel Ltd
http://statistics.data.gov.uk/id/local-authority/38,Oxfordshire County Council,EMERGENCY DUTY TEAM,2040,Agency Staff,26/11/2015,2200067153,702.25,Liquid Personnel Ltd
http://statistics.data.gov.uk/id/local-authority/38,Oxfordshire County Council,MASH PROJECT,2040,Agency Staff,26/11/2015,2200066726,765,Liquid Personnel Ltd
http://statistics.data.gov.uk/id/local-authority/38,Oxfordshire County Council,NORTH&WEST HOSP TEAM,2040,Agency Staff,26/11/2015,2200067121,783,Liquid Personnel Ltd
http://statistics.data.gov.uk/id/local-authority/38,Oxfordshire County Council,EAST OXFORD HUB,2040,Agency Staff,01/11/2015,2200055765,948.85,Liquid Personnel Ltd
http://statistics.data.gov.uk/id/local-authority/38,Oxfordshire County Council,LOCALITY TEAM - VALE,2040,Agency Staff,27/11/2015,2200067655,952.89,Liquid Personnel Ltd
http://statistics.data.gov.uk/id/local-authority/38,Oxfordshire County Council,SOUTH HOSPITAL TEAM,2040,Agency Staff,01/11/2015,2200054590,963.8,Liquid Personnel Ltd
http://statistics.data.gov.uk/id/local-authority/38,Oxfordshire County Council,EAST OXFORD HUB,2040,Agency Staff,01/11/2015,2200054347,981,Liquid Personnel Ltd
http://statistics.data.gov.uk/id/local-authority/38,Oxfordshire County Council,MASH PROJECT,2040,Agency Staff,26/11/2015,2200066723,"1,003.00",Liquid Personnel Ltd
http://statistics.data.gov.uk/id/local-authority/38,Oxfordshire County Council,MASH PROJECT,2040,Agency Staff,05/11/2015,2200056057,"1,020.00",Liquid Personnel Ltd
http://statistics.data.gov.uk/id/local-authority/38,Oxfordshire County Council,ASSESSMENT TEAM NORT,2040,Agency Staff,19/11/2015,2200062547,"1,020.00",Liquid Personnel Ltd
http://statistics.data.gov.uk/id/local-authority/38,Oxfordshire County Council,NORTH&WEST HOSP TEAM,2040,Agency Staff,11/11/2015,2200059621,"1,026.60",Liquid Personnel Ltd
http://statistics.data.gov.uk/id/local-authority/38,Oxfordshire County Council,ASSESSMENT TEAM NORT,2040,Agency Staff,01/11/2015,2200053423,"1,054.00",Liquid Personnel Ltd
http://statistics.data.gov.uk/id/local-authority/38,Oxfordshire County Council,EAST OXFORD HUB,2040,Agency Staff,01/11/2015,2200060448,"1,057.90",Liquid Personnel Ltd
http://statistics.data.gov.uk/id/local-authority/38,Oxfordshire County Council,LEARN DISAB TEAM NTH,2040,Agency Staff,01/11/2015,2200057401,"1,088.00",Liquid Personnel Ltd
http://statistics.data.gov.uk/id/local-authority/38,Oxfordshire County Council,EAST OXFORD HUB,2040,Agency Staff,01/11/2015,2200054402,"1,098.00",Liquid Personnel Ltd
http://statistics.data.gov.uk/id/local-authority/38,Oxfordshire County Council,SOUTH HOSPITAL TEAM,2040,Agency Staff,23/11/2015,2200063967,"1,124.80",Liquid Personnel Ltd
http://statistics.data.gov.uk/id/local-authority/38,Oxfordshire County Council,FAMILY SUPPORT S'TH2,2040,Agency Staff,26/11/2015,2200066940,"1,139.00",Liquid Personnel Ltd
http://statistics.data.gov.uk/id/local-authority/38,Oxfordshire County Council,FAMILY SUPPORT S'TH2,2040,Agency Staff,11/11/2015,2200059576,"1,156.85",Liquid Personnel Ltd
http://statistics.data.gov.uk/id/local-authority/38,Oxfordshire County Council,DIDCOT HUB,2040,Agency Staff,19/11/2015,2200066727,"1,173.00",Liquid Personnel Ltd
http://statistics.data.gov.uk/id/local-authority/38,Oxfordshire County Council,FAMILY SUPPORT S'TH2,2040,Agency Staff,19/11/2015,2200062967,"1,174.00",Liquid Personnel Ltd
http://statistics.data.gov.uk/id/local-authority/38,Oxfordshire County Council,SOUTH HOSPITAL TEAM,2040,Agency Staff,05/11/2015,2200056160,"1,180.80",Liquid Personnel Ltd
http://statistics.data.gov.uk/id/local-authority/38,Oxfordshire County Council,MASH PROJECT,2040,Agency Staff,01/11/2015,2200062629,"1,190.00",Liquid Personnel Ltd
http://statistics.data.gov.uk/id/local-authority/38,Oxfordshire County Council,DTOC Funding,2040,Agency Staff,01/11/2015,2200057760,"1,242.00",Liquid Personnel Ltd
http://statistics.data.gov.uk/id/local-authority/38,Oxfordshire County Council,SOUTH HOSPITAL TEAM,2040,Agency Staff,23/11/2015,2200065845,"1,243.16",Liquid Personnel Ltd
http://statistics.data.gov.uk/id/local-authority/38,Oxfordshire County Council,MASH PROJECT,2040,Agency Staff,01/11/2015,2200064626,"1,258.00",Liquid Personnel Ltd
http://statistics.data.gov.uk/id/local-authority/38,Oxfordshire County Council,MASH PROJECT,2040,Agency Staff,11/11/2015,2200058779,"1,258.00",Liquid Personnel Ltd
http://statistics.data.gov.uk/id/local-authority/38,Oxfordshire County Council,ASSESSMENT TEAM NORT,2040,Agency Staff,11/11/2015,2200058822,"1,258.00",Liquid Personnel Ltd
http://statistics.data.gov.uk/id/local-authority/38,Oxfordshire County Council,LEARN DISAB TEAM NTH,2040,Agency Staff,19/11/2015,2200062812,"1,258.00",Liquid Personnel Ltd
http://statistics.data.gov.uk/id/local-authority/38,Oxfordshire County Council,LEARN DISAB TEAM NTH,2040,Agency Staff,19/11/2015,2200062817,"1,258.00",Liquid Personnel Ltd
http://statistics.data.gov.uk/id/local-authority/38,Oxfordshire County Council,ASSESS TEAM CITY,2040,Agency Staff,26/11/2015,2200067181,"1,258.00",Liquid Personnel Ltd
http://statistics.data.gov.uk/id/local-authority/38,Oxfordshire County Council,ASSESSMENT TEAM NORT,2040,Agency Staff,26/11/2015,2200067293,"1,258.00",Liquid Personnel Ltd
http://statistics.data.gov.uk/id/local-authority/38,Oxfordshire County Council,LEARN DISAB TEAM NTH,2040,Agency Staff,19/11/2015,2200062815,"1,275.00",Liquid Personnel Ltd
http://statistics.data.gov.uk/id/local-authority/38,Oxfordshire County Council,ASSESSMENT TEAM NORT,2040,Agency Staff,05/11/2015,2200054858,"1,275.50",Liquid Personnel Ltd
http://statistics.data.gov.uk/id/local-authority/38,Oxfordshire County Council,ASSESSMENT TEAM NORT,2040,Agency Staff,01/11/2015,2200053386,"1,281.10",Liquid Personnel Ltd
http://statistics.data.gov.uk/id/local-authority/38,Oxfordshire County Council,LOCALITY TEAM - VALE,2040,Agency Staff,27/11/2015,2200067619,"1,286.26",Liquid Personnel Ltd
http://statistics.data.gov.uk/id/local-authority/38,Oxfordshire County Council,ASSESSMENT TEAM NORT,2040,Agency Staff,01/11/2015,2200053424,"1,294.75",Liquid Personnel Ltd
http://statistics.data.gov.uk/id/local-authority/38,Oxfordshire County Council,LITTLEMORE HUB,2040,Agency Staff,05/11/2015,2200054612,"1,296.00",Liquid Personnel Ltd
http://statistics.data.gov.uk/id/local-authority/38,Oxfordshire County Council,LITTLEMORE HUB,2040,Agency Staff,05/11/2015,2200054613,"1,296.00",Liquid Personnel Ltd
http://statistics.data.gov.uk/id/local-authority/38,Oxfordshire County Council,LITTLEMORE HUB,2040,Agency Staff,11/11/2015,2200059039,"1,296.00",Liquid Personnel Ltd
http://statistics.data.gov.uk/id/local-authority/38,Oxfordshire County Council,LOCALITY TEAM - VALE,2040,Agency Staff,19/11/2015,2200067617,"1,296.00",Liquid Personnel Ltd
http://statistics.data.gov.uk/id/local-authority/38,Oxfordshire County Council,ASSESSMENT TEAM NORT,2040,Agency Staff,19/11/2015,2200062549,"1,298.95",Liquid Personnel Ltd
http://statistics.data.gov.uk/id/local-authority/38,Oxfordshire County Council,ADULT PROTECTION,2040,Agency Staff,11/11/2015,2200067794,"1,309.00",Liquid Personnel Ltd
http://statistics.data.gov.uk/id/local-authority/38,Oxfordshire County Council,ASSESSMENT TEAM NORT,2040,Agency Staff,01/11/2015,2200053421,"1,325.90",Liquid Personnel Ltd
http://statistics.data.gov.uk/id/local-authority/38,Oxfordshire County Council,ADULT PROTECTION,2040,Agency Staff,19/11/2015,2200067746,"1,326.00",Liquid Personnel Ltd
http://statistics.data.gov.uk/id/local-authority/38,Oxfordshire County Council,FAMILY SUPPORT N'TH2,2040,Agency Staff,11/11/2015,2200058820,"1,332.00",Liquid Personnel Ltd
http://statistics.data.gov.uk/id/local-authority/38,Oxfordshire County Council,FAMILY SUPPORT N'TH2,2040,Agency Staff,19/11/2015,2200062545,"1,332.00",Liquid Personnel Ltd
http://statistics.data.gov.uk/id/local-authority/38,Oxfordshire County Council,ASSESSMENT TEAM NORT,2040,Agency Staff,01/11/2015,2200054017,"1,337.80",Liquid Personnel Ltd
http://statistics.data.gov.uk/id/local-authority/38,Oxfordshire County Council,ASSESSMENT TEAM NORT,2040,Agency Staff,11/11/2015,2200058821,"1,344.45",Liquid Personnel Ltd
http://statistics.data.gov.uk/id/local-authority/38,Oxfordshire County Council,ASSESSMENT TEAM NORT,2040,Agency Staff,26/11/2015,2200067296,"1,348.65",Liquid Personnel Ltd
http://statistics.data.gov.uk/id/local-authority/38,Oxfordshire County Council,ASSESSMENT TEAM NORT,2040,Agency Staff,05/11/2015,2200054859,"1,349.35",Liquid Personnel Ltd
http://statistics.data.gov.uk/id/local-authority/38,Oxfordshire County Council,FAMILY SUPPORT N'TH2,2040,Agency Staff,26/11/2015,2200067294,"1,350.90",Liquid Personnel Ltd
http://statistics.data.gov.uk/id/local-authority/38,Oxfordshire County Council,FAMILY SUPPORT N'TH2,2040,Agency Staff,05/11/2015,2200054857,"1,365.25",Liquid Personnel Ltd
http://statistics.data.gov.uk/id/local-authority/38,Oxfordshire County Council,EAST OXFORD HUB,2040,Agency Staff,20/11/2015,2200062487,"1,366.73",Liquid Personnel Ltd
http://statistics.data.gov.uk/id/local-authority/38,Oxfordshire County Council,ASSESSMENT TEAM NORT,2040,Agency Staff,01/11/2015,2200053388,"1,370.00",Liquid Personnel Ltd
http://statistics.data.gov.uk/id/local-authority/38,Oxfordshire County Council,EAST OXFORD HUB,2040,Agency Staff,01/11/2015,2200051889,"1,377.86",Liquid Personnel Ltd
http://statistics.data.gov.uk/id/local-authority/38,Oxfordshire County Council,EAST OXFORD HUB,2040,Agency Staff,26/11/2015,2200067250,"1,384.72",Liquid Personnel Ltd
http://statistics.data.gov.uk/id/local-authority/38,Oxfordshire County Council,FAMILY SUPPORT N'TH2,2040,Agency Staff,01/11/2015,2200053422,"1,408.30",Liquid Personnel Ltd
http://statistics.data.gov.uk/id/local-authority/38,Oxfordshire County Council,LOCALITY TEAM - VALE,2040,Agency Staff,26/11/2015,2200067633,"1,456.00",Liquid Personnel Ltd
http://statistics.data.gov.uk/id/local-authority/38,Oxfordshire County Council,LOCALITY TEAM - VALE,2040,Agency Staff,01/11/2015,2200058844,"1,470.87",Liquid Personnel Ltd
http://statistics.data.gov.uk/id/local-authority/38,Oxfordshire County Council,LOCALITY TEAM - VALE,2040,Agency Staff,11/11/2015,2200063424,"1,608.25",Liquid Personnel Ltd
http://statistics.data.gov.uk/id/local-authority/38,Oxfordshire County Council,NORTH&WEST HOSP TEAM,2040,Agency Staff,05/11/2015,2200054604,"1,827.00",Liquid Personnel Ltd
http://statistics.data.gov.uk/id/local-authority/38,Oxfordshire County Council,NORTH&WEST HOSP TEAM,2040,Agency Staff,19/11/2015,2200062943,"1,827.00",Liquid Personnel Ltd
http://statistics.data.gov.uk/id/local-authority/38,Oxfordshire County Council,AUDIT SERVICES,2040,Agency Staff,11/11/2015,2200057912,"4,500.00",Mazars LLP
http://statistics.data.gov.uk/id/local-authority/38,Oxfordshire County Council,HOSPITAL TEAMS,2040,Agency Staff,26/11/2015,2200067123,"1,217.08",Oxford University Hospitals NHS Tru
http://statistics.data.gov.uk/id/local-authority/38,Oxfordshire County Council,HOSPITAL TEAMS,2040,Agency Staff,26/11/2015,2200067125,"1,217.08",Oxford University Hospitals NHS Tru
http://statistics.data.gov.uk/id/local-authority/38,Oxfordshire County Council,CENTRAL HOSP TEAM,2040,Agency Staff,20/11/2015,2200063950,"1,298.00",Oxford University Hospitals NHS Tru
http://statistics.data.gov.uk/id/local-authority/38,Oxfordshire County Council,OPERATIONAL MANAGERS,2040,Agency Staff,20/11/2015,2200063951,"1,298.00",Oxford University Hospitals NHS Tru
http://statistics.data.gov.uk/id/local-authority/38,Oxfordshire County Council,CENTRAL HOSP TEAM,2040,Agency Staff,18/11/2015,2200061712,"20,125.70",Oxford University Hospitals NHS Tru
http://statistics.data.gov.uk/id/local-authority/38,Oxfordshire County Council,CENTRAL HOSP TEAM,2040,Agency Staff,20/11/2015,2200066155,"20,125.70",Oxford University Hospitals NHS Tru
http://statistics.data.gov.uk/id/local-authority/38,Oxfordshire County Council,GREENWOOD CENTRE,2040,Agency Staff,10/11/2015,2200056143,"-2,880.54",Paterson Recruitment
http://statistics.data.gov.uk/id/local-authority/38,Oxfordshire County Council,GREENWOOD CENTRE,2040,Agency Staff,10/11/2015,2200058906,"3,553.36",Paterson Recruitment
http://statistics.data.gov.uk/id/local-authority/38,Oxfordshire County Council,MANAGEMENT,2040,Agency Staff,11/11/2015,2200066368,"10,980.00",Penna Plc
http://statistics.data.gov.uk/id/local-authority/38,Oxfordshire County Council,CORPORATE FINANCE,2040,Agency Staff,09/11/2015,2200056297,"18,170.00",Penna Plc
http://statistics.data.gov.uk/id/local-authority/38,Oxfordshire County Council,LOCALITY TEAM -SOUTH,2040,Agency Staff,24/11/2015,2200067628,"1,283.90",Proactivity OT Ltd
http://statistics.data.gov.uk/id/local-authority/38,Oxfordshire County Council,LOCALITY TEAM -SOUTH,2040,Agency Staff,01/11/2015,2200054235,"1,292.45",Proactivity OT Ltd
http://statistics.data.gov.uk/id/local-authority/38,Oxfordshire County Council,LOCALITY TEAM -SOUTH,2040,Agency Staff,01/11/2015,2200054248,"1,310.00",Proactivity OT Ltd
http://statistics.data.gov.uk/id/local-authority/38,Oxfordshire County Council,LOCALITY TEAM -SOUTH,2040,Agency Staff,03/11/2015,2200054230,"1,312.25",Proactivity OT Ltd
http://statistics.data.gov.uk/id/local-authority/38,Oxfordshire County Council,LOCALITY TEAM -SOUTH,2040,Agency Staff,01/11/2015,2200054241,"1,337.45",Proactivity OT Ltd
http://statistics.data.gov.uk/id/local-authority/38,Oxfordshire County Council,LOCALITY TEAM -SOUTH,2040,Agency Staff,01/11/2015,2200054238,"1,339.70",Proactivity OT Ltd
http://statistics.data.gov.uk/id/local-authority/38,Oxfordshire County Council,LOCALITY TEAM -SOUTH,2040,Agency Staff,19/11/2015,2200067624,"2,608.75",Proactivity OT Ltd
http://statistics.data.gov.uk/id/local-authority/38,Oxfordshire County Council,LOCALITY TEAM -SOUTH,2040,Agency Staff,06/11/2015,2200058848,515.1,Randstad Care Ltd
http://statistics.data.gov.uk/id/local-authority/38,Oxfordshire County Council,LOCALITY TEAM -SOUTH,2040,Agency Staff,20/11/2015,2200067631,686.8,Randstad Care Ltd
http://statistics.data.gov.uk/id/local-authority/38,Oxfordshire County Council,LOCALITY TM CHERWELL,2040,Agency Staff,06/11/2015,2200061104,954.03,Randstad Care Ltd
http://statistics.data.gov.uk/id/local-authority/38,Oxfordshire County Council,LOCALITY TM CHERWELL,2040,Agency Staff,23/11/2015,2200064728,962.12,Randstad Care Ltd
http://statistics.data.gov.uk/id/local-authority/38,Oxfordshire County Council,LOCALITY TM CHERWELL,2040,Agency Staff,02/11/2015,2200053833,978.29,Randstad Care Ltd
http://statistics.data.gov.uk/id/local-authority/38,Oxfordshire County Council,LOCALITY TM CHERWELL,2040,Agency Staff,23/11/2015,2200066180,994.46,Randstad Care Ltd
http://statistics.data.gov.uk/id/local-authority/38,Oxfordshire County Council,LOCALITY TEAM -SOUTH,2040,Agency Staff,01/11/2015,2200058851,"1,030.20",Randstad Care Ltd
http://statistics.data.gov.uk/id/local-authority/38,Oxfordshire County Council,CENTRAL HOSP TEAM,2040,Agency Staff,01/11/2015,2200051856,"1,099.89",Randstad Care Ltd
http://statistics.data.gov.uk/id/local-authority/38,Oxfordshire County Council,CENTRAL HOSP TEAM,2040,Agency Staff,20/11/2015,2200063949,"1,133.22",Randstad Care Ltd
http://statistics.data.gov.uk/id/local-authority/38,Oxfordshire County Council,LOCALITY TEAM - CITY,2040,Agency Staff,01/11/2015,2200051951,"1,164.80",Randstad Care Ltd
http://statistics.data.gov.uk/id/local-authority/38,Oxfordshire County Council,CENTRAL HOSP TEAM,2040,Agency Staff,01/11/2015,2200051854,"1,183.22",Randstad Care Ltd
http://statistics.data.gov.uk/id/local-authority/38,Oxfordshire County Council,LOCALITY TEAM -SOUTH,2040,Agency Staff,01/11/2015,2200054252,"1,270.58",Randstad Care Ltd
http://statistics.data.gov.uk/id/local-authority/38,Oxfordshire County Council,LOCALITY TEAM -SOUTH,2040,Agency Staff,06/11/2015,2200058847,"1,270.58",Randstad Care Ltd
http://statistics.data.gov.uk/id/local-authority/38,Oxfordshire County Council,LOCALITY TEAM - CITY,2040,Agency Staff,01/11/2015,2200051948,"1,286.49",Randstad Care Ltd
http://statistics.data.gov.uk/id/local-authority/38,Oxfordshire County Council,LOCALITY TEAM - CITY,2040,Agency Staff,27/11/2015,2200068125,"1,286.49",Randstad Care Ltd
http://statistics.data.gov.uk/id/local-authority/38,Oxfordshire County Council,LOCALITY TEAM - CITY,2040,Agency Staff,27/11/2015,2200069155,"1,286.49",Randstad Care Ltd
http://statistics.data.gov.uk/id/local-authority/38,Oxfordshire County Council,LOCALITY TEAM -SOUTH,2040,Agency Staff,01/11/2015,2200054255,"1,287.75",Randstad Care Ltd
http://statistics.data.gov.uk/id/local-authority/38,Oxfordshire County Council,LOCALITY TEAM -SOUTH,2040,Agency Staff,03/11/2015,2200054229,"1,287.75",Randstad Care Ltd
http://statistics.data.gov.uk/id/local-authority/38,Oxfordshire County Council,LOCALITY TEAM -SOUTH,2040,Agency Staff,20/11/2015,2200067621,"1,287.75",Randstad Care Ltd
http://statistics.data.gov.uk/id/local-authority/38,Oxfordshire County Council,LOCALITY TEAM - CITY,2040,Agency Staff,01/11/2015,2200051932,"1,321.26",Randstad Care Ltd
http://statistics.data.gov.uk/id/local-authority/38,Oxfordshire County Council,LOCALITY TEAM - CITY,2040,Agency Staff,01/11/2015,2200051941,"1,321.26",Randstad Care Ltd
http://statistics.data.gov.uk/id/local-authority/38,Oxfordshire County Council,LOCALITY TEAM - CITY,2040,Agency Staff,27/11/2015,2200069107,"1,321.26",Randstad Care Ltd
http://statistics.data.gov.uk/id/local-authority/38,Oxfordshire County Council,LOCALITY TEAM -SOUTH,2040,Agency Staff,13/11/2015,2200067606,"1,322.09",Randstad Care Ltd
http://statistics.data.gov.uk/id/local-authority/38,Oxfordshire County Council,LOCALITY TEAM -SOUTH,2040,Agency Staff,13/11/2015,2200067602,"1,390.77",Randstad Care Ltd
http://statistics.data.gov.uk/id/local-authority/38,Oxfordshire County Council,LOCALITY TEAM - CITY,2040,Agency Staff,05/11/2015,2200054622,"1,408.19",Randstad Care Ltd
http://statistics.data.gov.uk/id/local-authority/38,Oxfordshire County Council,LOCALITY TEAM - CITY,2040,Agency Staff,01/11/2015,2200051959,"1,416.88",Randstad Care Ltd
http://statistics.data.gov.uk/id/local-authority/38,Oxfordshire County Council,LEGAL SERVICES,2040,Agency Staff,13/11/2015,2200059346,615.23,REED SPECIALIST RECRUITMENT LTD
http://statistics.data.gov.uk/id/local-authority/38,Oxfordshire County Council,LEGAL SERVICES,2040,Agency Staff,13/11/2015,2200059453,662.55,REED SPECIALIST RECRUITMENT LTD
http://statistics.data.gov.uk/id/local-authority/38,Oxfordshire County Council,LOCALITY TEAM -SOUTH,2040,Agency Staff,24/11/2015,2200067632,722.45,RIG Healthcare
http://statistics.data.gov.uk/id/local-authority/38,Oxfordshire County Council,LOCALITY TEAM -SOUTH,2040,Agency Staff,01/11/2015,2200067323,726.05,RIG Healthcare
http://statistics.data.gov.uk/id/local-authority/38,Oxfordshire County Council,LOCALITY TEAM -SOUTH,2040,Agency Staff,17/11/2015,2200067609,732.75,RIG Healthcare
http://statistics.data.gov.uk/id/local-authority/38,Oxfordshire County Council,LOCALITY TEAM - WEST,2040,Agency Staff,05/11/2015,2200061108,752,RIG Healthcare
http://statistics.data.gov.uk/id/local-authority/38,Oxfordshire County Council,LOCALITY TEAM - WEST,2040,Agency Staff,09/11/2015,2200061112,848,RIG Healthcare
http://statistics.data.gov.uk/id/local-authority/38,Oxfordshire County Council,LOCALITY TEAM -SOUTH,2040,Agency Staff,01/11/2015,2200054256,948.75,RIG Healthcare
http://statistics.data.gov.uk/id/local-authority/38,Oxfordshire County Council,LOCALITY TEAM -SOUTH,2040,Agency Staff,10/11/2015,2200058842,998.1,RIG Healthcare
http://statistics.data.gov.uk/id/local-authority/38,Oxfordshire County Council,LOCALITY TEAM -SOUTH,2040,Agency Staff,17/11/2015,2200067616,"1,005.75",RIG Healthcare
http://statistics.data.gov.uk/id/local-authority/38,Oxfordshire County Council,LOCALITY TEAM -SOUTH,2040,Agency Staff,03/11/2015,2200054228,"1,023.75",RIG Healthcare
http://statistics.data.gov.uk/id/local-authority/38,Oxfordshire County Council,LOCALITY TEAM - WEST,2040,Agency Staff,10/11/2015,2200061993,"1,360.00",RIG Healthcare
http://statistics.data.gov.uk/id/local-authority/38,Oxfordshire County Council,LOCALITY TEAM - VALE,2040,Agency Staff,01/11/2015,2200054246,534.76,Sanctuary Personnel Ltd
http://statistics.data.gov.uk/id/local-authority/38,Oxfordshire County Council,LOCALITY TEAM - VALE,2040,Agency Staff,01/11/2015,2200054250,577.88,Sanctuary Personnel Ltd
http://statistics.data.gov.uk/id/local-authority/38,Oxfordshire County Council,RESIDENTIAL STRATEGY,2040,Agency Staff,18/11/2015,2200061008,701.5,Sanctuary Personnel Ltd
http://statistics.data.gov.uk/id/local-authority/38,Oxfordshire County Council,LOCALITY TEAM - CITY,2040,Agency Staff,01/11/2015,2200051993,768,Sanctuary Personnel Ltd
http://statistics.data.gov.uk/id/local-authority/38,Oxfordshire County Council,LOCALITY TM CHERWELL,2040,Agency Staff,10/11/2015,2200061136,864,Sanctuary Personnel Ltd
http://statistics.data.gov.uk/id/local-authority/38,Oxfordshire County Council,MASH PROJECT,2040,Agency Staff,20/11/2015,2200062778,925,Sanctuary Personnel Ltd
http://statistics.data.gov.uk/id/local-authority/38,Oxfordshire County Council,LOCALITY TEAM - CITY,2040,Agency Staff,05/11/2015,2200055901,950.33,Sanctuary Personnel Ltd
http://statistics.data.gov.uk/id/local-authority/38,Oxfordshire County Council,LOCALITY TM CHERWELL,2040,Agency Staff,24/11/2015,2200066183,976,Sanctuary Personnel Ltd
http://statistics.data.gov.uk/id/local-authority/38,Oxfordshire County Council,LOCALITY TM CHERWELL,2040,Agency Staff,24/11/2015,2200066185,"1,008.00",Sanctuary Personnel Ltd
http://statistics.data.gov.uk/id/local-authority/38,Oxfordshire County Council,LOCALITY TEAM - CITY,2040,Agency Staff,24/11/2015,2200065530,"1,024.00",Sanctuary Personnel Ltd
http://statistics.data.gov.uk/id/local-authority/38,Oxfordshire County Council,CENTRAL HOSP TEAM,2040,Agency Staff,01/11/2015,2200051852,"1,040.00",Sanctuary Personnel Ltd
http://statistics.data.gov.uk/id/local-authority/38,Oxfordshire County Council,LOCALITY TM CHERWELL,2040,Agency Staff,19/11/2015,2200061997,"1,056.00",Sanctuary Personnel Ltd
http://statistics.data.gov.uk/id/local-authority/38,Oxfordshire County Council,ASSESS TEAM SOUTH,2040,Agency Staff,13/11/2015,2200060088,"1,095.00",Sanctuary Personnel Ltd
http://statistics.data.gov.uk/id/local-authority/38,Oxfordshire County Council,INVEST TO SAVE,2040,Agency Staff,24/11/2015,2200065889,"1,096.00",Sanctuary Personnel Ltd
http://statistics.data.gov.uk/id/local-authority/38,Oxfordshire County Council,RESIDENTIAL STRATEGY,2040,Agency Staff,11/11/2015,2200057629,"1,098.00",Sanctuary Personnel Ltd
http://statistics.data.gov.uk/id/local-authority/38,Oxfordshire County Council,LOCALITY TM CHERWELL,2040,Agency Staff,25/11/2015,2200066182,"1,120.00",Sanctuary Personnel Ltd
http://statistics.data.gov.uk/id/local-authority/38,Oxfordshire County Council,RESIDENTIAL STRATEGY,2040,Agency Staff,18/11/2015,2200061005,"1,128.50",Sanctuary Personnel Ltd
http://statistics.data.gov.uk/id/local-authority/38,Oxfordshire County Council,LOCALITY TEAM - VALE,2040,Agency Staff,24/11/2015,2200067630,"1,155.75",Sanctuary Personnel Ltd
http://statistics.data.gov.uk/id/local-authority/38,Oxfordshire County Council,EMERGENCY DUTY TEAM,2040,Agency Staff,01/11/2015,2200052127,"1,179.20",Sanctuary Personnel Ltd
http://statistics.data.gov.uk/id/local-authority/38,Oxfordshire County Council,LOCALITY TM CHERWELL,2040,Agency Staff,10/11/2015,2200061137,"1,184.00",Sanctuary Personnel Ltd
http://statistics.data.gov.uk/id/local-authority/38,Oxfordshire County Council,LOCALITY TM CHERWELL,2040,Agency Staff,01/11/2015,2200053848,"1,199.68",Sanctuary Personnel Ltd
http://statistics.data.gov.uk/id/local-authority/38,Oxfordshire County Council,CENTRAL HOSP TEAM,2040,Agency Staff,10/11/2015,2200056785,"1,200.00",Sanctuary Personnel Ltd
http://statistics.data.gov.uk/id/local-authority/38,Oxfordshire County Council,LOCALITY TM CHERWELL,2040,Agency Staff,24/11/2015,2200065556,"1,200.00",Sanctuary Personnel Ltd
http://statistics.data.gov.uk/id/local-authority/38,Oxfordshire County Council,LOCALITY TEAM - CITY,2040,Agency Staff,16/11/2015,2200060739,"1,212.49",Sanctuary Personnel Ltd
http://statistics.data.gov.uk/id/local-authority/38,Oxfordshire County Council,LOCALITY TEAM - CITY,2040,Agency Staff,16/11/2015,2200060741,"1,212.49",Sanctuary Personnel Ltd
http://statistics.data.gov.uk/id/local-authority/38,Oxfordshire County Council,LOCALITY TEAM - CITY,2040,Agency Staff,16/11/2015,2200060744,"1,212.49",Sanctuary Personnel Ltd
http://statistics.data.gov.uk/id/local-authority/38,Oxfordshire County Council,LOCALITY TEAM - CITY,2040,Agency Staff,16/11/2015,2200061011,"1,212.49",Sanctuary Personnel Ltd
http://statistics.data.gov.uk/id/local-authority/38,Oxfordshire County Council,LOCALITY TM CHERWELL,2040,Agency Staff,16/11/2015,2200062002,"1,216.00",Sanctuary Personnel Ltd
http://statistics.data.gov.uk/id/local-authority/38,Oxfordshire County Council,MASH PROJECT,2040,Agency Staff,16/11/2015,2200062220,"1,221.00",Sanctuary Personnel Ltd
http://statistics.data.gov.uk/id/local-authority/38,Oxfordshire County Council,CENTRAL HOSP TEAM,2040,Agency Staff,10/11/2015,2200056998,"1,258.00",Sanctuary Personnel Ltd
http://statistics.data.gov.uk/id/local-authority/38,Oxfordshire County Council,CENTRAL HOSP TEAM,2040,Agency Staff,13/11/2015,2200059622,"1,264.00",Sanctuary Personnel Ltd
http://statistics.data.gov.uk/id/local-authority/38,Oxfordshire County Council,CENTRAL HOSP TEAM,2040,Agency Staff,01/11/2015,2200051883,"1,275.00",Sanctuary Personnel Ltd
http://statistics.data.gov.uk/id/local-authority/38,Oxfordshire County Council,CENTRAL HOSP TEAM,2040,Agency Staff,24/11/2015,2200065436,"1,275.00",Sanctuary Personnel Ltd
http://statistics.data.gov.uk/id/local-authority/38,Oxfordshire County Council,LOCALITY TEAM - VALE,2040,Agency Staff,16/11/2015,2200067608,"1,285.13",Sanctuary Personnel Ltd
http://statistics.data.gov.uk/id/local-authority/38,Oxfordshire County Council,LOCALITY TEAM - CITY,2040,Agency Staff,13/11/2015,2200059013,"1,288.00",Sanctuary Personnel Ltd
http://statistics.data.gov.uk/id/local-authority/38,Oxfordshire County Council,CENTRAL HOSP TEAM,2040,Agency Staff,24/11/2015,2200065892,"1,344.00",Sanctuary Personnel Ltd
http://statistics.data.gov.uk/id/local-authority/38,Oxfordshire County Council,ASSESS TEAM SOUTH,2040,Agency Staff,10/11/2015,2200059683,"1,350.50",Sanctuary Personnel Ltd
http://statistics.data.gov.uk/id/local-authority/38,Oxfordshire County Council,ASSESS TEAM SOUTH,2040,Agency Staff,16/11/2015,2200059792,"1,350.50",Sanctuary Personnel Ltd
http://statistics.data.gov.uk/id/local-authority/38,Oxfordshire County Council,KINGFISHER,2040,Agency Staff,01/11/2015,2200054701,"1,369.00",Sanctuary Personnel Ltd
http://statistics.data.gov.uk/id/local-authority/38,Oxfordshire County Council,KINGFISHER,2040,Agency Staff,01/11/2015,2200057759,"1,369.00",Sanctuary Personnel Ltd
http://statistics.data.gov.uk/id/local-authority/38,Oxfordshire County Council,MASH PROJECT,2040,Agency Staff,01/11/2015,2200060110,"1,369.00",Sanctuary Personnel Ltd
http://statistics.data.gov.uk/id/local-authority/38,Oxfordshire County Council,RESIDENTIAL STRATEGY,2040,Agency Staff,11/11/2015,2200057626,"1,372.50",Sanctuary Personnel Ltd
http://statistics.data.gov.uk/id/local-authority/38,Oxfordshire County Council,LOCALITY TEAM - VALE,2040,Agency Staff,10/11/2015,2200058840,"1,380.00",Sanctuary Personnel Ltd
http://statistics.data.gov.uk/id/local-authority/38,Oxfordshire County Council,EMERGENCY DUTY TEAM,2040,Agency Staff,18/11/2015,2200061074,"1,487.20",Sanctuary Personnel Ltd
http://statistics.data.gov.uk/id/local-authority/38,Oxfordshire County Council,CENTRAL HOSP TEAM,2040,Agency Staff,03/11/2015,2200052473,"1,504.00",Sanctuary Personnel Ltd
http://statistics.data.gov.uk/id/local-authority/38,Oxfordshire County Council,LOCALITY TEAM - CITY,2040,Agency Staff,01/11/2015,2200051890,"1,516.80",Sanctuary Personnel Ltd
http://statistics.data.gov.uk/id/local-authority/38,Oxfordshire County Council,SM QUALITY ASSURANCE,2040,Agency Staff,01/11/2015,2200051865,"1,530.00",Sanctuary Personnel Ltd
http://statistics.data.gov.uk/id/local-authority/38,Oxfordshire County Council,SM QUALITY ASSURANCE,2040,Agency Staff,10/11/2015,2200059719,"1,530.00",Sanctuary Personnel Ltd
http://statistics.data.gov.uk/id/local-authority/38,Oxfordshire County Council,SM QUALITY ASSURANCE,2040,Agency Staff,13/11/2015,2200059718,"1,530.00",Sanctuary Personnel Ltd
http://statistics.data.gov.uk/id/local-authority/38,Oxfordshire County Council,CENTRAL HOSP TEAM,2040,Agency Staff,16/11/2015,2200059729,"1,536.00",Sanctuary Personnel Ltd
http://statistics.data.gov.uk/id/local-authority/38,Oxfordshire County Council,CENTRAL HOSP TEAM,2040,Agency Staff,30/11/2015,2200069409,"1,552.00",Sanctuary Personnel Ltd
http://statistics.data.gov.uk/id/local-authority/38,Oxfordshire County Council,SM QUALITY ASSURANCE,2040,Agency Staff,16/11/2015,2200060531,"1,887.00",Sanctuary Personnel Ltd
http://statistics.data.gov.uk/id/local-authority/38,Oxfordshire County Council,FAMILY SUPPORT S'TH2,2040,Agency Staff,01/11/2015,2200066392,"1,710.45",Seven Resourcing Ltd
http://statistics.data.gov.uk/id/local-authority/38,Oxfordshire County Council,FAM SUPP SOUTH,2040,Agency Staff,03/11/2015,2200053275,"1,722.83",Seven Resourcing Ltd
http://statistics.data.gov.uk/id/local-authority/38,Oxfordshire County Council,FAM SUPP SOUTH,2040,Agency Staff,05/11/2015,2200056689,"1,842.45",Seven Resourcing Ltd
http://statistics.data.gov.uk/id/local-authority/38,Oxfordshire County Council,DTOC Funding,2040,Agency Staff,10/11/2015,2200058108,"1,020.30",SUGARMAN GROUP LTD
http://statistics.data.gov.uk/id/local-authority/38,Oxfordshire County Council,DTOC Funding,2040,Agency Staff,25/11/2015,2200066609,"1,062.00",SUGARMAN GROUP LTD
http://statistics.data.gov.uk/id/local-authority/38,Oxfordshire County Council,DTOC Funding,2040,Agency Staff,17/11/2015,2200060837,"1,085.74",SUGARMAN GROUP LTD
http://statistics.data.gov.uk/id/local-authority/38,Oxfordshire County Council,LOCALITY TEAM - CITY,2040,Agency Staff,09/11/2015,2200056492,"1,332.00",Sugarman Group Ltd
http://statistics.data.gov.uk/id/local-authority/38,Oxfordshire County Council,LOCALITY TEAM - CITY,2040,Agency Staff,02/11/2015,2200051962,"1,350.00",Sugarman Group Ltd
http://statistics.data.gov.uk/id/local-authority/38,Oxfordshire County Council,LOCALITY TEAM - CITY,2040,Agency Staff,01/11/2015,2200051971,"1,529.55",Sugarman Group Ltd
http://statistics.data.gov.uk/id/local-authority/38,Oxfordshire County Council,LOCALITY TEAM - CITY,2040,Agency Staff,02/11/2015,2200054275,"1,674.00",Sugarman Group Ltd
http://statistics.data.gov.uk/id/local-authority/38,Oxfordshire County Council,LOCALITY TEAM - CITY,2040,Agency Staff,03/11/2015,2200053504,"1,764.00",Sugarman Group Ltd
http://statistics.data.gov.uk/id/local-authority/38,Oxfordshire County Council,LOCALITY TEAM - CITY,2040,Agency Staff,09/11/2015,2200056489,"1,782.00",Sugarman Group Ltd
http://statistics.data.gov.uk/id/local-authority/38,Oxfordshire County Council,LOCALITY TEAM - CITY,2040,Agency Staff,02/11/2015,2200053475,"1,852.20",Sugarman Group Ltd
http://statistics.data.gov.uk/id/local-authority/38,Oxfordshire County Council,LOCALITY TEAM - CITY,2040,Agency Staff,01/11/2015,2200051887,"1,293.75",Tempest Resourcing Limited
http://statistics.data.gov.uk/id/local-authority/38,Oxfordshire County Council,LOCALITY TEAM - CITY,2040,Agency Staff,01/11/2015,2200062654,"1,293.75",Tempest Resourcing Limited
http://statistics.data.gov.uk/id/local-authority/38,Oxfordshire County Council,LOCALITY TEAM - CITY,2040,Agency Staff,01/11/2015,2200063838,"1,293.75",Tempest Resourcing Limited
http://statistics.data.gov.uk/id/local-authority/38,Oxfordshire County Council,LOCALITY TEAM - CITY,2040,Agency Staff,18/11/2015,2200061218,"1,293.75",Tempest Resourcing Limited
http://statistics.data.gov.uk/id/local-authority/38,Oxfordshire County Council,LOCALITY TEAM - CITY,2040,Agency Staff,20/11/2015,2200063805,"1,293.75",Tempest Resourcing Limited
http://statistics.data.gov.uk/id/local-authority/38,Oxfordshire County Council,LOCALITY TEAM - CITY,2040,Agency Staff,20/11/2015,2200066154,"1,293.75",Tempest Resourcing Limited
http://statistics.data.gov.uk/id/local-authority/38,Oxfordshire County Council,LOCALITY TEAM - CITY,2040,Agency Staff,25/11/2015,2200066360,"1,293.75",Tempest Resourcing Limited
http://statistics.data.gov.uk/id/local-authority/38,Oxfordshire County Council,LEARN DISAB TEAM NTH,2040,Agency Staff,25/11/2015,2200067519,"1,323.00",Tempest Resourcing Limited
http://statistics.data.gov.uk/id/local-authority/38,Oxfordshire County Council,CM & SW COUNTY TEAM,2040,Agency Staff,01/11/2015,2200060264,"1,440.00",Tempest Resourcing Limited
http://statistics.data.gov.uk/id/local-authority/38,Oxfordshire County Council,CM & SW COUNTY TEAM,2040,Agency Staff,25/11/2015,2200067786,"1,875.00",Tempest Resourcing Limited
http://statistics.data.gov.uk/id/local-authority/38,Oxfordshire County Council,CM & SW COUNTY TEAM,2040,Agency Staff,04/11/2015,2200067749,"1,911.70",Tempest Resourcing Limited
http://statistics.data.gov.uk/id/local-authority/38,Oxfordshire County Council,CM & SW COUNTY TEAM,2040,Agency Staff,18/11/2015,2200067745,"1,975.00",Tempest Resourcing Limited
http://statistics.data.gov.uk/id/local-authority/38,Oxfordshire County Council,LEGAL SERVICES,2040,Agency Staff,24/11/2015,2200067804,-515.26,Venn Group
http://statistics.data.gov.uk/id/local-authority/38,Oxfordshire County Council,LEGAL SERVICES,2040,Agency Staff,24/11/2015,2200065705,515.26,Venn Group
http://statistics.data.gov.uk/id/local-authority/38,Oxfordshire County Council,LEGAL SERVICES,2040,Agency Staff,30/11/2015,2200067811,515.26,Venn Group
http://statistics.data.gov.uk/id/local-authority/38,Oxfordshire County Council,LEGAL SERVICES,2040,Agency Staff,13/11/2015,2200061550,627.31,Venn Group
http://statistics.data.gov.uk/id/local-authority/38,Oxfordshire County Council,LEGAL SERVICES,2040,Agency Staff,06/11/2015,2200062650,641.26,Venn Group
http://statistics.data.gov.uk/id/local-authority/38,Oxfordshire County Council,LEGAL SERVICES,2040,Agency Staff,13/11/2015,2200061557,702.24,Venn Group
http://statistics.data.gov.uk/id/local-authority/38,Oxfordshire County Council,LEGAL SERVICES,2040,Agency Staff,06/11/2015,2200056016,822.94,Venn Group
http://statistics.data.gov.uk/id/local-authority/38,Oxfordshire County Council,LEGAL SERVICES,2040,Agency Staff,12/11/2015,2200058114,866.83,Venn Group
http://statistics.data.gov.uk/id/local-authority/38,Oxfordshire County Council,LEGAL SERVICES,2040,Agency Staff,04/11/2015,2200056588,965.58,Venn Group
http://statistics.data.gov.uk/id/local-authority/38,Oxfordshire County Council,LEGAL SERVICES,2040,Agency Staff,03/11/2015,2200057302,"1,029.36",Venn Group
http://statistics.data.gov.uk/id/local-authority/38,Oxfordshire County Council,LEGAL SERVICES,2040,Agency Staff,06/11/2015,2200056007,"1,029.36",Venn Group
http://statistics.data.gov.uk/id/local-authority/38,Oxfordshire County Council,LEGAL SERVICES,2040,Agency Staff,01/11/2015,2200055095,"1,079.54",Venn Group
http://statistics.data.gov.uk/id/local-authority/38,Oxfordshire County Council,LEGAL SERVICES,2040,Agency Staff,01/11/2015,2200062826,"1,185.03",Venn Group
http://statistics.data.gov.uk/id/local-authority/38,Oxfordshire County Council,LEGAL SERVICES,2040,Agency Staff,01/11/2015,2200062829,"1,558.10",Venn Group
http://statistics.data.gov.uk/id/local-authority/38,Oxfordshire County Council,LEGAL SERVICES,2040,Agency Staff,18/11/2015,2200061193,"1,644.30",Venn Group
http://statistics.data.gov.uk/id/local-authority/38,Oxfordshire County Council,LEGAL SERVICES,2040,Agency Staff,20/11/2015,2200062953,"1,667.79",Venn Group
http://statistics.data.gov.uk/id/local-authority/38,Oxfordshire County Council,COMMENTS&INFORMATION,2040,Agency Staff,02/11/2015,2200053354,"5,193.80",Yvonne Cranstoun
http://statistics.data.gov.uk/id/local-authority/38,Oxfordshire County Council,FM NORTH & WEST STAF,2050,Admin and Clerical Staff - Basic Pay,10/11/2015,2200057460,"2,040.59",Champion Employment Ltd
http://statistics.data.gov.uk/id/local-authority/38,Oxfordshire County Council,FY SALARIES,2640,Supply Teachers - Agency,10/11/2015,2200064069,516.8,Champion Employment Ltd
http://statistics.data.gov.uk/id/local-authority/38,Oxfordshire County Council,MOTOR FLEET,3051,Motor IF Own Damage,23/11/2015,3110032651,586,AWP Body Repairs
http://statistics.data.gov.uk/id/local-authority/38,Oxfordshire County Council,MOTOR FLEET,3051,Motor IF Own Damage,23/11/2015,3110032653,751,AWP Body Repairs
http://statistics.data.gov.uk/id/local-authority/38,Oxfordshire County Council,MOTOR FLEET,3051,Motor IF Own Damage,23/11/2015,3110032650,"1,280.44",AWP Body Repairs
http://statistics.data.gov.uk/id/local-authority/38,Oxfordshire County Council,MOTOR FLEET,3051,Motor IF Own Damage,23/11/2015,3110032652,"1,523.99",AWP Body Repairs
http://statistics.data.gov.uk/id/local-authority/38,Oxfordshire County Council,LEARNER GRANTS,3100,Educational and Vocational Training,16/11/2015,2200059603,"38,033.50",Abingdon & Witney College
http://statistics.data.gov.uk/id/local-authority/38,Oxfordshire County Council,LOOKED AFTER CHILDRE,3100,Educational and Vocational Training,03/11/2015,2200052641,883.7,Betsy de Thierry Limited
http://statistics.data.gov.uk/id/local-authority/38,Oxfordshire County Council,Transformation Fund,3100,Educational and Vocational Training,20/11/2015,2200062951,"53,570.32",CAPITA BUSINESS SERVICES LTD
http://statistics.data.gov.uk/id/local-authority/38,Oxfordshire County Council,TRAINING MANAGEMENT,3100,Educational and Vocational Training,01/11/2015,2200057342,"8,530.00",CHILTERN INTERNATIONAL FIRE LTD
http://statistics.data.gov.uk/id/local-authority/38,Oxfordshire County Council,F&P TRAINING,3100,Educational and Vocational Training,05/11/2015,2200056055,"1,985.00",CIPFA
http://statistics.data.gov.uk/id/local-authority/38,Oxfordshire County Council,TRAINING MANAGEMENT,3100,Educational and Vocational Training,17/11/2015,2200061333,"1,350.00",Fire Service College Ltd
http://statistics.data.gov.uk/id/local-authority/38,Oxfordshire County Council,TRAINING MANAGEMENT,3100,Educational and Vocational Training,17/11/2015,2200061367,"1,350.00",Fire Service College Ltd
http://statistics.data.gov.uk/id/local-authority/38,Oxfordshire County Council,C&I PROJECTS,3100,Educational and Vocational Training,17/11/2015,2200061263,"1,200.00",I CAN Charity
http://statistics.data.gov.uk/id/local-authority/38,Oxfordshire County Council,C&I PROJECTS,3100,Educational and Vocational Training,03/11/2015,2200052494,"1,820.00",I CAN Charity
http://statistics.data.gov.uk/id/local-authority/38,Oxfordshire County Council,C&I PROJECTS,3100,Educational and Vocational Training,01/11/2015,2200059618,"5,870.00",I CAN Charity
http://statistics.data.gov.uk/id/local-authority/38,Oxfordshire County Council,PRACTICE PLACEMENTS,3100,Educational and Vocational Training,26/11/2015,2200067741,"4,000.00",Mariette Uys
http://statistics.data.gov.uk/id/local-authority/38,Oxfordshire County Council,"COSAF, VIPRE + SOEXC",3100,Educational and Vocational Training,17/11/2015,2200060505,950,Oxford Against Cutting
http://statistics.data.gov.uk/id/local-authority/38,Oxfordshire County Council,SJC TRAINING,3100,Educational and Vocational Training,17/11/2015,2200062366,"1,175.00",OXFORD BROOKES UNIVERSITY
http://statistics.data.gov.uk/id/local-authority/38,Oxfordshire County Council,INFORMATION & OPPORT,3100,Educational and Vocational Training,24/11/2015,2200067164,"1,960.00",OXFORD BROOKES UNIVERSITY
http://statistics.data.gov.uk/id/local-authority/38,Oxfordshire County Council,ASC & CS,3100,Educational and Vocational Training,09/11/2015,2200055930,600,Premier Partnership
http://statistics.data.gov.uk/id/local-authority/38,Oxfordshire County Council,ECC,3100,Educational and Vocational Training,24/11/2015,2200065919,"3,120.00",Rush Common Academy
http://statistics.data.gov.uk/id/local-authority/38,Oxfordshire County Council,TRAINING MANAGEMENT,3100,Educational and Vocational Training,02/11/2015,2200055270,700,Terberg DTS (UK) Ltd
http://statistics.data.gov.uk/id/local-authority/38,Oxfordshire County Council,BICESTER RURAL CC,3103,Other Training Courses and Qualification,18/11/2015,2200063999,"1,152.00",Abingdon & Witney College
http://statistics.data.gov.uk/id/local-authority/38,Oxfordshire County Council,ASC & CS,3103,Other Training Courses and Qualification,26/11/2015,2200069679,595,BOURNEMOUTH UNIVERSITY
http://statistics.data.gov.uk/id/local-authority/38,Oxfordshire County Council,FLORENCE PARK CC,3103,Other Training Courses and Qualification,12/11/2015,2200057915,650,Change Point Ltd
http://statistics.data.gov.uk/id/local-authority/38,Oxfordshire County Council,PSYCHOLOGY SERVICE,3103,Other Training Courses and Qualification,17/11/2015,2200060458,"1,500.00",Family Links
http://statistics.data.gov.uk/id/local-authority/38,Oxfordshire County Council,WINTER MAINTENANCE,3103,Other Training Courses and Qualification,18/11/2015,2200061187,"1,650.00",IHIE
http://statistics.data.gov.uk/id/local-authority/38,Oxfordshire County Council,ASC & CS,3103,Other Training Courses and Qualification,24/11/2015,2200065916,"1,210.00",Isla Grant Casey
http://statistics.data.gov.uk/id/local-authority/38,Oxfordshire County Council,L&D CORE PROGRAMME,3103,Other Training Courses and Qualification,12/11/2015,2200059645,"1,700.00",J APPS
http://statistics.data.gov.uk/id/local-authority/38,Oxfordshire County Council,L&D CORE PROGRAMME,3103,Other Training Courses and Qualification,16/11/2015,2200062230,750,Live Work Well
http://statistics.data.gov.uk/id/local-authority/38,Oxfordshire County Council,RESIDENTIAL STRATEGY,3103,Other Training Courses and Qualification,18/11/2015,2200060904,"1,763.00",Signis Group
http://statistics.data.gov.uk/id/local-authority/38,Oxfordshire County Council,RESIDENTIAL STRATEGY,3103,Other Training Courses and Qualification,05/11/2015,2200056054,"1,766.50",Signis Group
http://statistics.data.gov.uk/id/local-authority/38,Oxfordshire County Council,RESIDENTIAL STRATEGY,3103,Other Training Courses and Qualification,18/11/2015,2200060853,"1,766.50",Signis Group
http://statistics.data.gov.uk/id/local-authority/38,Oxfordshire County Council,RESIDENTIAL STRATEGY,3103,Other Training Courses and Qualification,18/11/2015,2200060894,"5,850.00",Signis Group
http://statistics.data.gov.uk/id/local-authority/38,Oxfordshire County Council,AREA STEWARDS STAFF,3103,Other Training Courses and Qualification,26/11/2015,2200067378,"1,338.00",SKILLS TRAINING CENTRE
http://statistics.data.gov.uk/id/local-authority/38,Oxfordshire County Council,FLORENCE PARK CC,3103,Other Training Courses and Qualification,23/11/2015,2200063941,500,Sue Penna Associates
http://statistics.data.gov.uk/id/local-authority/38,Oxfordshire County Council,PRACTICE PLACEMENTS,3103,Other Training Courses and Qualification,04/11/2015,2200056076,"18,900.00",THE OPEN UNIVERSITY
http://statistics.data.gov.uk/id/local-authority/38,Oxfordshire County Council,SENSS TRAINING,3103,Other Training Courses and Qualification,23/11/2015,2200064953,550,VALENCE SCHOOL
http://statistics.data.gov.uk/id/local-authority/38,Oxfordshire County Council,TRAINING MANAGEMENT,3105,Training related expenditure,01/11/2015,2200060307,"1,865.20",Amy Enticknap
http://statistics.data.gov.uk/id/local-authority/38,Oxfordshire County Council,TRAINING MANAGEMENT,3105,Training related expenditure,12/11/2015,2200059511,525,Bicester Heritage Ltd
http://statistics.data.gov.uk/id/local-authority/38,Oxfordshire County Council,FY STRATEGIC WORK,3105,Training related expenditure,01/11/2015,2200064046,"2,616.56",BLACKWELLS
http://statistics.data.gov.uk/id/local-authority/38,Oxfordshire County Council,L&D CORE PROGRAMME,3105,Training related expenditure,01/11/2015,2200057753,"3,300.00",CORDIE LTD
http://statistics.data.gov.uk/id/local-authority/38,Oxfordshire County Council,OBS,3105,Training related expenditure,27/11/2015,2200067875,"1,256.04",DWF LLP
http://statistics.data.gov.uk/id/local-authority/38,Oxfordshire County Council,ASC & CS,3105,Training related expenditure,04/11/2015,2200054630,662.8,Faiers Training Ltd
http://statistics.data.gov.uk/id/local-authority/38,Oxfordshire County Council,SCENARIO BASED TRAIN,3105,Training related expenditure,10/11/2015,2200057950,"1,350.00",Fire Service College Ltd
http://statistics.data.gov.uk/id/local-authority/38,Oxfordshire County Council,SCENARIO BASED TRAIN,3105,Training related expenditure,10/11/2015,2200058782,"1,350.00",Fire Service College Ltd
http://statistics.data.gov.uk/id/local-authority/38,Oxfordshire County Council,TRAINING MANAGEMENT,3105,Training related expenditure,01/11/2015,2200069183,"1,593.00",Fire Service College Ltd
http://statistics.data.gov.uk/id/local-authority/38,Oxfordshire County Council,FY STRATEGIC WORK,3105,Training related expenditure,12/11/2015,2200059631,"3,465.00",Liz van Santen
http://statistics.data.gov.uk/id/local-authority/38,Oxfordshire County Council,SENSS TRAINING,3105,Training related expenditure,24/11/2015,2200067169,"3,210.00",MARY HARE GRAMMAR SCHOOL
http://statistics.data.gov.uk/id/local-authority/38,Oxfordshire County Council,ASC & CS,3105,Training related expenditure,17/11/2015,3110028995,"5,000.00",OCC One Time Vendor
http://statistics.data.gov.uk/id/local-authority/38,Oxfordshire County Council,FY STRATEGIC WORK,3105,Training related expenditure,02/11/2015,2200052410,"6,380.00",Oxford Brookes University
http://statistics.data.gov.uk/id/local-authority/38,Oxfordshire County Council,ASC & CS,3105,Training related expenditure,17/11/2015,2200061398,"3,254.20",Signis Group
http://statistics.data.gov.uk/id/local-authority/38,Oxfordshire County Council,LIABILITY,3153,Liability IF TP Damage,23/11/2015,3110032069,"1,000.00",OCC One Time Vendor
http://statistics.data.gov.uk/id/local-authority/38,Oxfordshire County Council,MOTOR FLEET,3154,Property IF Building Damage,30/11/2015,3110033730,"2,660.00",Cunningham Lindsey United Kingdom
http://statistics.data.gov.uk/id/local-authority/38,Oxfordshire County Council,ORGANISATIONAL DEV'T,3250,Staff Long Service,30/11/2015,2200069602,591.55,Mark Bassett - Photographer
http://statistics.data.gov.uk/id/local-authority/38,Oxfordshire County Council,LIABILITY,3257,Liability IF Fees,03/11/2015,3110025518,800,Essex County Council
http://statistics.data.gov.uk/id/local-authority/38,Oxfordshire County Council,LIABILITY,3257,Liability IF Fees,17/11/2015,3110028998,"9,500.00",OCC One Time Vendor
http://statistics.data.gov.uk/id/local-authority/38,Oxfordshire County Council,CHILDCARE VOUCHERS,3300,Other Employee Expenses,23/11/2015,3110032072,841.17,KiddiVouchers
http://statistics.data.gov.uk/id/local-authority/38,Oxfordshire County Council,LMS,3746,Insurance Premiums Holding Account External Premiu,03/11/2015,3110025520,"9,540.00",Zurich Management Services
http://statistics.data.gov.uk/id/local-authority/38,Oxfordshire County Council,LMS,3746,Insurance Premiums Holding Account External Premiu,03/11/2015,3110025517,"14,160.00",Zurich Management Services
http://statistics.data.gov.uk/id/local-authority/38,Oxfordshire County Council,OTHER,3746,Insurance Premiums Holding Account External Premiu,03/11/2015,3110025519,"71,081.74",Zurich Management Services
http://statistics.data.gov.uk/id/local-authority/38,Oxfordshire County Council,BUCKS GYPSY &TRAV SV,3787,Premises Repairs,17/11/2015,2200061748,587.66,Capital Heating Ltd / CH Maintenanc
http://statistics.data.gov.uk/id/local-authority/38,Oxfordshire County Council,BRENT GYPSY & TRAV,3787,Premises Repairs,17/11/2015,2200061749,"3,816.27",Capital Heating Ltd / CH Maintenanc
http://statistics.data.gov.uk/id/local-authority/38,Oxfordshire County Council,HARD FM,3787,Premises Repairs,20/11/2015,2200062118,"-26,783.04",Carillion LGS Ltd
http://statistics.data.gov.uk/id/local-authority/38,Oxfordshire County Council,GRANDPONT NURSERY,3787,Premises Repairs,20/11/2015,2200062115,"-21,807.15",Carillion LGS Ltd
http://statistics.data.gov.uk/id/local-authority/38,Oxfordshire County Council,MATTHEW ARNOLD  CUMN,3787,Premises Repairs,20/11/2015,2200062121,"-19,870.30",Carillion LGS Ltd
http://statistics.data.gov.uk/id/local-authority/38,Oxfordshire County Council,HARD FM,3787,Premises Repairs,20/11/2015,2200062133,"-14,996.66",Carillion LGS Ltd
http://statistics.data.gov.uk/id/local-authority/38,Oxfordshire County Council,LARKMEAD SCH  AB,3787,Premises Repairs,20/11/2015,2200062120,"-8,250.44",Carillion LGS Ltd
http://statistics.data.gov.uk/id/local-authority/38,Oxfordshire County Council,HEADINGTON NURSERY,3787,Premises Repairs,20/11/2015,2200062124,"-4,733.63",Carillion LGS Ltd
http://statistics.data.gov.uk/id/local-authority/38,Oxfordshire County Council,LANDSCAPE MANAGEMENT,3787,Premises Repairs,20/11/2015,2200062125,"-1,727.44",Carillion LGS Ltd
http://statistics.data.gov.uk/id/local-authority/38,Oxfordshire County Council,HARD FM,3787,Premises Repairs,20/11/2015,2200062119,"-1,523.94",Carillion LGS Ltd
http://statistics.data.gov.uk/id/local-authority/38,Oxfordshire County Council,EYFS (FS) - TRAINING,3787,Premises Repairs,20/11/2015,2200062116,-968.92,Carillion LGS Ltd
http://statistics.data.gov.uk/id/local-authority/38,Oxfordshire County Council,HARD FM,3787,Premises Repairs,20/11/2015,2200062122,-613.87,Carillion LGS Ltd
http://statistics.data.gov.uk/id/local-authority/38,Oxfordshire County Council,HARD FM,3787,Premises Repairs,11/11/2015,2200061982,613.87,Carillion LGS Ltd
http://statistics.data.gov.uk/id/local-authority/38,Oxfordshire County Council,HARD FM,3787,Premises Repairs,16/11/2015,2200061816,613.87,Carillion LGS Ltd
http://statistics.data.gov.uk/id/local-authority/38,Oxfordshire County Council,ST MARY'S  BANBURY,3787,Premises Repairs,19/11/2015,2200064887,637.82,Carillion LGS Ltd
http://statistics.data.gov.uk/id/local-authority/38,Oxfordshire County Council,FRITWELL CE SCHOOL,3787,Premises Repairs,11/11/2015,2200057917,834.55,Carillion LGS Ltd
http://statistics.data.gov.uk/id/local-authority/38,Oxfordshire County Council,WILLIAM FLETCHER SCH,3787,Premises Repairs,19/11/2015,2200063037,907.65,Carillion LGS Ltd
http://statistics.data.gov.uk/id/local-authority/38,Oxfordshire County Council,HARD FM,3787,Premises Repairs,19/11/2015,2200064963,920.81,Carillion LGS Ltd
http://statistics.data.gov.uk/id/local-authority/38,Oxfordshire County Council,EYFS (FS) - TRAINING,3787,Premises Repairs,11/11/2015,2200061951,968.92,Carillion LGS Ltd
http://statistics.data.gov.uk/id/local-authority/38,Oxfordshire County Council,EYFS (FS) - TRAINING,3787,Premises Repairs,16/11/2015,2200061812,968.92,Carillion LGS Ltd
http://statistics.data.gov.uk/id/local-authority/38,Oxfordshire County Council,WILLIAM MORRIS  BANB,3787,Premises Repairs,19/11/2015,2200063048,"1,027.06",Carillion LGS Ltd
http://statistics.data.gov.uk/id/local-authority/38,Oxfordshire County Council,HARD FM,3787,Premises Repairs,19/11/2015,2200063041,"1,147.72",Carillion LGS Ltd
http://statistics.data.gov.uk/id/local-authority/38,Oxfordshire County Council,HARD FM,3787,Premises Repairs,02/11/2015,2200052406,"1,505.83",Carillion LGS Ltd
http://statistics.data.gov.uk/id/local-authority/38,Oxfordshire County Council,HARD FM,3787,Premises Repairs,11/11/2015,2200061977,"1,523.94",Carillion LGS Ltd
http://statistics.data.gov.uk/id/local-authority/38,Oxfordshire County Council,HARD FM,3787,Premises Repairs,16/11/2015,2200061790,"1,523.94",Carillion LGS Ltd
http://statistics.data.gov.uk/id/local-authority/38,Oxfordshire County Council,HARD FM,3787,Premises Repairs,24/11/2015,2200065876,"1,700.05",Carillion LGS Ltd
http://statistics.data.gov.uk/id/local-authority/38,Oxfordshire County Council,LANDSCAPE MANAGEMENT,3787,Premises Repairs,11/11/2015,2200061991,"1,727.44",Carillion LGS Ltd
http://statistics.data.gov.uk/id/local-authority/38,Oxfordshire County Council,LANDSCAPE MANAGEMENT,3787,Premises Repairs,16/11/2015,2200061846,"1,727.44",Carillion LGS Ltd
http://statistics.data.gov.uk/id/local-authority/38,Oxfordshire County Council,FRITWELL CE SCHOOL,3787,Premises Repairs,11/11/2015,2200057927,"2,469.06",Carillion LGS Ltd
http://statistics.data.gov.uk/id/local-authority/38,Oxfordshire County Council,FIR TREE  WALLINGFOR,3787,Premises Repairs,16/11/2015,2200061851,"2,551.66",Carillion LGS Ltd
http://statistics.data.gov.uk/id/local-authority/38,Oxfordshire County Council,HARD FM,3787,Premises Repairs,24/11/2015,2200065868,"2,573.14",Carillion LGS Ltd
http://statistics.data.gov.uk/id/local-authority/38,Oxfordshire County Council,HARD FM,3787,Premises Repairs,24/11/2015,2200065897,"2,673.27",Carillion LGS Ltd
http://statistics.data.gov.uk/id/local-authority/38,Oxfordshire County Council,HARD FM,3787,Premises Repairs,19/11/2015,2200062979,"3,011.49",Carillion LGS Ltd
http://statistics.data.gov.uk/id/local-authority/38,Oxfordshire County Council,NORTHFIELD SCH  OXF,3787,Premises Repairs,16/11/2015,2200061841,"3,098.61",Carillion LGS Ltd
http://statistics.data.gov.uk/id/local-authority/38,Oxfordshire County Council,HARD FM,3787,Premises Repairs,26/11/2015,2200067222,"3,332.10",Carillion LGS Ltd
http://statistics.data.gov.uk/id/local-authority/38,Oxfordshire County Council,HILL VIEW  BANBURY,3787,Premises Repairs,11/11/2015,2200061996,"3,436.25",Carillion LGS Ltd
http://statistics.data.gov.uk/id/local-authority/38,Oxfordshire County Council,WILLIAM MORRIS  BANB,3787,Premises Repairs,19/11/2015,2200063055,"3,659.31",Carillion LGS Ltd
http://statistics.data.gov.uk/id/local-authority/38,Oxfordshire County Council,HARD FM,3787,Premises Repairs,19/11/2015,2200062980,"3,901.55",Carillion LGS Ltd
http://statistics.data.gov.uk/id/local-authority/38,Oxfordshire County Council,LANDSCAPE MANAGEMENT,3787,Premises Repairs,11/11/2015,2200061995,"4,647.01",Carillion LGS Ltd
http://statistics.data.gov.uk/id/local-authority/38,Oxfordshire County Council,HEADINGTON NURSERY,3787,Premises Repairs,11/11/2015,2200061986,"4,733.63",Carillion LGS Ltd
http://statistics.data.gov.uk/id/local-authority/38,Oxfordshire County Council,HEADINGTON NURSERY,3787,Premises Repairs,16/11/2015,2200061838,"4,733.63",Carillion LGS Ltd
http://statistics.data.gov.uk/id/local-authority/38,Oxfordshire County Council,FRITWELL CE SCHOOL,3787,Premises Repairs,11/11/2015,2200061994,"4,775.64",Carillion LGS Ltd
http://statistics.data.gov.uk/id/local-authority/38,Oxfordshire County Council,NORTHFIELD SCH  OXF,3787,Premises Repairs,11/11/2015,2200061987,"4,828.65",Carillion LGS Ltd
http://statistics.data.gov.uk/id/local-authority/38,Oxfordshire County Council,CROWMARSH GIFFORD CE,3787,Premises Repairs,11/11/2015,2200058630,"5,182.19",Carillion LGS Ltd
http://statistics.data.gov.uk/id/local-authority/38,Oxfordshire County Council,HARD FM,3787,Premises Repairs,24/11/2015,2200066277,"5,754.24",Carillion LGS Ltd
http://statistics.data.gov.uk/id/local-authority/38,Oxfordshire County Council,HARD FM,3787,Premises Repairs,26/11/2015,2200067225,"6,195.01",Carillion LGS Ltd
http://statistics.data.gov.uk/id/local-authority/38,Oxfordshire County Council,HARD FM,3787,Premises Repairs,11/11/2015,2200062289,"7,332.70",Carillion LGS Ltd
http://statistics.data.gov.uk/id/local-authority/38,Oxfordshire County Council,HARD FM,3787,Premises Repairs,26/11/2015,2200067216,"7,475.73",Carillion LGS Ltd
http://statistics.data.gov.uk/id/local-authority/38,Oxfordshire County Council,HARD FM,3787,Premises Repairs,19/11/2015,2200063978,"7,917.09",Carillion LGS Ltd
http://statistics.data.gov.uk/id/local-authority/38,Oxfordshire County Council,LARKMEAD SCH  AB,3787,Premises Repairs,11/11/2015,2200061981,"8,250.44",Carillion LGS Ltd
http://statistics.data.gov.uk/id/local-authority/38,Oxfordshire County Council,LARKMEAD SCH  AB,3787,Premises Repairs,16/11/2015,2200061792,"8,250.44",Carillion LGS Ltd
http://statistics.data.gov.uk/id/local-authority/38,Oxfordshire County Council,GYPSY & TRAVELLER SV,3787,Premises Repairs,27/11/2015,2200068144,"8,896.94",Carillion LGS Ltd
http://statistics.data.gov.uk/id/local-authority/38,Oxfordshire County Council,BARLEY HILL  THAME,3787,Premises Repairs,26/11/2015,2200067221,"9,170.94",Carillion LGS Ltd
http://statistics.data.gov.uk/id/local-authority/38,Oxfordshire County Council,HARD FM,3787,Premises Repairs,11/11/2015,2200057922,"12,610.39",Carillion LGS Ltd
http://statistics.data.gov.uk/id/local-authority/38,Oxfordshire County Council,HARD FM,3787,Premises Repairs,11/11/2015,2200058903,"13,703.30",Carillion LGS Ltd
http://statistics.data.gov.uk/id/local-authority/38,Oxfordshire County Council,HARD FM,3787,Premises Repairs,01/11/2015,2200062023,"14,996.66",Carillion LGS Ltd
http://statistics.data.gov.uk/id/local-authority/38,Oxfordshire County Council,HARD FM,3787,Premises Repairs,01/11/2015,2200062028,"14,996.66",Carillion LGS Ltd
http://statistics.data.gov.uk/id/local-authority/38,Oxfordshire County Council,HARD FM,3787,Premises Repairs,19/11/2015,2200066415,"17,555.51",Carillion LGS Ltd
http://statistics.data.gov.uk/id/local-authority/38,Oxfordshire County Council,HARD FM,3787,Premises Repairs,02/11/2015,2200052395,"18,138.04",Carillion LGS Ltd
http://statistics.data.gov.uk/id/local-authority/38,Oxfordshire County Council,MATTHEW ARNOLD  CUMN,3787,Premises Repairs,11/11/2015,2200061984,"19,870.30",Carillion LGS Ltd
http://statistics.data.gov.uk/id/local-authority/38,Oxfordshire County Council,MATTHEW ARNOLD  CUMN,3787,Premises Repairs,16/11/2015,2200061793,"19,870.30",Carillion LGS Ltd
http://statistics.data.gov.uk/id/local-authority/38,Oxfordshire County Council,GRANDPONT NURSERY,3787,Premises Repairs,11/11/2015,2200061950,"21,807.15",Carillion LGS Ltd
http://statistics.data.gov.uk/id/local-authority/38,Oxfordshire County Council,GRANDPONT NURSERY,3787,Premises Repairs,16/11/2015,2200061798,"21,807.15",Carillion LGS Ltd
http://statistics.data.gov.uk/id/local-authority/38,Oxfordshire County Council,HARD FM,3787,Premises Repairs,11/11/2015,2200061983,"26,783.04",Carillion LGS Ltd
http://statistics.data.gov.uk/id/local-authority/38,Oxfordshire County Council,HARD FM,3787,Premises Repairs,16/11/2015,2200061781,"26,783.04",Carillion LGS Ltd
http://statistics.data.gov.uk/id/local-authority/38,Oxfordshire County Council,HARD FM,3787,Premises Repairs,11/11/2015,2200061988,"27,183.52",Carillion LGS Ltd
http://statistics.data.gov.uk/id/local-authority/38,Oxfordshire County Council,HARD FM,3787,Premises Repairs,19/11/2015,2200066455,"32,964.97",Carillion LGS Ltd
http://statistics.data.gov.uk/id/local-authority/38,Oxfordshire County Council,BARLEY HILL  THAME,3787,Premises Repairs,26/11/2015,2200067220,"35,003.40",Carillion LGS Ltd
http://statistics.data.gov.uk/id/local-authority/38,Oxfordshire County Council,ST MARY'S  BANBURY,3787,Premises Repairs,19/11/2015,2200065422,"40,020.33",Carillion LGS Ltd
http://statistics.data.gov.uk/id/local-authority/38,Oxfordshire County Council,BARLEY HILL  THAME,3787,Premises Repairs,26/11/2015,2200067218,"47,138.47",Carillion LGS Ltd
http://statistics.data.gov.uk/id/local-authority/38,Oxfordshire County Council,FRITWELL CE SCHOOL,3787,Premises Repairs,11/11/2015,2200057929,"59,458.49",Carillion LGS Ltd
http://statistics.data.gov.uk/id/local-authority/38,Oxfordshire County Council,HARD FM,3787,Premises Repairs,03/11/2015,2200053326,"129,474.75",Carillion LGS Ltd
http://statistics.data.gov.uk/id/local-authority/38,Oxfordshire County Council,BUCKS GYPSY &TRAV SV,3787,Premises Repairs,03/11/2015,2200054574,786,E.E. Keen & Sons
http://statistics.data.gov.uk/id/local-authority/38,Oxfordshire County Council,HARD FM,3787,Premises Repairs,13/11/2015,2200058924,-513,Environment Agency
http://statistics.data.gov.uk/id/local-authority/38,Oxfordshire County Council,HARD FM,3787,Premises Repairs,11/11/2015,2200058900,513,Environment Agency
http://statistics.data.gov.uk/id/local-authority/38,Oxfordshire County Council,HARD FM,3787,Premises Repairs,11/11/2015,2200058915,513,Environment Agency
http://statistics.data.gov.uk/id/local-authority/38,Oxfordshire County Council,HARD FM,3787,Premises Repairs,11/11/2015,2200058271,684,Environment Agency
http://statistics.data.gov.uk/id/local-authority/38,Oxfordshire County Council,BRENT GYPSY & TRAV,3787,Premises Repairs,26/11/2015,2200067152,"1,239.89",Harlequin Pest Control
http://statistics.data.gov.uk/id/local-authority/38,Oxfordshire County Council,BRENT GYPSY & TRAV,3787,Premises Repairs,10/11/2015,2200058770,"1,344.20",Harlequin Pest Control
http://statistics.data.gov.uk/id/local-authority/38,Oxfordshire County Council,BUCKS GYPSY &TRAV SV,3787,Premises Repairs,26/11/2015,2200067146,"2,191.02",Harlequin Pest Control
http://statistics.data.gov.uk/id/local-authority/38,Oxfordshire County Council,BRENT GYPSY & TRAV,3787,Premises Repairs,10/11/2015,2200058771,"3,910.81",Harlequin Pest Control
http://statistics.data.gov.uk/id/local-authority/38,Oxfordshire County Council,GYPSY & TRAVELLER SV,3787,Premises Repairs,17/11/2015,2200062091,"5,499.01",Harlequin Pest Control
http://statistics.data.gov.uk/id/local-authority/38,Oxfordshire County Council,BRENT GYPSY & TRAV,3787,Premises Repairs,10/11/2015,2200058768,"5,874.21",Harlequin Pest Control
http://statistics.data.gov.uk/id/local-authority/38,Oxfordshire County Council,TREE MAINT OPS,3821,Grounds Maintenance Contracts,13/11/2015,2200059489,650,Acreman's Arboriculture Ltd
http://statistics.data.gov.uk/id/local-authority/38,Oxfordshire County Council,TREE MAINT OPS,3821,Grounds Maintenance Contracts,12/11/2015,2200058746,"7,200.00",Acreman's Arboriculture Ltd
http://statistics.data.gov.uk/id/local-authority/38,Oxfordshire County Council,TREE MAINT OPS,3821,Grounds Maintenance Contracts,12/11/2015,2200058747,"7,700.00",Acreman's Arboriculture Ltd
http://statistics.data.gov.uk/id/local-authority/38,Oxfordshire County Council,ABINGDON HUB,3821,Grounds Maintenance Contracts,23/11/2015,2200065757,700,Aspire Oxfordshire
http://statistics.data.gov.uk/id/local-authority/38,Oxfordshire County Council,REAL TIME BUS INFO,3821,Grounds Maintenance Contracts,13/11/2015,2200063080,"7,398.64",EXTERNITURE LTD
http://statistics.data.gov.uk/id/local-authority/38,Oxfordshire County Council,BUCKS GYPSY &TRAV SV,3821,Grounds Maintenance Contracts,01/11/2015,2200054266,740,Garden Matters
http://statistics.data.gov.uk/id/local-authority/38,Oxfordshire County Council,BUCKS GYPSY &TRAV SV,3821,Grounds Maintenance Contracts,10/11/2015,2200056560,740,Garden Matters
http://statistics.data.gov.uk/id/local-authority/38,Oxfordshire County Council,THE ROUNDABOUT CNTRE,3821,Grounds Maintenance Contracts,19/11/2015,2200064911,"1,930.00",Knowles & Son (Oxford) Ltd
http://statistics.data.gov.uk/id/local-authority/38,Oxfordshire County Council,SOFT FM,3821,Grounds Maintenance Contracts,30/11/2015,2200069105,500,M K Watts Ground Maintenance
http://statistics.data.gov.uk/id/local-authority/38,Oxfordshire County Council,PREMISES,3821,Grounds Maintenance Contracts,01/11/2015,2200055672,875,M K Watts Ground Maintenance
http://statistics.data.gov.uk/id/local-authority/38,Oxfordshire County Council,PREMISES,3821,Grounds Maintenance Contracts,01/11/2015,2200057758,875,M K Watts Ground Maintenance
http://statistics.data.gov.uk/id/local-authority/38,Oxfordshire County Council,PREMISES,3821,Grounds Maintenance Contracts,05/11/2015,2200056067,875,M K Watts Ground Maintenance
http://statistics.data.gov.uk/id/local-authority/38,Oxfordshire County Council,BICESTER CC,3821,Grounds Maintenance Contracts,03/11/2015,2200066785,730,PJG MAINTENANCE SERVICES
http://statistics.data.gov.uk/id/local-authority/38,Oxfordshire County Council,HILL END,3830,Other Adhoc Site / Grounds Maintenanc,01/11/2015,2200056770,"1,673.48",Reresonate
http://statistics.data.gov.uk/id/local-authority/38,Oxfordshire County Council,TROJAN RES CARE,3860,Alterations To Buildings,12/11/2015,3110028726,"60,644.96",Redacted Personal Data
http://statistics.data.gov.uk/id/local-authority/38,Oxfordshire County Council,PLACEMENTS-FRELEVANT,3942,Hire of Accommodation and Facilities,10/11/2015,2200057317,"1,500.00",Happy Lodge
http://statistics.data.gov.uk/id/local-authority/38,Oxfordshire County Council,PLACEMENTS-FRELEVANT,3942,Hire of Accommodation and Facilities,10/11/2015,2200056580,"1,550.00",Happy Lodge
http://statistics.data.gov.uk/id/local-authority/38,Oxfordshire County Council,UASC 16&17,3942,Hire of Accommodation and Facilities,10/11/2015,2200056577,"1,800.00",Happy Lodge
http://statistics.data.gov.uk/id/local-authority/38,Oxfordshire County Council,UASC 16&17,3942,Hire of Accommodation and Facilities,10/11/2015,2200056583,"1,800.00",Happy Lodge
http://statistics.data.gov.uk/id/local-authority/38,Oxfordshire County Council,UASC 16&17,3942,Hire of Accommodation and Facilities,10/11/2015,2200056581,"1,860.00",Happy Lodge
http://statistics.data.gov.uk/id/local-authority/38,Oxfordshire County Council,FAILED AS EU IGHB,3942,Hire of Accommodation and Facilities,10/11/2015,3500008435,"1,400.00",Nasser Nasib
http://statistics.data.gov.uk/id/local-authority/38,Oxfordshire County Council,FAILED AS EU IGHB,3942,Hire of Accommodation and Facilities,03/11/2015,3500008074,"1,600.00",Nasser Nasib
http://statistics.data.gov.uk/id/local-authority/38,Oxfordshire County Council,FAILED AS EU IGHB,3942,Hire of Accommodation and Facilities,18/11/2015,3500008824,"1,900.00",Nasser Nasib
http://statistics.data.gov.uk/id/local-authority/38,Oxfordshire County Council,MODERATION,3942,Hire of Accommodation and Facilities,01/11/2015,2200059260,508.33,NYS CORPORATE LTD
http://statistics.data.gov.uk/id/local-authority/38,Oxfordshire County Council,MODERATION,3942,Hire of Accommodation and Facilities,01/11/2015,2200060346,796.5,NYS CORPORATE LTD
http://statistics.data.gov.uk/id/local-authority/38,Oxfordshire County Council,GRANTS INC VOL SECT,3942,Hire of Accommodation and Facilities,18/11/2015,2200065423,922.5,NYS CORPORATE LTD
http://statistics.data.gov.uk/id/local-authority/38,Oxfordshire County Council,DIRECTOR'S OFFICE,3942,Hire of Accommodation and Facilities,01/11/2015,2200062369,"1,350.00",NYS CORPORATE LTD
http://statistics.data.gov.uk/id/local-authority/38,Oxfordshire County Council,ETE,3942,Hire of Accommodation and Facilities,01/11/2015,2200064611,"1,460.00",NYS CORPORATE LTD
http://statistics.data.gov.uk/id/local-authority/38,Oxfordshire County Council,SKILLS & LEARNING,3942,Hire of Accommodation and Facilities,20/11/2015,2200065470,"10,456.00",NYS CORPORATE LTD
http://statistics.data.gov.uk/id/local-authority/38,Oxfordshire County Council,DIRECTOR'S OFFICE,3942,Hire of Accommodation and Facilities,10/11/2015,3110027510,982.49,OCC One Time Vendor
http://statistics.data.gov.uk/id/local-authority/38,Oxfordshire County Council,DIRECTOR'S OFFICE,3942,Hire of Accommodation and Facilities,19/11/2015,3110031592,982.49,OCC One Time Vendor
http://statistics.data.gov.uk/id/local-authority/38,Oxfordshire County Council,FAILED AS EU IGHB,3942,Hire of Accommodation and Facilities,04/11/2015,3500008079,"2,095.00",Red Abacus Ltd
http://statistics.data.gov.uk/id/local-authority/38,Oxfordshire County Council,FAILED AS EU IGHB,3942,Hire of Accommodation and Facilities,30/11/2015,3500009608,"1,515.00",Redacted Personal Data
http://statistics.data.gov.uk/id/local-authority/38,Oxfordshire County Council,FAILED AS EU IGHB,3942,Hire of Accommodation and Facilities,25/11/2015,3500009190,"1,000.00",Sophia Investments
http://statistics.data.gov.uk/id/local-authority/38,Oxfordshire County Council,ICT OPERATIONS & MAI,3942,Hire of Accommodation and Facilities,18/11/2015,2200061231,"14,400.00",SPECIALIST COMPUTER CENTRES
http://statistics.data.gov.uk/id/local-authority/38,Oxfordshire County Council,FAILED AS EU IGHB,3942,Hire of Accommodation and Facilities,05/11/2015,3500008403,"1,600.00",Sterling Residential
http://statistics.data.gov.uk/id/local-authority/38,Oxfordshire County Council,FAILED AS EU IGHB,3942,Hire of Accommodation and Facilities,23/11/2015,3500009148,"1,900.00",Sterling Residential
http://statistics.data.gov.uk/id/local-authority/38,Oxfordshire County Council,NCS,3942,Hire of Accommodation and Facilities,20/11/2015,2200062897,"1,900.00",The Kings Centre
http://statistics.data.gov.uk/id/local-authority/38,Oxfordshire County Council,CHILD PROTECTION,3942,Hire of Accommodation and Facilities,10/11/2015,2200063804,510,Unipart Group Ltd
http://statistics.data.gov.uk/id/local-authority/38,Oxfordshire County Council,INT CUST SERVS PROG,3942,Hire of Accommodation and Facilities,20/11/2015,2200064150,520,Unipart Group Ltd
http://statistics.data.gov.uk/id/local-authority/38,Oxfordshire County Council,INT CUST SERVS PROG,3942,Hire of Accommodation and Facilities,20/11/2015,2200064145,530,Unipart Group Ltd
http://statistics.data.gov.uk/id/local-authority/38,Oxfordshire County Council,OPERATIONAL COSTS,3942,Hire of Accommodation and Facilities,25/11/2015,2200066317,637.5,Unipart Group Ltd
http://statistics.data.gov.uk/id/local-authority/38,Oxfordshire County Council,L&D CORE PROGRAMME,3942,Hire of Accommodation and Facilities,25/11/2015,2200066314,675,Unipart Group Ltd
http://statistics.data.gov.uk/id/local-authority/38,Oxfordshire County Council,INT CUST SERVS PROG,3942,Hire of Accommodation and Facilities,25/11/2015,2200066539,"1,180.00",Unipart Group Ltd
http://statistics.data.gov.uk/id/local-authority/38,Oxfordshire County Council,INT CUST SERVS PROG,3942,Hire of Accommodation and Facilities,20/11/2015,2200066544,"1,240.00",Unipart Group Ltd
http://statistics.data.gov.uk/id/local-authority/38,Oxfordshire County Council,PRIM. TRADED INCOME,3942,Hire of Accommodation and Facilities,25/11/2015,2200066449,"1,270.00",Unipart Group Ltd
http://statistics.data.gov.uk/id/local-authority/38,Oxfordshire County Council,NQT,3942,Hire of Accommodation and Facilities,25/11/2015,2200066309,"2,240.00",Unipart Group Ltd
http://statistics.data.gov.uk/id/local-authority/38,Oxfordshire County Council,CITY DEAL SKILLS,3942,Hire of Accommodation and Facilities,10/11/2015,2200056870,500,Witney Lakes Resort Ltd
http://statistics.data.gov.uk/id/local-authority/38,Oxfordshire County Council,CORPORATE LANDLORD,3945,Rent,01/11/2015,3500007851,650,Old Marston Village Hall
http://statistics.data.gov.uk/id/local-authority/38,Oxfordshire County Council,LEP,3945,Rent,23/11/2015,2200064908,"3,125.00",Oxford Innovation Ltd
http://statistics.data.gov.uk/id/local-authority/38,Oxfordshire County Council,LEP,3945,Rent,24/11/2015,2200066595,"3,125.00",Oxford Innovation Ltd
http://statistics.data.gov.uk/id/local-authority/38,Oxfordshire County Council,DRAINAGE REPAIRS,3945,Rent,01/11/2015,2200064734,573.04,SANCTUARY CARE LTD
http://statistics.data.gov.uk/id/local-authority/38,Oxfordshire County Council,MUSEUMS COLLECTIONS,3950,Non System - Gas,10/11/2015,2200057905,"3,722.06",Calor Gas Ltd
http://statistics.data.gov.uk/id/local-authority/38,Oxfordshire County Council,WOODLANDS CENTRE,3950,Non System - Gas,30/11/2015,2200069134,"2,231.50",Countrywide Farmers PLC
http://statistics.data.gov.uk/id/local-authority/38,Oxfordshire County Council,HIGHWAYS GENERAL,3951,Non System - Electricity,18/11/2015,3110031546,502.77,NPOWER
http://statistics.data.gov.uk/id/local-authority/38,Oxfordshire County Council,HIGHWAYS GENERAL,3951,Non System - Electricity,18/11/2015,3110031542,506.21,NPOWER
http://statistics.data.gov.uk/id/local-authority/38,Oxfordshire County Council,HIGHWAYS GENERAL,3951,Non System - Electricity,18/11/2015,3110031537,508.15,NPOWER
http://statistics.data.gov.uk/id/local-authority/38,Oxfordshire County Council,HIGHWAYS GENERAL,3951,Non System - Electricity,18/11/2015,3110031541,508.97,NPOWER
http://statistics.data.gov.uk/id/local-authority/38,Oxfordshire County Council,HIGHWAYS GENERAL,3951,Non System - Electricity,18/11/2015,3110031533,511.05,NPOWER
http://statistics.data.gov.uk/id/local-authority/38,Oxfordshire County Council,HIGHWAYS GENERAL,3951,Non System - Electricity,18/11/2015,3110031547,515.72,NPOWER
http://statistics.data.gov.uk/id/local-authority/38,Oxfordshire County Council,HIGHWAYS GENERAL,3951,Non System - Electricity,18/11/2015,3110031535,525.92,NPOWER
http://statistics.data.gov.uk/id/local-authority/38,Oxfordshire County Council,HIGHWAYS GENERAL,3951,Non System - Electricity,18/11/2015,3110031540,526.12,NPOWER
http://statistics.data.gov.uk/id/local-authority/38,Oxfordshire County Council,HIGHWAYS GENERAL,3951,Non System - Electricity,18/11/2015,3110031543,529.94,NPOWER
http://statistics.data.gov.uk/id/local-authority/38,Oxfordshire County Council,HIGHWAYS GENERAL,3951,Non System - Electricity,18/11/2015,3110031539,535.63,NPOWER
http://statistics.data.gov.uk/id/local-authority/38,Oxfordshire County Council,HIGHWAYS GENERAL,3951,Non System - Electricity,18/11/2015,3110031545,539.62,NPOWER
http://statistics.data.gov.uk/id/local-authority/38,Oxfordshire County Council,EAST ST CTR-PREMISES,3951,Non System - Electricity,18/11/2015,3110031579,577.17,NPOWER
http://statistics.data.gov.uk/id/local-authority/38,Oxfordshire County Council,GYPSY & TRAVELLER SV,3951,Non System - Electricity,24/11/2015,2200069707,661.1,NPOWER
http://statistics.data.gov.uk/id/local-authority/38,Oxfordshire County Council,UTILITIES,3951,Non System - Electricity,16/11/2015,3110031519,679.75,NPOWER
http://statistics.data.gov.uk/id/local-authority/38,Oxfordshire County Council,BUCKS GYPSY &TRAV SV,3951,Non System - Electricity,26/11/2015,2200067113,811.84,NPOWER
http://statistics.data.gov.uk/id/local-authority/38,Oxfordshire County Council,BUCKS GYPSY &TRAV SV,3951,Non System - Electricity,26/11/2015,2200067114,811.84,NPOWER
http://statistics.data.gov.uk/id/local-authority/38,Oxfordshire County Council,BUCKS GYPSY &TRAV SV,3951,Non System - Electricity,12/11/2015,2200059786,838.88,NPOWER
http://statistics.data.gov.uk/id/local-authority/38,Oxfordshire County Council,BUCKS GYPSY &TRAV SV,3951,Non System - Electricity,01/11/2015,2200059785,"1,057.89",NPOWER
http://statistics.data.gov.uk/id/local-authority/38,Oxfordshire County Council,BUCKS GYPSY &TRAV SV,3951,Non System - Electricity,12/11/2015,2200060563,"1,057.89",NPOWER
http://statistics.data.gov.uk/id/local-authority/38,Oxfordshire County Council,GYPSY & TRAVELLER SV,3951,Non System - Electricity,24/11/2015,2200066474,"1,066.31",NPOWER
http://statistics.data.gov.uk/id/local-authority/38,Oxfordshire County Council,BUCKS GYPSY &TRAV SV,3951,Non System - Electricity,19/11/2015,2200062660,"1,125.00",NPOWER
http://statistics.data.gov.uk/id/local-authority/38,Oxfordshire County Council,GYPSY & TRAVELLER SV,3951,Non System - Electricity,24/11/2015,2200066462,"1,359.05",NPOWER
http://statistics.data.gov.uk/id/local-authority/38,Oxfordshire County Council,BUCKS GYPSY &TRAV SV,3951,Non System - Electricity,12/11/2015,2200059788,"1,715.48",NPOWER
http://statistics.data.gov.uk/id/local-authority/38,Oxfordshire County Council,GYPSY & TRAVELLER SV,3951,Non System - Electricity,24/11/2015,2200066473,"1,858.34",NPOWER
http://statistics.data.gov.uk/id/local-authority/38,Oxfordshire County Council,UTILITIES,3951,Non System - Electricity,16/11/2015,3110031516,"2,782.84",NPOWER
http://statistics.data.gov.uk/id/local-authority/38,Oxfordshire County Council,UTILITIES,3951,Non System - Electricity,16/11/2015,3110031512,"3,329.21",NPOWER
http://statistics.data.gov.uk/id/local-authority/38,Oxfordshire County Council,UTILITIES,3951,Non System - Electricity,16/11/2015,3110031507,"3,785.61",NPOWER
http://statistics.data.gov.uk/id/local-authority/38,Oxfordshire County Council,UTILITIES,3951,Non System - Electricity,16/11/2015,3110031514,"4,138.46",NPOWER
http://statistics.data.gov.uk/id/local-authority/38,Oxfordshire County Council,UTILITIES,3951,Non System - Electricity,16/11/2015,3110031509,"4,579.69",NPOWER
http://statistics.data.gov.uk/id/local-authority/38,Oxfordshire County Council,UTILITIES,3951,Non System - Electricity,16/11/2015,3110031510,"8,350.17",NPOWER
http://statistics.data.gov.uk/id/local-authority/38,Oxfordshire County Council,ICT OPERATIONS & MAI,3951,Non System - Electricity,01/11/2015,2200062797,"7,352.10",SPECIALIST COMPUTER CENTRES
http://statistics.data.gov.uk/id/local-authority/38,Oxfordshire County Council,WOODLANDS CENTRE,3951,Non System - Electricity,03/11/2015,2200053908,"2,373.94",SWALEC
http://statistics.data.gov.uk/id/local-authority/38,Oxfordshire County Council,WOODLANDS CENTRE,3951,Non System - Electricity,11/11/2015,2200059523,"2,373.94",SWALEC
http://statistics.data.gov.uk/id/local-authority/38,Oxfordshire County Council,BUCKS GYPSY &TRAV SV,3956,Non System - Water - Metered,19/11/2015,2200066486,501.15,AFFINITY WATER
http://statistics.data.gov.uk/id/local-authority/38,Oxfordshire County Council,GYPSY & TRAVELLER SV,3956,Non System - Water - Metered,01/11/2015,2200066756,824.58,Thames Water Utilities Ltd
http://statistics.data.gov.uk/id/local-authority/38,Oxfordshire County Council,GYPSY & TRAVELLER SV,3956,Non System - Water - Metered,13/11/2015,2200060222,975.27,Thames Water Utilities Ltd
http://statistics.data.gov.uk/id/local-authority/38,Oxfordshire County Council,GYPSY & TRAVELLER SV,3956,Non System - Water - Metered,13/11/2015,2200061372,"1,545.52",Thames Water Utilities Ltd
http://statistics.data.gov.uk/id/local-authority/38,Oxfordshire County Council,GYPSY & TRAVELLER SV,3956,Non System - Water - Metered,18/11/2015,2200066464,"2,465.88",Thames Water Utilities Ltd
http://statistics.data.gov.uk/id/local-authority/38,Oxfordshire County Council,THE ROUNDABOUT CNTRE,3980,Service Charges - Premises,19/11/2015,2200064913,"2,280.00",Knowles & Son (Oxford) Ltd
http://statistics.data.gov.uk/id/local-authority/38,Oxfordshire County Council,CORPORATE LANDLORD,3980,Service Charges - Premises,02/11/2015,3500008070,"11,286.84",Land Securities Properties Limited
http://statistics.data.gov.uk/id/local-authority/38,Oxfordshire County Council,CORPORATE LANDLORD,3980,Service Charges - Premises,12/11/2015,2200059448,"1,038.20",West Oxfordshire District Council
http://statistics.data.gov.uk/id/local-authority/38,Oxfordshire County Council,CORPORATE LANDLORD,3980,Service Charges - Premises,06/11/2015,2200057017,"1,453.84",West Oxfordshire District Council
http://statistics.data.gov.uk/id/local-authority/38,Oxfordshire County Council,STAFF HOUSING GEN,4000,Council Tax,09/11/2015,2200056499,"1,450.71",South Oxfordshire District Council
http://statistics.data.gov.uk/id/local-authority/38,Oxfordshire County Council,CORPORATE LANDLORD,4001,Uniform Business Rates,01/11/2015,3500007865,648,Cherwell District Council
http://statistics.data.gov.uk/id/local-authority/38,Oxfordshire County Council,CORPORATE LANDLORD,4001,Uniform Business Rates,01/11/2015,3500007861,727,Cherwell District Council
http://statistics.data.gov.uk/id/local-authority/38,Oxfordshire County Council,CONTRACT MANAGEMENT,4001,Uniform Business Rates,01/11/2015,3500007882,937,Cherwell District Council
http://statistics.data.gov.uk/id/local-authority/38,Oxfordshire County Council,CORPORATE LANDLORD,4001,Uniform Business Rates,01/11/2015,3500007875,"1,072.00",Cherwell District Council
http://statistics.data.gov.uk/id/local-authority/38,Oxfordshire County Council,CORPORATE LANDLORD,4001,Uniform Business Rates,01/11/2015,3500007871,"1,159.00",Cherwell District Council
http://statistics.data.gov.uk/id/local-authority/38,Oxfordshire County Council,CORPORATE LANDLORD,4001,Uniform Business Rates,01/11/2015,3500007863,"1,171.00",Cherwell District Council
http://statistics.data.gov.uk/id/local-authority/38,Oxfordshire County Council,CORPORATE LANDLORD,4001,Uniform Business Rates,01/11/2015,3500007881,"1,405.00",Cherwell District Council
http://statistics.data.gov.uk/id/local-authority/38,Oxfordshire County Council,CORPORATE LANDLORD,4001,Uniform Business Rates,01/11/2015,3500007869,"1,627.00",Cherwell District Council
http://statistics.data.gov.uk/id/local-authority/38,Oxfordshire County Council,CORPORATE LANDLORD,4001,Uniform Business Rates,01/11/2015,3500007862,"1,824.00",Cherwell District Council
http://statistics.data.gov.uk/id/local-authority/38,Oxfordshire County Council,CORPORATE LANDLORD,4001,Uniform Business Rates,01/11/2015,3500007886,"2,071.00",Cherwell District Council
http://statistics.data.gov.uk/id/local-authority/38,Oxfordshire County Council,CORPORATE LANDLORD,4001,Uniform Business Rates,01/11/2015,3500007866,"2,354.00",Cherwell District Council
http://statistics.data.gov.uk/id/local-authority/38,Oxfordshire County Council,CORPORATE LANDLORD,4001,Uniform Business Rates,01/11/2015,3500007872,"2,712.00",Cherwell District Council
http://statistics.data.gov.uk/id/local-authority/38,Oxfordshire County Council,WATER EATON P & R,4001,Uniform Business Rates,01/11/2015,3500007884,"2,933.00",Cherwell District Council
http://statistics.data.gov.uk/id/local-authority/38,Oxfordshire County Council,CORPORATE LANDLORD,4001,Uniform Business Rates,01/11/2015,3500007878,"3,574.00",Cherwell District Council
http://statistics.data.gov.uk/id/local-authority/38,Oxfordshire County Council,CORPORATE LANDLORD,4001,Uniform Business Rates,01/11/2015,3500007867,"7,050.00",Cherwell District Council
http://statistics.data.gov.uk/id/local-authority/38,Oxfordshire County Council,CORPORATE LANDLORD,4001,Uniform Business Rates,01/11/2015,3500007887,"11,093.00",Cherwell District Council
http://statistics.data.gov.uk/id/local-authority/38,Oxfordshire County Council,CORPORATE LANDLORD,4001,Uniform Business Rates,01/11/2015,3500007930,684,Oxford City Council
http://statistics.data.gov.uk/id/local-authority/38,Oxfordshire County Council,CORPORATE LANDLORD,4001,Uniform Business Rates,01/11/2015,3500007906,696,Oxford City Council
http://statistics.data.gov.uk/id/local-authority/38,Oxfordshire County Council,CORPORATE LANDLORD,4001,Uniform Business Rates,01/11/2015,3500007916,720,Oxford City Council
http://statistics.data.gov.uk/id/local-authority/38,Oxfordshire County Council,CORPORATE LANDLORD,4001,Uniform Business Rates,01/11/2015,3500007921,768,Oxford City Council
http://statistics.data.gov.uk/id/local-authority/38,Oxfordshire County Council,CORPORATE LANDLORD,4001,Uniform Business Rates,01/11/2015,3500007909,780,Oxford City Council
http://statistics.data.gov.uk/id/local-authority/38,Oxfordshire County Council,CORPORATE LANDLORD,4001,Uniform Business Rates,01/11/2015,3500007910,852,Oxford City Council
http://statistics.data.gov.uk/id/local-authority/38,Oxfordshire County Council,CORPORATE LANDLORD,4001,Uniform Business Rates,01/11/2015,3500007923,949,Oxford City Council
http://statistics.data.gov.uk/id/local-authority/38,Oxfordshire County Council,CORPORATE LANDLORD,4001,Uniform Business Rates,01/11/2015,3500007919,998,Oxford City Council
http://statistics.data.gov.uk/id/local-authority/38,Oxfordshire County Council,CORPORATE LANDLORD,4001,Uniform Business Rates,01/11/2015,3500007908,"1,319.00",Oxford City Council
http://statistics.data.gov.uk/id/local-authority/38,Oxfordshire County Council,CORPORATE LANDLORD,4001,Uniform Business Rates,01/11/2015,3500007932,"1,762.00",Oxford City Council
http://statistics.data.gov.uk/id/local-authority/38,Oxfordshire County Council,CORPORATE LANDLORD,4001,Uniform Business Rates,01/11/2015,3500007911,"1,836.00",Oxford City Council
http://statistics.data.gov.uk/id/local-authority/38,Oxfordshire County Council,CORPORATE LANDLORD,4001,Uniform Business Rates,01/11/2015,3500007912,"2,071.00",Oxford City Council
http://statistics.data.gov.uk/id/local-authority/38,Oxfordshire County Council,CORPORATE LANDLORD,4001,Uniform Business Rates,01/11/2015,3500007913,"2,120.00",Oxford City Council
http://statistics.data.gov.uk/id/local-authority/38,Oxfordshire County Council,CORPORATE LANDLORD,4001,Uniform Business Rates,01/11/2015,3500007914,"2,588.00",Oxford City Council
http://statistics.data.gov.uk/id/local-authority/38,Oxfordshire County Council,CORPORATE LANDLORD,4001,Uniform Business Rates,01/11/2015,3500007931,"2,736.00",Oxford City Council
http://statistics.data.gov.uk/id/local-authority/38,Oxfordshire County Council,CONTRACT MANAGEMENT,4001,Uniform Business Rates,01/11/2015,3500007922,"2,859.00",Oxford City Council
http://statistics.data.gov.uk/id/local-authority/38,Oxfordshire County Council,CONTRACT MANAGEMENT,4001,Uniform Business Rates,07/11/2015,3500008408,"2,859.00",Oxford City Council
http://statistics.data.gov.uk/id/local-authority/38,Oxfordshire County Council,CORPORATE LANDLORD,4001,Uniform Business Rates,01/11/2015,3500007917,"3,007.00",Oxford City Council
http://statistics.data.gov.uk/id/local-authority/38,Oxfordshire County Council,CORPORATE LANDLORD,4001,Uniform Business Rates,01/11/2015,3500007925,"3,574.00",Oxford City Council
http://statistics.data.gov.uk/id/local-authority/38,Oxfordshire County Council,CORPORATE LANDLORD,4001,Uniform Business Rates,01/11/2015,3500007929,"4,659.00",Oxford City Council
http://statistics.data.gov.uk/id/local-authority/38,Oxfordshire County Council,CORPORATE LANDLORD,4001,Uniform Business Rates,01/11/2015,3500007920,"6,705.00",Oxford City Council
http://statistics.data.gov.uk/id/local-authority/38,Oxfordshire County Council,CORPORATE LANDLORD,4001,Uniform Business Rates,01/11/2015,3500007915,"7,987.00",Oxford City Council
http://statistics.data.gov.uk/id/local-authority/38,Oxfordshire County Council,CORPORATE LANDLORD,4001,Uniform Business Rates,01/11/2015,3500007934,"11,586.00",Oxford City Council
http://statistics.data.gov.uk/id/local-authority/38,Oxfordshire County Council,CORPORATE LANDLORD,4001,Uniform Business Rates,01/11/2015,3500007924,"11,980.00",Oxford City Council
http://statistics.data.gov.uk/id/local-authority/38,Oxfordshire County Council,CORPORATE LANDLORD,4001,Uniform Business Rates,01/11/2015,3500007907,"15,037.00",Oxford City Council
http://statistics.data.gov.uk/id/local-authority/38,Oxfordshire County Council,CORPORATE LANDLORD,4001,Uniform Business Rates,01/11/2015,3500007933,"22,555.00",Oxford City Council
http://statistics.data.gov.uk/id/local-authority/38,Oxfordshire County Council,CORPORATE LANDLORD,4001,Uniform Business Rates,01/11/2015,3500007993,"1,374.00",Powys County Council
http://statistics.data.gov.uk/id/local-authority/38,Oxfordshire County Council,CORPORATE LANDLORD,4001,Uniform Business Rates,01/11/2015,3500008010,504,South Oxfordshire District Council
http://statistics.data.gov.uk/id/local-authority/38,Oxfordshire County Council,CORPORATE LANDLORD,4001,Uniform Business Rates,29/11/2015,3500009555,597.47,South Oxfordshire District Council
http://statistics.data.gov.uk/id/local-authority/38,Oxfordshire County Council,CORPORATE LANDLORD,4001,Uniform Business Rates,01/11/2015,3500008014,672,South Oxfordshire District Council
http://statistics.data.gov.uk/id/local-authority/38,Oxfordshire County Council,CORPORATE LANDLORD,4001,Uniform Business Rates,01/11/2015,3500008030,684,South Oxfordshire District Council
http://statistics.data.gov.uk/id/local-authority/38,Oxfordshire County Council,CORPORATE LANDLORD,4001,Uniform Business Rates,01/11/2015,3500008016,756,South Oxfordshire District Council
http://statistics.data.gov.uk/id/local-authority/38,Oxfordshire County Council,CORPORATE LANDLORD,4001,Uniform Business Rates,01/11/2015,3500008018,937,South Oxfordshire District Council
http://statistics.data.gov.uk/id/local-authority/38,Oxfordshire County Council,CORPORATE LANDLORD,4001,Uniform Business Rates,01/11/2015,3500008004,961,South Oxfordshire District Council
http://statistics.data.gov.uk/id/local-authority/38,Oxfordshire County Council,CORPORATE LANDLORD,4001,Uniform Business Rates,01/11/2015,3500008017,974,South Oxfordshire District Council
http://statistics.data.gov.uk/id/local-authority/38,Oxfordshire County Council,CORPORATE LANDLORD,4001,Uniform Business Rates,01/11/2015,3500008026,"1,023.00",South Oxfordshire District Council
http://statistics.data.gov.uk/id/local-authority/38,Oxfordshire County Council,CORPORATE LANDLORD,4001,Uniform Business Rates,01/11/2015,3500008013,"1,171.00",South Oxfordshire District Council
http://statistics.data.gov.uk/id/local-authority/38,Oxfordshire County Council,CONTRACT MANAGEMENT,4001,Uniform Business Rates,01/11/2015,3500007995,"1,393.00",South Oxfordshire District Council
http://statistics.data.gov.uk/id/local-authority/38,Oxfordshire County Council,CORPORATE LANDLORD,4001,Uniform Business Rates,01/11/2015,3500008023,"1,491.00",South Oxfordshire District Council
http://statistics.data.gov.uk/id/local-authority/38,Oxfordshire County Council,CORPORATE LANDLORD,4001,Uniform Business Rates,01/11/2015,3500008008,"1,590.00",South Oxfordshire District Council
http://statistics.data.gov.uk/id/local-authority/38,Oxfordshire County Council,CORPORATE LANDLORD,4001,Uniform Business Rates,01/11/2015,3500008006,"2,206.00",South Oxfordshire District Council
http://statistics.data.gov.uk/id/local-authority/38,Oxfordshire County Council,CORPORATE LANDLORD,4001,Uniform Business Rates,01/11/2015,3500008012,"3,007.00",South Oxfordshire District Council
http://statistics.data.gov.uk/id/local-authority/38,Oxfordshire County Council,CORPORATE LANDLORD,4001,Uniform Business Rates,01/11/2015,3500008001,"3,229.00",South Oxfordshire District Council
http://statistics.data.gov.uk/id/local-authority/38,Oxfordshire County Council,CORPORATE LANDLORD,4001,Uniform Business Rates,30/11/2015,3500009619,"3,432.00",South Oxfordshire District Council
http://statistics.data.gov.uk/id/local-authority/38,Oxfordshire County Council,CORPORATE LANDLORD,4001,Uniform Business Rates,01/11/2015,3500008007,"4,240.00",South Oxfordshire District Council
http://statistics.data.gov.uk/id/local-authority/38,Oxfordshire County Council,THORNHILL P & R,4001,Uniform Business Rates,01/11/2015,3500007997,"5,472.00",South Oxfordshire District Council
http://statistics.data.gov.uk/id/local-authority/38,Oxfordshire County Council,CORPORATE LANDLORD,4001,Uniform Business Rates,01/11/2015,3500007848,"1,125.00",The City and Council of Swansea
http://statistics.data.gov.uk/id/local-authority/38,Oxfordshire County Council,CORPORATE LANDLORD,4001,Uniform Business Rates,01/11/2015,3500008039,600,Vale of White Horse District Counci
http://statistics.data.gov.uk/id/local-authority/38,Oxfordshire County Council,CORPORATE LANDLORD,4001,Uniform Business Rates,01/11/2015,3500008041,660,Vale of White Horse District Counci
http://statistics.data.gov.uk/id/local-authority/38,Oxfordshire County Council,CORPORATE LANDLORD,4001,Uniform Business Rates,01/11/2015,3500008045,660,Vale of White Horse District Counci
http://statistics.data.gov.uk/id/local-authority/38,Oxfordshire County Council,CORPORATE LANDLORD,4001,Uniform Business Rates,01/11/2015,3500008046,660,Vale of White Horse District Counci
http://statistics.data.gov.uk/id/local-authority/38,Oxfordshire County Council,CONTRACT MANAGEMENT,4001,Uniform Business Rates,01/11/2015,3500008049,"1,368.00",Vale of White Horse District Counci
http://statistics.data.gov.uk/id/local-authority/38,Oxfordshire County Council,CORPORATE LANDLORD,4001,Uniform Business Rates,01/11/2015,3500008042,"1,479.00",Vale of White Horse District Counci
http://statistics.data.gov.uk/id/local-authority/38,Oxfordshire County Council,CORPORATE LANDLORD,4001,Uniform Business Rates,01/11/2015,3500008044,"1,553.00",Vale of White Horse District Counci
http://statistics.data.gov.uk/id/local-authority/38,Oxfordshire County Council,CONTRACT MANAGEMENT,4001,Uniform Business Rates,01/11/2015,3500008034,"1,762.00",Vale of White Horse District Counci
http://statistics.data.gov.uk/id/local-authority/38,Oxfordshire County Council,CORPORATE LANDLORD,4001,Uniform Business Rates,01/11/2015,3500008043,"1,824.00",Vale of White Horse District Counci
http://statistics.data.gov.uk/id/local-authority/38,Oxfordshire County Council,CORPORATE LANDLORD,4001,Uniform Business Rates,01/11/2015,3500008037,"2,169.00",Vale of White Horse District Counci
http://statistics.data.gov.uk/id/local-authority/38,Oxfordshire County Council,CORPORATE LANDLORD,4001,Uniform Business Rates,01/11/2015,3500008048,"3,993.00",Vale of White Horse District Counci
http://statistics.data.gov.uk/id/local-authority/38,Oxfordshire County Council,CORPORATE LANDLORD,4001,Uniform Business Rates,01/11/2015,3500007987,552,West Oxfordshire District Council
http://statistics.data.gov.uk/id/local-authority/38,Oxfordshire County Council,CORPORATE LANDLORD,4001,Uniform Business Rates,01/11/2015,3500007972,624,West Oxfordshire District Council
http://statistics.data.gov.uk/id/local-authority/38,Oxfordshire County Council,CORPORATE LANDLORD,4001,Uniform Business Rates,01/11/2015,3500007976,648,West Oxfordshire District Council
http://statistics.data.gov.uk/id/local-authority/38,Oxfordshire County Council,CORPORATE LANDLORD,4001,Uniform Business Rates,01/11/2015,3500007981,684,West Oxfordshire District Council
http://statistics.data.gov.uk/id/local-authority/38,Oxfordshire County Council,CORPORATE LANDLORD,4001,Uniform Business Rates,01/11/2015,3500007982,720,West Oxfordshire District Council
http://statistics.data.gov.uk/id/local-authority/38,Oxfordshire County Council,CORPORATE LANDLORD,4001,Uniform Business Rates,01/11/2015,3500007985,720,West Oxfordshire District Council
http://statistics.data.gov.uk/id/local-authority/38,Oxfordshire County Council,CORPORATE LANDLORD,4001,Uniform Business Rates,01/11/2015,3500007977,756,West Oxfordshire District Council
http://statistics.data.gov.uk/id/local-authority/38,Oxfordshire County Council,CORPORATE LANDLORD,4001,Uniform Business Rates,01/11/2015,3500007978,792,West Oxfordshire District Council
http://statistics.data.gov.uk/id/local-authority/38,Oxfordshire County Council,CORPORATE LANDLORD,4001,Uniform Business Rates,01/11/2015,3500007966,998,West Oxfordshire District Council
http://statistics.data.gov.uk/id/local-authority/38,Oxfordshire County Council,CORPORATE LANDLORD,4001,Uniform Business Rates,01/11/2015,3500007979,"1,109.00",West Oxfordshire District Council
http://statistics.data.gov.uk/id/local-authority/38,Oxfordshire County Council,CORPORATE LANDLORD,4001,Uniform Business Rates,01/11/2015,3500007980,"1,516.00",West Oxfordshire District Council
http://statistics.data.gov.uk/id/local-authority/38,Oxfordshire County Council,CORPORATE LANDLORD,4001,Uniform Business Rates,01/11/2015,3500007974,"1,602.00",West Oxfordshire District Council
http://statistics.data.gov.uk/id/local-authority/38,Oxfordshire County Council,CORPORATE LANDLORD,4001,Uniform Business Rates,01/11/2015,3500007988,"1,664.00",West Oxfordshire District Council
http://statistics.data.gov.uk/id/local-authority/38,Oxfordshire County Council,CORPORATE LANDLORD,4001,Uniform Business Rates,01/11/2015,3500007989,"1,849.00",West Oxfordshire District Council
http://statistics.data.gov.uk/id/local-authority/38,Oxfordshire County Council,CORPORATE LANDLORD,4001,Uniform Business Rates,01/11/2015,3500007986,"3,377.00",West Oxfordshire District Council
http://statistics.data.gov.uk/id/local-authority/38,Oxfordshire County Council,CORPORATE LANDLORD,4001,Uniform Business Rates,01/11/2015,3500007984,"3,574.00",West Oxfordshire District Council
http://statistics.data.gov.uk/id/local-authority/38,Oxfordshire County Council,CORPORATE LANDLORD,4001,Uniform Business Rates,01/11/2015,3500008051,"1,233.00",West Somerset District Council
http://statistics.data.gov.uk/id/local-authority/38,Oxfordshire County Council,EQUIP TESTING &MAINT,4040,Fire Equipment,06/11/2015,2200056908,868.25,Hilti Gb Limited
http://statistics.data.gov.uk/id/local-authority/38,Oxfordshire County Council,ABINGDON DAY SERVICE,4042,Fixtures and Fittings,24/11/2015,2200066276,610.4,Carillion LGS Ltd
http://statistics.data.gov.uk/id/local-authority/38,Oxfordshire County Council,OCC Recharge - Other,4042,Fixtures and Fittings,10/11/2015,2200057823,"2,571.00",H & E Engineers (Maintenance) Ltd
http://statistics.data.gov.uk/id/local-authority/38,Oxfordshire County Council,HILL END,4042,Fixtures and Fittings,10/11/2015,2200063770,"1,675.00",Tip Top Storage Containers Ltd
http://statistics.data.gov.uk/id/local-authority/38,Oxfordshire County Council,REAL TIME BUS INFO,4070,Cleaning services,03/11/2015,2200053565,689.76,Bus Shelters Ltd
http://statistics.data.gov.uk/id/local-authority/38,Oxfordshire County Council,SOFT FM,4070,Cleaning services,16/11/2015,2200061270,"3,600.62",Carillion LGS Ltd
http://statistics.data.gov.uk/id/local-authority/38,Oxfordshire County Council,FLETCHERS HOUSE SITE,4070,Cleaning services,05/11/2015,2200055807,622.33,Parker Contract Cleaning
http://statistics.data.gov.uk/id/local-authority/38,Oxfordshire County Council,HILL END,4111,Security Costs,09/11/2015,2200062811,"1,251.00",George Henry Relay Ltd
http://statistics.data.gov.uk/id/local-authority/38,Oxfordshire County Council,ELECTRIC AVENUE,4111,Security Costs,01/11/2015,2200054409,605,Securipol Ltd
http://statistics.data.gov.uk/id/local-authority/38,Oxfordshire County Council,CORPORATE LANDLORD,4111,Security Costs,10/11/2015,2200057653,647.9,Securipol Ltd
http://statistics.data.gov.uk/id/local-authority/38,Oxfordshire County Council,DIDCOT HUB,4111,Security Costs,04/11/2015,2200062667,744,Securipol Ltd
http://statistics.data.gov.uk/id/local-authority/38,Oxfordshire County Council,RON GROVES HOUSE,4111,Security Costs,04/11/2015,2200055012,998.83,Securipol Ltd
http://statistics.data.gov.uk/id/local-authority/38,Oxfordshire County Council,SPEEDWELL HOUSE,4111,Security Costs,01/11/2015,2200056863,"1,254.00",Securipol Ltd
http://statistics.data.gov.uk/id/local-authority/38,Oxfordshire County Council,SPEEDWELL HOUSE,4111,Security Costs,04/11/2015,2200056865,"1,254.00",Securipol Ltd
http://statistics.data.gov.uk/id/local-authority/38,Oxfordshire County Council,SPEEDWELL HOUSE,4111,Security Costs,30/11/2015,2200069295,"1,254.00",Securipol Ltd
http://statistics.data.gov.uk/id/local-authority/38,Oxfordshire County Council,CORPORATE LANDLORD,4111,Security Costs,04/11/2015,2200055031,"1,333.00",Securipol Ltd
http://statistics.data.gov.uk/id/local-authority/38,Oxfordshire County Council,SAMUELSON HOUSE,4111,Security Costs,18/11/2015,2200063986,"1,700.00",Securipol Ltd
http://statistics.data.gov.uk/id/local-authority/38,Oxfordshire County Council,HARD FM,4122,Other premises related costs,11/11/2015,2200061766,"3,518.74",Carillion LGS Ltd
http://statistics.data.gov.uk/id/local-authority/38,Oxfordshire County Council,PREMISES,4122,Other premises related costs,11/11/2015,2200061978,"4,887.65",Carillion LGS Ltd
http://statistics.data.gov.uk/id/local-authority/38,Oxfordshire County Council,HARD FM,4122,Other premises related costs,10/11/2015,2200057749,513,Environment Agency
http://statistics.data.gov.uk/id/local-authority/38,Oxfordshire County Council,HARD FM,4122,Other premises related costs,10/11/2015,2200057748,684,Environment Agency
http://statistics.data.gov.uk/id/local-authority/38,Oxfordshire County Council,CORPORATE LANDLORD,4122,Other premises related costs,19/11/2015,2200061722,"-4,396.50",Wright Contractors Ltd
http://statistics.data.gov.uk/id/local-authority/38,Oxfordshire County Council,CORPORATE LANDLORD,4122,Other premises related costs,19/11/2015,2200061895,"4,396.50",Wright Contractors Ltd
http://statistics.data.gov.uk/id/local-authority/38,Oxfordshire County Council,WOODLANDS CENTRE,4210,Vehicles and Plant - Repairs and Main,05/11/2015,2200053794,687.73,Glasbury Car Repairs
http://statistics.data.gov.uk/id/local-authority/38,Oxfordshire County Council,WOODLANDS CENTRE,4210,Vehicles and Plant - Repairs and Main,05/11/2015,2200053792,689.97,Glasbury Car Repairs
http://statistics.data.gov.uk/id/local-authority/38,Oxfordshire County Council,FLEET MAINTENANCE,4210,Vehicles and Plant - Repairs and Main,06/11/2015,4800000018,"6,408.88",Royal Bank Of Scotland
http://statistics.data.gov.uk/id/local-authority/38,Oxfordshire County Council,PROCUREMENT,4232,Vehicle Fuel,17/11/2015,2200062168,"1,357.31",Allstar Business Solutions Ltd
http://statistics.data.gov.uk/id/local-authority/38,Oxfordshire County Council,PROCUREMENT,4232,Vehicle Fuel,17/11/2015,2200063125,579.78,Certas Energy UK Ltd
http://statistics.data.gov.uk/id/local-authority/38,Oxfordshire County Council,PROCUREMENT,4232,Vehicle Fuel,02/11/2015,2200059586,711.15,Certas Energy UK Ltd
http://statistics.data.gov.uk/id/local-authority/38,Oxfordshire County Council,PROCUREMENT,4232,Vehicle Fuel,01/11/2015,2200059579,716.93,Certas Energy UK Ltd
http://statistics.data.gov.uk/id/local-authority/38,Oxfordshire County Council,PROCUREMENT,4232,Vehicle Fuel,17/11/2015,2200063132,790.36,Certas Energy UK Ltd
http://statistics.data.gov.uk/id/local-authority/38,Oxfordshire County Council,PROCUREMENT,4232,Vehicle Fuel,09/11/2015,2200057746,800.71,Certas Energy UK Ltd
http://statistics.data.gov.uk/id/local-authority/38,Oxfordshire County Council,PROCUREMENT,4232,Vehicle Fuel,17/11/2015,2200063147,818.25,Certas Energy UK Ltd
http://statistics.data.gov.uk/id/local-authority/38,Oxfordshire County Council,PROCUREMENT,4232,Vehicle Fuel,09/11/2015,2200057745,938.2,Certas Energy UK Ltd
http://statistics.data.gov.uk/id/local-authority/38,Oxfordshire County Council,PROCUREMENT,4232,Vehicle Fuel,17/11/2015,2200063135,956.3,Certas Energy UK Ltd
http://statistics.data.gov.uk/id/local-authority/38,Oxfordshire County Council,PROCUREMENT,4232,Vehicle Fuel,17/11/2015,2200063144,"1,338.82",Certas Energy UK Ltd
http://statistics.data.gov.uk/id/local-authority/38,Oxfordshire County Council,PROCUREMENT,4232,Vehicle Fuel,17/11/2015,2200063133,"1,396.35",Certas Energy UK Ltd
http://statistics.data.gov.uk/id/local-authority/38,Oxfordshire County Council,PROCUREMENT,4232,Vehicle Fuel,17/11/2015,2200063148,"1,675.62",Certas Energy UK Ltd
http://statistics.data.gov.uk/id/local-authority/38,Oxfordshire County Council,PROCUREMENT,4232,Vehicle Fuel,01/11/2015,2200059570,"1,890.85",Certas Energy UK Ltd
http://statistics.data.gov.uk/id/local-authority/38,Oxfordshire County Council,YENWORTHY LODGE,4232,Vehicle Fuel,09/11/2015,2200055764,"1,891.05",Certas Energy UK Ltd
http://statistics.data.gov.uk/id/local-authority/38,Oxfordshire County Council,PROCUREMENT,4232,Vehicle Fuel,09/11/2015,2200055995,"2,322.25",Certas Energy UK Ltd
http://statistics.data.gov.uk/id/local-authority/38,Oxfordshire County Council,TRANSPORT GENERAL,4232,Vehicle Fuel,30/11/2015,2200069447,754.44,Skanska Construction UK Ltd Sp
http://statistics.data.gov.uk/id/local-authority/38,Oxfordshire County Council,ROW MAINT,4232,Vehicle Fuel,30/11/2015,2200069634,"1,320.20",Skanska Construction UK Ltd Sp
http://statistics.data.gov.uk/id/local-authority/38,Oxfordshire County Council,FLEET OPERATIONS,4232,Vehicle Fuel,30/11/2015,2200069659,"3,900.36",Skanska Construction UK Ltd Sp
http://statistics.data.gov.uk/id/local-authority/38,Oxfordshire County Council,PROCUREMENT,4232,Vehicle Fuel,26/11/2015,2200069110,870.6,WFL UK Ltd Trading As Hall Fuels
http://statistics.data.gov.uk/id/local-authority/38,Oxfordshire County Council,PROCUREMENT,4232,Vehicle Fuel,24/11/2015,2200066275,882.8,WFL UK Ltd Trading As Hall Fuels
http://statistics.data.gov.uk/id/local-authority/38,Oxfordshire County Council,PROCUREMENT,4232,Vehicle Fuel,13/11/2015,2200063348,889.8,WFL UK Ltd Trading As Hall Fuels
http://statistics.data.gov.uk/id/local-authority/38,Oxfordshire County Council,PROCUREMENT,4232,Vehicle Fuel,19/11/2015,2200064930,889.8,WFL UK Ltd Trading As Hall Fuels
http://statistics.data.gov.uk/id/local-authority/38,Oxfordshire County Council,PROCUREMENT,4232,Vehicle Fuel,19/11/2015,2200065472,889.8,WFL UK Ltd Trading As Hall Fuels
http://statistics.data.gov.uk/id/local-authority/38,Oxfordshire County Council,PROCUREMENT,4232,Vehicle Fuel,19/11/2015,2200065471,"1,334.70",WFL UK Ltd Trading As Hall Fuels
http://statistics.data.gov.uk/id/local-authority/38,Oxfordshire County Council,PROCUREMENT,4232,Vehicle Fuel,19/11/2015,2200065476,"1,336.48",WFL UK Ltd Trading As Hall Fuels
http://statistics.data.gov.uk/id/local-authority/38,Oxfordshire County Council,PROCUREMENT,4232,Vehicle Fuel,19/11/2015,2200064929,"1,779.60",WFL UK Ltd Trading As Hall Fuels
http://statistics.data.gov.uk/id/local-authority/38,Oxfordshire County Council,VEHICLE MAINTENANCE,4233,Road Fund Licences and MOTs,01/11/2015,2200052458,883.12,AWP Body Repairs
http://statistics.data.gov.uk/id/local-authority/38,Oxfordshire County Council,VEHICLE MAINTENANCE,4233,Road Fund Licences and MOTs,04/11/2015,2200053119,724.5,London Hire
http://statistics.data.gov.uk/id/local-authority/38,Oxfordshire County Council,ROAD SAFETY,4270,HTM / Other Vehicle - Hire Charges,12/11/2015,2200062500,560,Bakers Commercial Services Ltd
http://statistics.data.gov.uk/id/local-authority/38,Oxfordshire County Council,ROAD SAFETY,4270,HTM / Other Vehicle - Hire Charges,13/11/2015,2200062845,600,Bakers Commercial Services Ltd
http://statistics.data.gov.uk/id/local-authority/38,Oxfordshire County Council,ROAD SAFETY,4270,HTM / Other Vehicle - Hire Charges,18/11/2015,2200061190,720,Bakers Commercial Services Ltd
http://statistics.data.gov.uk/id/local-authority/38,Oxfordshire County Council,ROAD SAFETY,4270,HTM / Other Vehicle - Hire Charges,13/11/2015,2200062842,"1,520.00",Bakers Commercial Services Ltd
http://statistics.data.gov.uk/id/local-authority/38,Oxfordshire County Council,ROAD SAFETY,4270,HTM / Other Vehicle - Hire Charges,12/11/2015,2200062565,510,Cheney Coaches Ltd
http://statistics.data.gov.uk/id/local-authority/38,Oxfordshire County Council,ROAD SAFETY,4270,HTM / Other Vehicle - Hire Charges,16/11/2015,2200059608,510,Cheney Coaches Ltd
http://statistics.data.gov.uk/id/local-authority/38,Oxfordshire County Council,ROAD SAFETY,4270,HTM / Other Vehicle - Hire Charges,12/11/2015,2200062621,"1,020.00",Cheney Coaches Ltd
http://statistics.data.gov.uk/id/local-authority/38,Oxfordshire County Council,CAR LEASING,4270,HTM / Other Vehicle - Hire Charges,10/11/2015,2200058972,"3,230.00",Commercial Services Trading Ltd
http://statistics.data.gov.uk/id/local-authority/38,Oxfordshire County Council,CAR LEASING,4270,HTM / Other Vehicle - Hire Charges,10/11/2015,2200058978,"3,785.00",Commercial Services Trading Ltd
http://statistics.data.gov.uk/id/local-authority/38,Oxfordshire County Council,CAR LEASING,4270,HTM / Other Vehicle - Hire Charges,25/11/2015,2200066328,"3,843.00",Commercial Services Trading Ltd
http://statistics.data.gov.uk/id/local-authority/38,Oxfordshire County Council,CAR LEASING,4270,HTM / Other Vehicle - Hire Charges,10/11/2015,2200058976,"4,390.00",Commercial Services Trading Ltd
http://statistics.data.gov.uk/id/local-authority/38,Oxfordshire County Council,CAR LEASING,4270,HTM / Other Vehicle - Hire Charges,25/11/2015,2200066332,"4,471.00",Commercial Services Trading Ltd
http://statistics.data.gov.uk/id/local-authority/38,Oxfordshire County Council,CAR LEASING,4270,HTM / Other Vehicle - Hire Charges,10/11/2015,2200058971,"4,922.00",Commercial Services Trading Ltd
http://statistics.data.gov.uk/id/local-authority/38,Oxfordshire County Council,CAR LEASING,4270,HTM / Other Vehicle - Hire Charges,10/11/2015,2200058977,"6,055.00",Commercial Services Trading Ltd
http://statistics.data.gov.uk/id/local-authority/38,Oxfordshire County Council,ROAD SAFETY,4270,HTM / Other Vehicle - Hire Charges,20/11/2015,2200062810,"1,050.00",Heyfordian Travel Ltd
http://statistics.data.gov.uk/id/local-authority/38,Oxfordshire County Council,CAR LEASING,4270,HTM / Other Vehicle - Hire Charges,05/11/2015,2200053855,-531.22,LeasePlan UK Ltd t/a Automotive Lea
http://statistics.data.gov.uk/id/local-authority/38,Oxfordshire County Council,VEHICLE MAINTENANCE,4270,HTM / Other Vehicle - Hire Charges,10/11/2015,2200056564,"1,028.57",London Hire
http://statistics.data.gov.uk/id/local-authority/38,Oxfordshire County Council,VEHICLE MAINTENANCE,4270,HTM / Other Vehicle - Hire Charges,11/11/2015,2200057771,"5,800.00",London Hire
http://statistics.data.gov.uk/id/local-authority/38,Oxfordshire County Council,ROAD SAFETY,4270,HTM / Other Vehicle - Hire Charges,13/11/2015,2200059474,550,Tappins Coaches Ltd
http://statistics.data.gov.uk/id/local-authority/38,Oxfordshire County Council,ROAD SAFETY,4270,HTM / Other Vehicle - Hire Charges,17/11/2015,2200060495,700,Tappins Coaches Ltd
http://statistics.data.gov.uk/id/local-authority/38,Oxfordshire County Council,ROAD SAFETY,4270,HTM / Other Vehicle - Hire Charges,17/11/2015,2200060496,945,Tappins Coaches Ltd
http://statistics.data.gov.uk/id/local-authority/38,Oxfordshire County Council,HEADINGTON/ CITY DTS,4270,HTM / Other Vehicle - Hire Charges,10/11/2015,2200064857,"1,368.63",The Village Motor Company Ltd
http://statistics.data.gov.uk/id/local-authority/38,Oxfordshire County Council,ROAD SAFETY,4270,HTM / Other Vehicle - Hire Charges,16/11/2015,2200061534,810,Worths Motor Services Ltd
http://statistics.data.gov.uk/id/local-authority/38,Oxfordshire County Council,ROW MAINT,4280,Car Leasing Business Rentals,01/11/2015,2200052689,"4,865.88",Alphabet (GB) Ltd
http://statistics.data.gov.uk/id/local-authority/38,Oxfordshire County Council,ROW MAINT,4280,Car Leasing Business Rentals,09/11/2015,2200055388,"5,191.04",Alphabet (GB) Ltd
http://statistics.data.gov.uk/id/local-authority/38,Oxfordshire County Council,GYPSY & TRAVELLER SV,4280,Car Leasing Business Rentals,24/11/2015,2200066247,"7,224.99",LeasePlan UK Ltd t/a Automotive Lea
http://statistics.data.gov.uk/id/local-authority/38,Oxfordshire County Council,LOOKED AFTER NORTH,4314,"Other Trans Contract Costs (CRB, Car Sea",19/11/2015,3110031508,"1,847.50",Black and White Cars T/A Banbury Ta
http://statistics.data.gov.uk/id/local-authority/38,Oxfordshire County Council,LOOKED AFTER NORTH,4314,"Other Trans Contract Costs (CRB, Car Sea",30/11/2015,3110033679,"2,904.00",Black and White Cars T/A Banbury Ta
http://statistics.data.gov.uk/id/local-authority/38,Oxfordshire County Council,LD CLIENTS SOUTH,4314,"Other Trans Contract Costs (CRB, Car Sea",04/11/2015,3110026585,507.75,Excel Cars
http://statistics.data.gov.uk/id/local-authority/38,Oxfordshire County Council,LD CLIENTS NORTH,4314,"Other Trans Contract Costs (CRB, Car Sea",04/11/2015,3110026587,"1,391.40",Excel Cars
http://statistics.data.gov.uk/id/local-authority/38,Oxfordshire County Council,LD CLIENTS SOUTH,4314,"Other Trans Contract Costs (CRB, Car Sea",13/11/2015,3110028853,800,Grove Cabs
http://statistics.data.gov.uk/id/local-authority/38,Oxfordshire County Council,LD CLIENTS CITY,4314,"Other Trans Contract Costs (CRB, Car Sea",10/11/2015,3110027760,"1,650.00",Oxon Transport Services Ltd
http://statistics.data.gov.uk/id/local-authority/38,Oxfordshire County Council,LD CLIENTS SOUTH,4314,"Other Trans Contract Costs (CRB, Car Sea",23/11/2015,3110032060,"1,405.20",Pryors Cars Ltd
http://statistics.data.gov.uk/id/local-authority/38,Oxfordshire County Council,WOODLANDS CENTRE,4314,"Other Trans Contract Costs (CRB, Car Sea",25/11/2015,3110032654,"-4,314.00",Tappins Coaches Ltd
http://statistics.data.gov.uk/id/local-authority/38,Oxfordshire County Council,WOODLANDS CENTRE,4314,"Other Trans Contract Costs (CRB, Car Sea",25/11/2015,3110032655,"1,130.00",Tappins Coaches Ltd
http://statistics.data.gov.uk/id/local-authority/38,Oxfordshire County Council,YENWORTHY LODGE,4314,"Other Trans Contract Costs (CRB, Car Sea",16/11/2015,3110028891,"1,300.00",Tappins Coaches Ltd
http://statistics.data.gov.uk/id/local-authority/38,Oxfordshire County Council,WOODLANDS CENTRE,4314,"Other Trans Contract Costs (CRB, Car Sea",20/11/2015,3110032016,"1,300.00",Tappins Coaches Ltd
http://statistics.data.gov.uk/id/local-authority/38,Oxfordshire County Council,KILVROUGH MANOR,4314,"Other Trans Contract Costs (CRB, Car Sea",20/11/2015,3110032017,"1,340.00",Tappins Coaches Ltd
http://statistics.data.gov.uk/id/local-authority/38,Oxfordshire County Council,KILVROUGH MANOR,4314,"Other Trans Contract Costs (CRB, Car Sea",16/11/2015,3110028889,"1,470.00",Tappins Coaches Ltd
http://statistics.data.gov.uk/id/local-authority/38,Oxfordshire County Council,WOODLANDS CENTRE,4314,"Other Trans Contract Costs (CRB, Car Sea",20/11/2015,3110032018,"4,314.00",Tappins Coaches Ltd
http://statistics.data.gov.uk/id/local-authority/38,Oxfordshire County Council,LD CLIENTS SOUTH,4314,"Other Trans Contract Costs (CRB, Car Sea",04/11/2015,3110026696,739.2,Transpiration Ltd
http://statistics.data.gov.uk/id/local-authority/38,Oxfordshire County Council,LD CLIENTS SOUTH,4314,"Other Trans Contract Costs (CRB, Car Sea",11/11/2015,3110027860,"1,040.00",Transpiration Ltd
http://statistics.data.gov.uk/id/local-authority/38,Oxfordshire County Council,MUSIC UNALLOCABLE,4314,"Other Trans Contract Costs (CRB, Car Sea",01/11/2015,2200056857,720,Worths Motor Services Ltd
http://statistics.data.gov.uk/id/local-authority/38,Oxfordshire County Council,MUSIC UNALLOCABLE,4314,"Other Trans Contract Costs (CRB, Car Sea",10/11/2015,2200057012,"1,380.00",Worths Motor Services Ltd
http://statistics.data.gov.uk/id/local-authority/38,Oxfordshire County Council,SEN TRANSPORT,4320,Pupil / Client Travel Reimbursement,18/11/2015,3110030361,"1,478.40",Redacted Personal Data
http://statistics.data.gov.uk/id/local-authority/38,Oxfordshire County Council,MAINSTREAM-PRIMARY,4320,Pupil / Client Travel Reimbursement,30/11/2015,3110033696,577.6,Redacted Personal Data
http://statistics.data.gov.uk/id/local-authority/38,Oxfordshire County Council,SEN TRANSPORT,4320,Pupil / Client Travel Reimbursement,25/11/2015,3110032641,516.8,Redacted Personal Data
http://statistics.data.gov.uk/id/local-authority/38,Oxfordshire County Council,SEN TRANSPORT,4320,Pupil / Client Travel Reimbursement,18/11/2015,3110029967,"4,896.00",Redacted Personal Data
http://statistics.data.gov.uk/id/local-authority/38,Oxfordshire County Council,SEN TRANSPORT,4322,"Season Tickets - Bus, Rail & Ferry",10/11/2015,3110027790,"-2,838.00",Oxford Bus Company Ltd
http://statistics.data.gov.uk/id/local-authority/38,Oxfordshire County Council,SEN TRANSPORT,4322,"Season Tickets - Bus, Rail & Ferry",10/11/2015,3110027787,"2,224.00",Oxford Bus Company Ltd
http://statistics.data.gov.uk/id/local-authority/38,Oxfordshire County Council,SEN TRANSPORT,4322,"Season Tickets - Bus, Rail & Ferry",10/11/2015,3110027788,"2,308.00",Oxford Bus Company Ltd
http://statistics.data.gov.uk/id/local-authority/38,Oxfordshire County Council,MAINSTREAM-SECONDARY,4322,"Season Tickets - Bus, Rail & Ferry",10/11/2015,3110027789,"2,309.50",Oxford Bus Company Ltd
http://statistics.data.gov.uk/id/local-authority/38,Oxfordshire County Council,MAINSTREAM-SECONDARY,4322,"Season Tickets - Bus, Rail & Ferry",10/11/2015,3110027786,"6,850.00",Oxford Bus Company Ltd
http://statistics.data.gov.uk/id/local-authority/38,Oxfordshire County Council,SEN TRANSPORT,4322,"Season Tickets - Bus, Rail & Ferry",16/11/2015,3110028903,"13,602.00",Oxford Bus Company Ltd
http://statistics.data.gov.uk/id/local-authority/38,Oxfordshire County Council,MAINSTREAM-SECONDARY,4322,"Season Tickets - Bus, Rail & Ferry",16/11/2015,3110028901,"74,858.00",Oxford Bus Company Ltd
http://statistics.data.gov.uk/id/local-authority/38,Oxfordshire County Council,MAINSTREAM-SECONDARY,4330,Transport to School Activities,18/11/2015,3110029968,608,001 Alpha Cars Ltd
http://statistics.data.gov.uk/id/local-authority/38,Oxfordshire County Council,SEN TRANSPORT,4330,Transport to School Activities,18/11/2015,3110029971,612,001 Alpha Cars Ltd
http://statistics.data.gov.uk/id/local-authority/38,Oxfordshire County Council,MEADOWBROOK TRANSPT,4330,Transport to School Activities,18/11/2015,3110029983,760,001 Alpha Cars Ltd
http://statistics.data.gov.uk/id/local-authority/38,Oxfordshire County Council,TRANSPORT COSTS,4330,Transport to School Activities,17/11/2015,3110028926,832,001 Alpha Cars Ltd
http://statistics.data.gov.uk/id/local-authority/38,Oxfordshire County Council,MEADOWBROOK TRANSPT,4330,Transport to School Activities,18/11/2015,3110029978,888,001 Alpha Cars Ltd
http://statistics.data.gov.uk/id/local-authority/38,Oxfordshire County Council,SEN TRANSPORT,4330,Transport to School Activities,18/11/2015,3110029979,"1,040.00",001 Alpha Cars Ltd
http://statistics.data.gov.uk/id/local-authority/38,Oxfordshire County Council,POST 16 SEN,4330,Transport to School Activities,18/11/2015,3110029973,"1,080.00",001 Alpha Cars Ltd
http://statistics.data.gov.uk/id/local-authority/38,Oxfordshire County Council,SEN TRANSPORT,4330,Transport to School Activities,18/11/2015,3110029970,"1,142.00",001 Alpha Cars Ltd
http://statistics.data.gov.uk/id/local-authority/38,Oxfordshire County Council,SEN TRANSPORT,4330,Transport to School Activities,18/11/2015,3110029981,"1,224.00",001 Alpha Cars Ltd
http://statistics.data.gov.uk/id/local-authority/38,Oxfordshire County Council,TRANSPORT COSTS,4330,Transport to School Activities,17/11/2015,3110028937,"1,247.00",001 Alpha Cars Ltd
http://statistics.data.gov.uk/id/local-authority/38,Oxfordshire County Council,SEN TRANSPORT,4330,Transport to School Activities,18/11/2015,3110029980,"1,267.86",001 Alpha Cars Ltd
http://statistics.data.gov.uk/id/local-authority/38,Oxfordshire County Council,SEN TRANSPORT,4330,Transport to School Activities,18/11/2015,3110029974,"1,360.00",001 Alpha Cars Ltd
http://statistics.data.gov.uk/id/local-authority/38,Oxfordshire County Council,FAM SUPP NORTH,4330,Transport to School Activities,17/11/2015,3110028924,"1,408.00",001 Alpha Cars Ltd
http://statistics.data.gov.uk/id/local-authority/38,Oxfordshire County Council,SEN TRANSPORT,4330,Transport to School Activities,17/11/2015,3110029078,"1,512.00",001 Alpha Cars Ltd
http://statistics.data.gov.uk/id/local-authority/38,Oxfordshire County Council,SEN TRANSPORT,4330,Transport to School Activities,18/11/2015,3110029969,"2,380.00",001 Alpha Cars Ltd
http://statistics.data.gov.uk/id/local-authority/38,Oxfordshire County Council,MAINSTREAM-PRIMARY,4330,Transport to School Activities,10/11/2015,3110027764,660,1St Taxis
http://statistics.data.gov.uk/id/local-authority/38,Oxfordshire County Council,MAINSTREAM-PRIMARY,4330,Transport to School Activities,03/11/2015,3110025493,850,1St Taxis
http://statistics.data.gov.uk/id/local-authority/38,Oxfordshire County Council,MAINSTREAM-PRIMARY,4330,Transport to School Activities,03/11/2015,3110025494,"1,105.00",1St Taxis
http://statistics.data.gov.uk/id/local-authority/38,Oxfordshire County Council,SEN TRANSPORT,4330,Transport to School Activities,05/11/2015,3110027120,759.72,Abingdon Taxis FKN Autotaxis
http://statistics.data.gov.uk/id/local-authority/38,Oxfordshire County Council,SEN TRANSPORT,4330,Transport to School Activities,02/11/2015,3110025409,853.6,Abingdon Taxis FKN Autotaxis
http://statistics.data.gov.uk/id/local-authority/38,Oxfordshire County Council,SEN TRANSPORT,4330,Transport to School Activities,02/11/2015,3110025408,930,Abingdon Taxis FKN Autotaxis
http://statistics.data.gov.uk/id/local-authority/38,Oxfordshire County Council,FAMILY SUPPORT S'TH2,4330,Transport to School Activities,11/11/2015,3110028175,"1,010.00",Abingdon Taxis FKN Autotaxis
http://statistics.data.gov.uk/id/local-authority/38,Oxfordshire County Council,SEN TRANSPORT,4330,Transport to School Activities,02/11/2015,3110025398,"1,205.68",Abingdon Taxis FKN Autotaxis
http://statistics.data.gov.uk/id/local-authority/38,Oxfordshire County Council,SEN TRANSPORT,4330,Transport to School Activities,02/11/2015,3110025402,"1,260.00",Abingdon Taxis FKN Autotaxis
http://statistics.data.gov.uk/id/local-authority/38,Oxfordshire County Council,SEN TRANSPORT,4330,Transport to School Activities,05/11/2015,3110027118,"1,600.00",Abingdon Taxis FKN Autotaxis
http://statistics.data.gov.uk/id/local-authority/38,Oxfordshire County Council,SEN TRANSPORT,4330,Transport to School Activities,02/11/2015,3110025399,"1,696.00",Abingdon Taxis FKN Autotaxis
http://statistics.data.gov.uk/id/local-authority/38,Oxfordshire County Council,SEN TRANSPORT,4330,Transport to School Activities,03/11/2015,3110025511,"1,723.91",Abingdon Taxis FKN Autotaxis
http://statistics.data.gov.uk/id/local-authority/38,Oxfordshire County Council,SEN TRANSPORT,4330,Transport to School Activities,05/11/2015,3110026739,"1,866.00",Abingdon Taxis FKN Autotaxis
http://statistics.data.gov.uk/id/local-authority/38,Oxfordshire County Council,SEN TRANSPORT,4330,Transport to School Activities,02/11/2015,3110025406,"2,100.00",Abingdon Taxis FKN Autotaxis
http://statistics.data.gov.uk/id/local-authority/38,Oxfordshire County Council,SEN TRANSPORT,4330,Transport to School Activities,02/11/2015,3110025405,"2,108.00",Abingdon Taxis FKN Autotaxis
http://statistics.data.gov.uk/id/local-authority/38,Oxfordshire County Council,SEN TRANSPORT,4330,Transport to School Activities,03/11/2015,3110025509,"2,380.00",Abingdon Taxis FKN Autotaxis
http://statistics.data.gov.uk/id/local-authority/38,Oxfordshire County Council,SEN TRANSPORT,4330,Transport to School Activities,03/11/2015,3110025508,"2,754.00",Abingdon Taxis FKN Autotaxis
http://statistics.data.gov.uk/id/local-authority/38,Oxfordshire County Council,SEN TRANSPORT,4330,Transport to School Activities,02/11/2015,3110025403,"3,400.00",Abingdon Taxis FKN Autotaxis
http://statistics.data.gov.uk/id/local-authority/38,Oxfordshire County Council,SEN TRANSPORT,4330,Transport to School Activities,05/11/2015,3110026709,624,Ace Taxis (West Oxfordshire) Ltd
http://statistics.data.gov.uk/id/local-authority/38,Oxfordshire County Council,MAINSTREAM-PRIMARY,4330,Transport to School Activities,05/11/2015,3110026707,792,Ace Taxis (West Oxfordshire) Ltd
http://statistics.data.gov.uk/id/local-authority/38,Oxfordshire County Council,MAINSTREAM-SECONDARY,4330,Transport to School Activities,05/11/2015,3110026701,821.25,Ace Taxis (West Oxfordshire) Ltd
http://statistics.data.gov.uk/id/local-authority/38,Oxfordshire County Council,MAINSTREAM-PRIMARY,4330,Transport to School Activities,05/11/2015,3110026703,875.75,Ace Taxis (West Oxfordshire) Ltd
http://statistics.data.gov.uk/id/local-authority/38,Oxfordshire County Council,MAINSTREAM-SECONDARY,4330,Transport to School Activities,05/11/2015,3110026699,935,Ace Taxis (West Oxfordshire) Ltd
http://statistics.data.gov.uk/id/local-authority/38,Oxfordshire County Council,MAINSTREAM-SECONDARY,4330,Transport to School Activities,05/11/2015,3110026705,"1,011.50",Ace Taxis (West Oxfordshire) Ltd
http://statistics.data.gov.uk/id/local-authority/38,Oxfordshire County Council,SEN TRANSPORT,4330,Transport to School Activities,20/11/2015,3110031993,640,Airport Transfers Banbury Ltd
http://statistics.data.gov.uk/id/local-authority/38,Oxfordshire County Council,MAINSTREAM-SECONDARY,4330,Transport to School Activities,20/11/2015,3110032001,833,Airport Transfers Banbury Ltd
http://statistics.data.gov.uk/id/local-authority/38,Oxfordshire County Council,MAINSTREAM-SECONDARY,4330,Transport to School Activities,20/11/2015,3110031996,"1,040.00",Airport Transfers Banbury Ltd
http://statistics.data.gov.uk/id/local-authority/38,Oxfordshire County Council,MAINSTREAM-PRIMARY,4330,Transport to School Activities,20/11/2015,3110031998,"1,173.00",Airport Transfers Banbury Ltd
http://statistics.data.gov.uk/id/local-authority/38,Oxfordshire County Council,MAINSTREAM-PRIMARY,4330,Transport to School Activities,20/11/2015,3110031997,"1,189.28",Airport Transfers Banbury Ltd
http://statistics.data.gov.uk/id/local-authority/38,Oxfordshire County Council,POST 16 SEN,4330,Transport to School Activities,20/11/2015,3110031992,"1,440.00",Airport Transfers Banbury Ltd
http://statistics.data.gov.uk/id/local-authority/38,Oxfordshire County Council,SEN TRANSPORT,4330,Transport to School Activities,20/11/2015,3110032000,"1,887.00",Airport Transfers Banbury Ltd
http://statistics.data.gov.uk/id/local-authority/38,Oxfordshire County Council,SEN TRANSPORT,4330,Transport to School Activities,20/11/2015,3110031994,"3,230.00",Airport Transfers Banbury Ltd
http://statistics.data.gov.uk/id/local-authority/38,Oxfordshire County Council,MAINSTREAM-PRIMARY,4330,Transport to School Activities,30/11/2015,3110033780,"1,680.00",AKR Ltd
http://statistics.data.gov.uk/id/local-authority/38,Oxfordshire County Council,SEN TRANSPORT,4330,Transport to School Activities,30/11/2015,3110033778,"1,824.00",AKR Ltd
http://statistics.data.gov.uk/id/local-authority/38,Oxfordshire County Council,MAINSTREAM-PRIMARY,4330,Transport to School Activities,05/11/2015,3110026765,"2,000.00",AKR Ltd
http://statistics.data.gov.uk/id/local-authority/38,Oxfordshire County Council,SEN TRANSPORT,4330,Transport to School Activities,30/11/2015,3110033769,"2,094.47",AKR Ltd
http://statistics.data.gov.uk/id/local-authority/38,Oxfordshire County Council,SEN TRANSPORT,4330,Transport to School Activities,30/11/2015,3110033784,"2,310.00",AKR Ltd
http://statistics.data.gov.uk/id/local-authority/38,Oxfordshire County Council,MAINSTREAM-PRIMARY,4330,Transport to School Activities,30/11/2015,3110033779,"2,625.00",AKR Ltd
http://statistics.data.gov.uk/id/local-authority/38,Oxfordshire County Council,SEN TRANSPORT,4330,Transport to School Activities,30/11/2015,3110033771,"2,885.82",AKR Ltd
http://statistics.data.gov.uk/id/local-authority/38,Oxfordshire County Council,SEN TRANSPORT,4330,Transport to School Activities,30/11/2015,3110033788,"2,940.00",AKR Ltd
http://statistics.data.gov.uk/id/local-authority/38,Oxfordshire County Council,MAINSTREAM-SECONDARY,4330,Transport to School Activities,30/11/2015,3110033782,"3,066.84",AKR Ltd
http://statistics.data.gov.uk/id/local-authority/38,Oxfordshire County Council,SEN TRANSPORT,4330,Transport to School Activities,30/11/2015,3110033792,"3,180.00",AKR Ltd
http://statistics.data.gov.uk/id/local-authority/38,Oxfordshire County Council,MAINSTREAM-SECONDARY,4330,Transport to School Activities,30/11/2015,3110033781,"3,317.79",AKR Ltd
http://statistics.data.gov.uk/id/local-authority/38,Oxfordshire County Council,SEN TRANSPORT,4330,Transport to School Activities,30/11/2015,3110033775,"3,738.00",AKR Ltd
http://statistics.data.gov.uk/id/local-authority/38,Oxfordshire County Council,SEN TRANSPORT,4330,Transport to School Activities,30/11/2015,3110033773,"3,774.54",AKR Ltd
http://statistics.data.gov.uk/id/local-authority/38,Oxfordshire County Council,SEN TRANSPORT,4330,Transport to School Activities,30/11/2015,3110033776,"4,598.00",AKR Ltd
http://statistics.data.gov.uk/id/local-authority/38,Oxfordshire County Council,SEN TRANSPORT,4330,Transport to School Activities,11/11/2015,3110027885,"2,288.54",Ancil Services
http://statistics.data.gov.uk/id/local-authority/38,Oxfordshire County Council,SEN TRANSPORT,4330,Transport to School Activities,11/11/2015,3110027887,"3,526.88",Ancil Services
http://statistics.data.gov.uk/id/local-authority/38,Oxfordshire County Council,MAINSTREAM-PRIMARY,4330,Transport to School Activities,11/11/2015,3110027865,576,Angelas Travel
http://statistics.data.gov.uk/id/local-authority/38,Oxfordshire County Council,SEN TRANSPORT,4330,Transport to School Activities,11/11/2015,3110027868,762.6,Angelas Travel
http://statistics.data.gov.uk/id/local-authority/38,Oxfordshire County Council,TRANSPORT COSTS,4330,Transport to School Activities,04/11/2015,3110026446,792.35,Angelas Travel
http://statistics.data.gov.uk/id/local-authority/38,Oxfordshire County Council,SEN TRANSPORT,4330,Transport to School Activities,19/11/2015,3110031521,900,Angelas Travel
http://statistics.data.gov.uk/id/local-authority/38,Oxfordshire County Council,SEN TRANSPORT,4330,Transport to School Activities,11/11/2015,3110027869,"1,118.00",Angelas Travel
http://statistics.data.gov.uk/id/local-authority/38,Oxfordshire County Council,SEN TRANSPORT,4330,Transport to School Activities,11/11/2015,3110027866,"1,255.69",Angelas Travel
http://statistics.data.gov.uk/id/local-authority/38,Oxfordshire County Council,SEN TRANSPORT,4330,Transport to School Activities,25/11/2015,3110032637,"1,344.00",Angelas Travel
http://statistics.data.gov.uk/id/local-authority/38,Oxfordshire County Council,SEN TRANSPORT,4330,Transport to School Activities,11/11/2015,3110028208,"1,430.00",Angelas Travel
http://statistics.data.gov.uk/id/local-authority/38,Oxfordshire County Council,SEN TRANSPORT,4330,Transport to School Activities,23/11/2015,3110032098,"1,660.00",Angelas Travel
http://statistics.data.gov.uk/id/local-authority/38,Oxfordshire County Council,SEN TRANSPORT,4330,Transport to School Activities,11/11/2015,3110027871,"1,932.90",Angelas Travel
http://statistics.data.gov.uk/id/local-authority/38,Oxfordshire County Council,MAINSTREAM-SECONDARY,4330,Transport to School Activities,11/11/2015,3110027876,"2,119.05",Angelas Travel
http://statistics.data.gov.uk/id/local-authority/38,Oxfordshire County Council,MAINSTREAM-SECONDARY,4330,Transport to School Activities,11/11/2015,3110027875,"2,200.99",Angelas Travel
http://statistics.data.gov.uk/id/local-authority/38,Oxfordshire County Council,MAINSTREAM-SECONDARY,4330,Transport to School Activities,11/11/2015,3110027873,"2,228.70",Angelas Travel
http://statistics.data.gov.uk/id/local-authority/38,Oxfordshire County Council,MAINSTREAM-SECONDARY,4330,Transport to School Activities,11/11/2015,3110027874,"2,228.70",Angelas Travel
http://statistics.data.gov.uk/id/local-authority/38,Oxfordshire County Council,MAINSTREAM-SECONDARY,4330,Transport to School Activities,23/11/2015,3110032097,"2,971.60",Angelas Travel
http://statistics.data.gov.uk/id/local-authority/38,Oxfordshire County Council,SEN TRANSPORT,4330,Transport to School Activities,10/11/2015,3110027780,"1,360.00",Ash Cars (UK) Ltd
http://statistics.data.gov.uk/id/local-authority/38,Oxfordshire County Council,SEN TRANSPORT,4330,Transport to School Activities,10/11/2015,3110027776,"1,680.00",Ash Cars (UK) Ltd
http://statistics.data.gov.uk/id/local-authority/38,Oxfordshire County Council,SEN TRANSPORT,4330,Transport to School Activities,10/11/2015,3110027773,"1,904.00",Ash Cars (UK) Ltd
http://statistics.data.gov.uk/id/local-authority/38,Oxfordshire County Council,SEN TRANSPORT,4330,Transport to School Activities,10/11/2015,3110027765,"2,125.00",Ash Cars (UK) Ltd
http://statistics.data.gov.uk/id/local-authority/38,Oxfordshire County Council,SEN TRANSPORT,4330,Transport to School Activities,10/11/2015,3110027781,"2,470.00",Ash Cars (UK) Ltd
http://statistics.data.gov.uk/id/local-authority/38,Oxfordshire County Council,SEN TRANSPORT,4330,Transport to School Activities,10/11/2015,3110027769,"2,550.00",Ash Cars (UK) Ltd
http://statistics.data.gov.uk/id/local-authority/38,Oxfordshire County Council,SEN TRANSPORT,4330,Transport to School Activities,10/11/2015,3110027777,"2,550.00",Ash Cars (UK) Ltd
http://statistics.data.gov.uk/id/local-authority/38,Oxfordshire County Council,SEN TRANSPORT,4330,Transport to School Activities,10/11/2015,3110027782,"2,820.00",Ash Cars (UK) Ltd
http://statistics.data.gov.uk/id/local-authority/38,Oxfordshire County Council,SEN TRANSPORT,4330,Transport to School Activities,10/11/2015,3110027771,"3,268.00",Ash Cars (UK) Ltd
http://statistics.data.gov.uk/id/local-authority/38,Oxfordshire County Council,SEN TRANSPORT,4330,Transport to School Activities,10/11/2015,3110027767,"3,732.86",Ash Cars (UK) Ltd
http://statistics.data.gov.uk/id/local-authority/38,Oxfordshire County Council,MAINSTREAM-PRIMARY,4330,Transport to School Activities,02/11/2015,3110025423,"2,800.00",Bakers Commercial Services Ltd
http://statistics.data.gov.uk/id/local-authority/38,Oxfordshire County Council,MAINSTREAM-SECONDARY,4330,Transport to School Activities,02/11/2015,3110025424,"3,120.00",Bakers Commercial Services Ltd
http://statistics.data.gov.uk/id/local-authority/38,Oxfordshire County Council,MAINSTREAM-SECONDARY,4330,Transport to School Activities,02/11/2015,3110025425,"3,120.00",Bakers Commercial Services Ltd
http://statistics.data.gov.uk/id/local-authority/38,Oxfordshire County Council,MAINSTREAM-SECONDARY,4330,Transport to School Activities,02/11/2015,3110025426,"3,360.00",Bakers Commercial Services Ltd
http://statistics.data.gov.uk/id/local-authority/38,Oxfordshire County Council,MAINSTREAM-SECONDARY,4330,Transport to School Activities,12/11/2015,3110028673,"1,410.00",Barnes Coaches Ltd
http://statistics.data.gov.uk/id/local-authority/38,Oxfordshire County Council,MAINSTREAM-SECONDARY,4330,Transport to School Activities,12/11/2015,3110028672,"1,504.00",Barnes Coaches Ltd
http://statistics.data.gov.uk/id/local-authority/38,Oxfordshire County Council,MAINSTREAM-SECONDARY,4330,Transport to School Activities,13/11/2015,3110028868,"2,448.00",Barnes Coaches Ltd
http://statistics.data.gov.uk/id/local-authority/38,Oxfordshire County Council,MAINSTREAM-SECONDARY,4330,Transport to School Activities,12/11/2015,3110028669,"2,844.96",Barnes Coaches Ltd
http://statistics.data.gov.uk/id/local-authority/38,Oxfordshire County Council,MAINSTREAM-PRIMARY,4330,Transport to School Activities,12/11/2015,3110028668,"2,848.00",Barnes Coaches Ltd
http://statistics.data.gov.uk/id/local-authority/38,Oxfordshire County Council,MAINSTREAM-SECONDARY,4330,Transport to School Activities,12/11/2015,3110028667,"3,312.96",Barnes Coaches Ltd
http://statistics.data.gov.uk/id/local-authority/38,Oxfordshire County Council,MAINSTREAM-SECONDARY,4330,Transport to School Activities,12/11/2015,3110028670,"3,728.10",Barnes Coaches Ltd
http://statistics.data.gov.uk/id/local-authority/38,Oxfordshire County Council,MAINSTREAM-SECONDARY,4330,Transport to School Activities,12/11/2015,3110028671,"3,920.00",Barnes Coaches Ltd
http://statistics.data.gov.uk/id/local-authority/38,Oxfordshire County Council,SEN TRANSPORT,4330,Transport to School Activities,30/11/2015,3110033690,700,Black and White Cars T/A Banbury Ta
http://statistics.data.gov.uk/id/local-authority/38,Oxfordshire County Council,SEN TRANSPORT,4330,Transport to School Activities,30/11/2015,3110033688,850,Black and White Cars T/A Banbury Ta
http://statistics.data.gov.uk/id/local-authority/38,Oxfordshire County Council,MEADOWBROOK TRANSPT,4330,Transport to School Activities,30/11/2015,3110033689,870,Black and White Cars T/A Banbury Ta
http://statistics.data.gov.uk/id/local-authority/38,Oxfordshire County Council,SEN TRANSPORT,4330,Transport to School Activities,30/11/2015,3110033674,"1,521.00",Black and White Cars T/A Banbury Ta
http://statistics.data.gov.uk/id/local-authority/38,Oxfordshire County Council,SEN TRANSPORT,4330,Transport to School Activities,30/11/2015,3110033695,"1,521.00",Black and White Cars T/A Banbury Ta
http://statistics.data.gov.uk/id/local-authority/38,Oxfordshire County Council,SEN TRANSPORT,4330,Transport to School Activities,30/11/2015,3110033680,"1,600.00",Black and White Cars T/A Banbury Ta
http://statistics.data.gov.uk/id/local-authority/38,Oxfordshire County Council,SEN TRANSPORT,4330,Transport to School Activities,30/11/2015,3110033683,"1,700.00",Black and White Cars T/A Banbury Ta
http://statistics.data.gov.uk/id/local-authority/38,Oxfordshire County Council,POST 16 SEN,4330,Transport to School Activities,30/11/2015,3110033685,"1,952.00",Black and White Cars T/A Banbury Ta
http://statistics.data.gov.uk/id/local-authority/38,Oxfordshire County Council,RESPITE,4330,Transport to School Activities,30/11/2015,3110033676,"1,980.00",Black and White Cars T/A Banbury Ta
http://statistics.data.gov.uk/id/local-authority/38,Oxfordshire County Council,SEN TRANSPORT,4330,Transport to School Activities,30/11/2015,3110033693,"2,010.93",Black and White Cars T/A Banbury Ta
http://statistics.data.gov.uk/id/local-authority/38,Oxfordshire County Council,SEN TRANSPORT,4330,Transport to School Activities,30/11/2015,3110033691,"2,100.00",Black and White Cars T/A Banbury Ta
http://statistics.data.gov.uk/id/local-authority/38,Oxfordshire County Council,SEN TRANSPORT,4330,Transport to School Activities,30/11/2015,3110033677,"2,124.00",Black and White Cars T/A Banbury Ta
http://statistics.data.gov.uk/id/local-authority/38,Oxfordshire County Council,MEADOWBROOK TRANSPT,4330,Transport to School Activities,30/11/2015,3110033686,"2,170.00",Black and White Cars T/A Banbury Ta
http://statistics.data.gov.uk/id/local-authority/38,Oxfordshire County Council,POST 16 SEN,4330,Transport to School Activities,19/11/2015,3110031511,"2,196.00",Black and White Cars T/A Banbury Ta
http://statistics.data.gov.uk/id/local-authority/38,Oxfordshire County Council,RESPITE,4330,Transport to School Activities,30/11/2015,3110033675,"2,420.00",Black and White Cars T/A Banbury Ta
http://statistics.data.gov.uk/id/local-authority/38,Oxfordshire County Council,SEN TRANSPORT,4330,Transport to School Activities,17/11/2015,3110029040,600,Brians Hire Ltd
http://statistics.data.gov.uk/id/local-authority/38,Oxfordshire County Council,POST 16 SEN,4330,Transport to School Activities,17/11/2015,3110029039,921,Brians Hire Ltd
http://statistics.data.gov.uk/id/local-authority/38,Oxfordshire County Council,TRANSPORT,4330,Transport to School Activities,17/11/2015,3110028976,"10,428.62",British Red Cross Society
http://statistics.data.gov.uk/id/local-authority/38,Oxfordshire County Council,SEN TRANSPORT,4330,Transport to School Activities,05/11/2015,3110026731,"3,400.00",Browns Taxis Ltd
http://statistics.data.gov.uk/id/local-authority/38,Oxfordshire County Council,SEN TRANSPORT,4330,Transport to School Activities,05/11/2015,3110027116,"4,000.00",Browns Taxis Ltd
http://statistics.data.gov.uk/id/local-authority/38,Oxfordshire County Council,POST 16 SEN,4330,Transport to School Activities,11/11/2015,3110027858,"1,075.00",BWT UK (Ltd)
http://statistics.data.gov.uk/id/local-authority/38,Oxfordshire County Council,FPT NORTH,4330,Transport to School Activities,25/11/2015,3110032343,896.68,Redacted Personal Data
http://statistics.data.gov.uk/id/local-authority/38,Oxfordshire County Council,POST 16 SEN,4330,Transport to School Activities,11/11/2015,3110027881,"1,476.00",C S Comley
http://statistics.data.gov.uk/id/local-authority/38,Oxfordshire County Council,SEN TRANSPORT,4330,Transport to School Activities,11/11/2015,3110027877,"1,630.98",C S Comley
http://statistics.data.gov.uk/id/local-authority/38,Oxfordshire County Council,SEN TRANSPORT,4330,Transport to School Activities,11/11/2015,3110027879,"1,678.75",C S Comley
http://statistics.data.gov.uk/id/local-authority/38,Oxfordshire County Council,POST 16 SEN,4330,Transport to School Activities,16/11/2015,3110028883,"-2,259.00",C V OSullivan
http://statistics.data.gov.uk/id/local-authority/38,Oxfordshire County Council,POST 16 SEN,4330,Transport to School Activities,16/11/2015,3110028885,"1,619.00",C V OSullivan
http://statistics.data.gov.uk/id/local-authority/38,Oxfordshire County Council,SEN TRANSPORT,4330,Transport to School Activities,06/11/2015,3110027399,720,C&M Management Services Ltd
http://statistics.data.gov.uk/id/local-authority/38,Oxfordshire County Council,SEN TRANSPORT,4330,Transport to School Activities,06/11/2015,3110027397,832,C&M Management Services Ltd
http://statistics.data.gov.uk/id/local-authority/38,Oxfordshire County Council,SEN TRANSPORT,4330,Transport to School Activities,06/11/2015,3110027392,"1,242.07",C&M Management Services Ltd
http://statistics.data.gov.uk/id/local-authority/38,Oxfordshire County Council,SEN TRANSPORT,4330,Transport to School Activities,06/11/2015,3110027390,"1,450.72",C&M Management Services Ltd
http://statistics.data.gov.uk/id/local-authority/38,Oxfordshire County Council,SEN TRANSPORT,4330,Transport to School Activities,17/11/2015,3110029031,"1,836.68",C&M Management Services Ltd
http://statistics.data.gov.uk/id/local-authority/38,Oxfordshire County Council,SEN TRANSPORT,4330,Transport to School Activities,06/11/2015,3110027410,"1,891.25",C&M Management Services Ltd
http://statistics.data.gov.uk/id/local-authority/38,Oxfordshire County Council,SEN TRANSPORT,4330,Transport to School Activities,06/11/2015,3110027395,"1,966.88",C&M Management Services Ltd
http://statistics.data.gov.uk/id/local-authority/38,Oxfordshire County Council,SEN TRANSPORT,4330,Transport to School Activities,17/11/2015,3110029029,"2,160.80",C&M Management Services Ltd
http://statistics.data.gov.uk/id/local-authority/38,Oxfordshire County Council,SEN TRANSPORT,4330,Transport to School Activities,06/11/2015,3110027403,"2,176.00",C&M Management Services Ltd
http://statistics.data.gov.uk/id/local-authority/38,Oxfordshire County Council,SEN TRANSPORT,4330,Transport to School Activities,06/11/2015,3110027419,"2,188.96",C&M Management Services Ltd
http://statistics.data.gov.uk/id/local-authority/38,Oxfordshire County Council,SEN TRANSPORT,4330,Transport to School Activities,06/11/2015,3110027401,"2,210.00",C&M Management Services Ltd
http://statistics.data.gov.uk/id/local-authority/38,Oxfordshire County Council,SEN TRANSPORT,4330,Transport to School Activities,06/11/2015,3110027413,"2,220.03",C&M Management Services Ltd
http://statistics.data.gov.uk/id/local-authority/38,Oxfordshire County Council,RESPITE,4330,Transport to School Activities,06/11/2015,3110027421,"2,346.00",C&M Management Services Ltd
http://statistics.data.gov.uk/id/local-authority/38,Oxfordshire County Council,POST 16 SEN,4330,Transport to School Activities,06/11/2015,3110027412,"2,482.00",C&M Management Services Ltd
http://statistics.data.gov.uk/id/local-authority/38,Oxfordshire County Council,SEN TRANSPORT,4330,Transport to School Activities,06/11/2015,3110027417,"2,526.24",C&M Management Services Ltd
http://statistics.data.gov.uk/id/local-authority/38,Oxfordshire County Council,SEN TRANSPORT,4330,Transport to School Activities,06/11/2015,3110027415,"3,262.30",C&M Management Services Ltd
http://statistics.data.gov.uk/id/local-authority/38,Oxfordshire County Council,MAINSTREAM-SECONDARY,4330,Transport to School Activities,03/11/2015,3110025515,"1,120.00",Chapel Cars
http://statistics.data.gov.uk/id/local-authority/38,Oxfordshire County Council,MAINSTREAM-PRIMARY,4330,Transport to School Activities,03/11/2015,3110025514,"1,955.00",Chapel Cars
http://statistics.data.gov.uk/id/local-authority/38,Oxfordshire County Council,POST 16 SEN,4330,Transport to School Activities,20/11/2015,3110032025,753.2,Charlies Taxis Ltd
http://statistics.data.gov.uk/id/local-authority/38,Oxfordshire County Council,POST 16 SEN,4330,Transport to School Activities,20/11/2015,3110032026,"1,200.00",Charlies Taxis Ltd
